Workbook

Sheet Instructions
B2: =CONCATENATE(dms_Sector," ",dms_Segment," ", "Network Service Provider") -> Electricity Distribution Network Service Provider
B3: =IF(dms_Model="Reset","Regulatory Proposal RIN Template","Annual Reporting RIN") -> Regulatory Proposal RIN Template
B4: =CONCATENATE("This template is to be used by ",INDEX(dms_TradingNameFull_List,MATCH(dms_TradingName,dms_TradingName_List))," to fulfil its reporting obligations to the AER.") -> This template is to be used by AusNet Electricity Services Pty Ltd to fulfil its reporting obligations to the AER.
B5: INSTRUCTIONS
B6: GENERAL | C6: Complete the Business & other details worksheet before entering data or values in any other worksheets. The Business & other details worksheet is linked to other worksheets within the workbook and automatically generates certain column headings and conditional formatting.
B8: CONFIDENTIAL INFORMATION | C8: Businesses must use the macro at the top of each worksheet to identify confidential information in the workbook.
C9: -Do this by selecting the cell or cells that contain confidential information and then run the CONFIDENTIAL macro. This will format the cells a specific colour that is identified by the AER's database which in turn marks that information as confidential. -To reverse this, select the cell or cells and run the NON-CONFIDENTIAL macro.
B11: PROTECTED (SOCI) INFORMATION | C11: Please use the macro at the top of each worksheet to identify information in the confidential workbook that is protected information under the SOCI Act. All information marked Protected (SOCI) is also deemed to be confidential information.
C12: -Do this by selecting the cell or cells that contain protected information and then run the PROTECTED (SOCI) macro. This will format the cells a specific colour that is identified by the AER's database which in turn marks that information as protected.. -To reverse this, select the cell or cells and run the NON-PROTECTED macro.
B14: RESPONSES | C14: Please return locked template files as provided by AER,with confidential/protected information marked using the appropriate macro.
B17: ORDER OF MAGNITUDE | C17: All amounts are to be unrounded and reported on a one for one basis: that is 1000 is to be entered as '1000'.
B19: INPUT / NON-INPUT CELLS
D20: Yellow = Input cell (mandatory)
D21: Darker yellow = input cell (mandatory)
D22: Orange = input cell (if data available)
D23: Grey = Not applicable/No inputs required
D24: PLEASE DO NOT ENTER TEXT into cells that are to contain numbers (including 'numbers stored as text')

Sheet CONTENTS
C1: =IF(dms_MultiYear_ResponseFlag="Yes","REGULATORY REPORTING STATEMENT - HISTORICAL INFORMATION",INDEX(dms_Worksheet_List,MATCH(dms_Model,dms_Model_List))) -> REGULATORY REPORTING STATEMENT
C2: =INDEX(dms_TradingNameFull_List,MATCH(dms_TradingName,dms_TradingName_List)) -> AusNet Electricity Services Pty Ltd
C3: =CONCATENATE("REGULATORY PERIOD FROM ", FRCP_y1," TO ",dms_MultiYear_FinalYear_Result) -> REGULATORY PERIOD FROM 2026-27 TO 2030-31
D7: CONTENTS
D9: DRAFT RIN ONLY - DO NOT USE FOR SUBMISSION
D11: TEMPLATE | E11: MARCH 2024 - PRELIMINARY RIN
D13: SUBMISSION | E13: Business & other details
D15: EXPENDITURE | E15: 2.1 Expenditure summary
E16: 2.2 Repex
E17: 2.3 Augex (b)
E18: 2.5 Connections
E19: 2.6 Non-network
E20: 2.10 Overheads
E21: 2.11 Labour
E22: 2.14 FORECAST price changes
E23: 2.16 Opex Summary
E24: 2.17 Step Changes
D26: ECONOMIC BENCHMARKING | E26: 3.1 Revenue
E27: 3.2 Operating expenditure
E28: 3.3 Assets (RAB)
E29: 3.4 Operational data
E30: 3.5 Physical assets
E31: 3.6 Quality of service
E32: 3.7 Operating Environment
D34: ALTERNATIVE CONTROL | E34: 4.1 Public lighting
D36: NETWORK | E36: 5.4 MD & utilisation-Spatial
D38: SERVICE | E38: 6.2 Reliability & Cust serv
D40: OTHER | E40: 7.1 Policies and Procedures
E41: 7.2 Contingent projects
E42: 7.3 Obligations
E43: 7.4 Shared Assets
E44: 7.7 TSS-LRMC
E45: 7.8 Export Services

Sheet Business & other details
V1: =INDEX(dms_Worksheet_List,MATCH(dms_Model,dms_Model_List)) -> REGULATORY REPORTING STATEMENT
V2: =INDEX(dms_TradingNameFull_List,MATCH(dms_TradingName,dms_TradingName_List)) -> AusNet Electricity Services Pty Ltd
V3: =CONCATENATE("REGULATORY PERIOD FROM ", FRCP_y1," TO ",dms_MultiYear_FinalYear_Result) -> REGULATORY PERIOD FROM 2026-27 TO 2030-31
V4: BUSINESS & OTHER DETAILS
V6: INSTRUCTIONS
V7: Complete the following business details regulatory template before entering data or values in any other regulatory template. This regulatory template is linked to other cells within the spreadsheet and automatically generates column headings and conditional formatting to distinguish business specific input and non-input cells.
Q9: SUBMISSION PARTICULARS INPUT SHEET
Q11: DRAFT TEMPLATE ONLY
Q12: DO NOT USE FOR SUBMISSIONS
V15: ENTITY DETAILS
V17: Business Name
V19: Short name | AL19: AusNet (D)
V20: ACN/ABN | AL20: =INDEX(dms_ABN_List,MATCH(dms_TradingName,dms_TradingName_List)) -> 91064651118
V24: Business Address | BQ24: Postal Address
V26: Address 1 | AL26: Level 32 | BI26: Address 1 | BQ26: Level 32
V27: Address 2 | AL27: 2 Southbank Boulevard | BI27: Address 2 | BQ27: 2 Southbank Boulevard
V28: Suburb | AL28: SOUTHBANK | BI28: Suburb | BQ28: SOUTHBANK
V29: State | AL29: =INDEX(dms_State_List,MATCH(dms_TradingName,dms_TradingName_List)) -> Vic | AV29: Post code | AX29: 3006 | BI29: State | BQ29: =INDEX(dms_PState_List,MATCH(dms_TradingName,dms_TradingName_List)) -> Vic | CA29: Post code | CC29: 3006
BA31: `
V33: Contact Names
V35: Name | BI35: Name
V36: Phone | BI36: Phone
V37: Email | BI37: Email
Q42: REGULATORY CONTROL PERIODS
X45: RESETS | Z45: Forthcoming period | AL45: 2026-27 | AU45: =FRCP_y2 -> 2027-28 | BD45: =FRCP_y3 -> 2028-29 | BM45: =FRCP_y4 -> 2029-30 | BV45: =FRCP_y5 -> 2030-31
AL46: =FRCP_y6 -> 2031-32 | AU46: =FRCP_y7 -> 2032-33 | BD46: =FRCP_y8 -> 2033-34 | BM46: =FRCP_y9 -> 2034-35 | BV46: =FRCP_y10 -> 2035-36
AL47: =FRCP_y11 -> 2036-37 | AU47: =FRCP_y12 -> 2037-38 | BD47: =FRCP_y13 -> 2038-39 | BM47: =FRCP_y14 -> 2039-40 | BV47: =FRCP_y15 -> 2040-41
X49: RESETS | Z49: Current period | AL49: =CRCP_y1 -> 2021-22 | AU49: =CRCP_y2 -> 2022-23 | BD49: =CRCP_y3 -> 2023-24 | BM49: =CRCP_y4 -> 2024-25 | BV49: =CRCP_y5 -> 2025-26
AL50: =CRCP_y6 -> 2026-27 | AU50: =CRCP_y7 -> 2027-28 | BD50: =CRCP_y8 -> 2028-29 | BM50: =CRCP_y9 -> 2029-30 | BV50: =CRCP_y10 -> 2030-31
AL51: =CRCP_y11 -> 2031-32 | AU51: =CRCP_y12 -> 2032-33 | BD51: =CRCP_y13 -> 2033-34 | BM51: =CRCP_y14 -> 2034-35 | BV51: =CRCP_y15 -> 2035-36
Z53: Previous period | AL53: =PRCP_y1 -> 2016-17 | AU53: =PRCP_y2 -> 2017-18 | BD53: =PRCP_y3 -> 2018-19 | BM53: =PRCP_y4 -> 2019-20 | BV53: =PRCP_y5 -> 2020-21
AL54: =PRCP_y6 -> 2021-22 | AU54: =PRCP_y7 -> 2022-23 | BD54: =PRCP_y8 -> 2023-24 | BM54: =PRCP_y9 -> 2024-25 | BV54: =PRCP_y10 -> 2025-26
AL55: =PRCP_y11 -> 2026-27 | AU55: =PRCP_y12 -> 2027-28 | BD55: =PRCP_y13 -> 2028-29 | BM55: =PRCP_y14 -> 2029-30 | BV55: =PRCP_y15 -> 2030-31
Z57: Commencing year | AL57: 2022-23
X58: ANNUAL RINS
Z59: Final year | AL59: 2028-29
Q63: SUBMISSION DETAILS
Z65: RIN type | AL65: =INDIRECT(dms_Model) -> Regulatory Reporting (Reset)
Z67: Source | AL67: Regulatory proposal
X69: THIS FILE | Z69: Data Quality | AL69: Consolidated
Z71: Confidentiality Status | AL71: Public
Z73: Amended RIN Amendment Reason | AL73: .
Z77: Submission Date | AL77: 2025-01-31 | BD77: Please enter date this file submitted to AER

Sheet 2.1 Expenditure summary
B1: =INDEX(dms_Worksheet_List,MATCH(dms_Model,dms_Model_List)) -> REGULATORY REPORTING STATEMENT
B2: =INDEX(dms_TradingNameFull_List,MATCH(dms_TradingName,dms_TradingName_List)) -> AusNet Electricity Services Pty Ltd
B3: =CONCATENATE("REGULATORY PERIOD FROM ", FRCP_y1," TO ",dms_MultiYear_FinalYear_Result) -> REGULATORY PERIOD FROM 2026-27 TO 2030-31
B4: 2.1 EXPENDITURE SUMMARY & RECONCILIATION
B5: TEMPLATE DATE - SEPTEMBER 2024 - FINAL RIN
B8: 2.1.1 - STANDARD CONTROL SERVICES CAPEX (excluding dual function assets)
C9: =CONCATENATE("EXPENDITURE ($, real ", dms_DollarReal, ")") -> EXPENDITURE ($, real June 2026)
C10: =CRCP_y4 -> 2024-25 | D10: =CRCP_y5 -> 2025-26 | E10: =FRCP_y1 -> 2026-27 | F10: =FRCP_y2 -> 2027-28 | G10: =FRCP_y3 -> 2028-29 | H10: =FRCP_y4 -> 2029-30 | I10: =FRCP_y5 -> 2030-31
B11: Replacement expenditure | C11: 202337645.8 | D11: 182373282.1 | E11: 189927211.8 | F11: 246090263.9 | G11: 292044137.6 | H11: 296490874.7 | I11: 292321337.2
B12: Connections | C12: 152624493.3 | D12: 163524825.7 | E12: 176209034.5 | F12: 165713118.1 | G12: 164081983.5 | H12: 162623482.4 | I12: 163012306 | Q12: ADELAIDE | R12: SA | S12: 5000 | T12: PO Box 6468 | U12: Halifax Street | V12: ADELAIDE | W12: SA | X12: 5000 | Y12: NO | Z12: NO | AA12: NO | AB12: NO | AC12: NO | AD12: CBD | AE12: Urban | AF12: Short rural | AG12: Long rural | AI12: NO | AJ12: NO | AK12: =B12 -> Connections
B13: Augmentation Expenditure | C13: 53097372.77 | D13: 56991303.95 | E13: 145041405.4 | F13: 173294951.5 | G13: 193586677.8 | H13: 181686982.7 | I13: 217598167.7 | Q13: ADELAIDE | R13: SA | S13: 5000 | T13: PO Box 6468 | U13: Halifax Street | V13: ADELAIDE | W13: SA | X13: 5000 | Y13: NO | Z13: NO | AA13: NO | AB13: NO | AC13: NO | AD13: CBD | AE13: Urban | AF13: Short rural | AG13: Long rural | AI13: NO | AJ13: NO | AK13: Augmentation Expenditure
B14: Export services | C14: 13057852 | D14: 4866492 | E14: =SUM('7.8 Export Services'!E24:E26) -> 22738079.08 | F14: =SUM('7.8 Export Services'!F24:F26) -> 20660059.97 | G14: =SUM('7.8 Export Services'!G24:G26) -> 6102959.824 | H14: =SUM('7.8 Export Services'!H24:H26) -> 35145635.19 | I14: =SUM('7.8 Export Services'!I24:I26) -> 4872036.032
B15: ICT | C15: 74822064.8 | D15: 66490120.57 | E15: 81492175.88 | F15: 89281461.51 | G15: 84716722.97 | H15: 66127821.87 | I15: 65057030.81
B16: Property | C16: 9577478.04 | D16: 3074459.859 | E16: 73981666.96 | F16: 30865206.37 | G16: 19568733.82 | H16: 18694641.64 | I16: 30632857.35
B17: Fleet | C17: 1183470.201 | D17: 3853124.839 | E17: 25188919.93 | F17: 25273729.09 | G17: 30059774.75 | H17: 32632861.35 | I17: 31069692.78
B18: Other non-network | C18: 1417146.693 | D18: 8558517.406 | E18: 895786.4694 | F18: 904744.3341 | G18: 913791.7775 | H18: 922929.6952 | I18: 932158.9922
B19: Network overheads | C19: 38775249.08 | D19: 41523505.5 | E19: 41493729.38 | F19: 41604134.09 | G19: 41785724.03 | H19: 42042834.57 | I19: 42219722.45
B20: Corporate overheads | C20: 6603892.844 | D20: 7072244.779 | E20: 0 | F20: 0 | G20: 0 | H20: 0 | I20: 0
B21: Metering | C21: 0 | D21: 0 | E21: 0 | F21: 0 | G21: 0 | H21: 0 | I21: 0
B22: capital contributions (included in the above) | C22: 101752968.9 | D22: 105283066.9 | E22: 117752101.1 | F22: 106024669.3 | G22: 102584595.2 | H22: 102210755.6 | I22: 103889366.4
B23: Total | C23: =SUM(C11:C21) -> 553496665.6 | D23: 538327876.7 | E23: 756968009.4 | F23: 793687669 | G23: 832860506.1 | H23: 836368064.1 | I23: 847715309.2
B26: 2.1.2 - STANDARD CONTROL SERVICES OPEX BY CATEGORY (excluding dual function assets)
C27: =CONCATENATE("EXPENDITURE ($, real ", dms_DollarReal, ")") -> EXPENDITURE ($, real June 2026)
C28: =CRCP_y4 -> 2024-25 | D28: =CRCP_y5 -> 2025-26
B29: Vegetation management | C29: 62340245.58 | D29: 58218454.63
B30: Maintenance | C30: 35269803.79 | D30: 32937847.02
B31: Emergency response | C31: 50499806.75 | D31: 24229032.49
B32: Non-network | C32: 52460938.35 | D32: 48992344.04
B33: Export services | C33: 54068.30105 | D33: 21627.32042
B34: Metering | C34: 4494306 | D34: 4494306
B35: Network overheads | C35: 94343640.23 | D35: 88105859.82
B36: Corporate overheads | C36: 32311611 | D36: 30175243
B37: Total | C37: =SUM(C29:C36) -> 331774420 | D37: =SUM(D29:D36) -> 287174714.3
B40: 2.1.3 - ALTERNATIVE CONTROL SERVICES CAPEX
C41: =CONCATENATE("EXPENDITURE ($, real ", dms_DollarReal, ")") -> EXPENDITURE ($, real June 2026)
C42: =CRCP_y4 -> 2024-25 | D42: =CRCP_y5 -> 2025-26 | E42: =FRCP_y1 -> 2026-27 | F42: =FRCP_y2 -> 2027-28 | G42: =FRCP_y3 -> 2028-29 | H42: =FRCP_y4 -> 2029-30 | I42: =FRCP_y5 -> 2030-31
B43: Connections | C43: 8708283.878 | D43: 8864708.656 | E43: 8992016.399 | F43: 9057896.021 | G43: 9151956.409 | H43: 9271687.68 | I43: 9362500.767
B44: Metering | C44: 11265347.63 | D44: 9360287.159 | E44: 17361654.92 | F44: 16534754.74 | G44: 34206856.78 | H44: 48917185.72 | I44: 48976277.92
B45: Public lighting | C45: =SUM('4.1 Public lighting'!D16,'4.1 Public lighting'!D21,'4.1 Public lighting'!D26) -> 10071565.12 | D45: =SUM('4.1 Public lighting'!E16,'4.1 Public lighting'!E21,'4.1 Public lighting'!E26) -> 8330239.701 | E45: =SUM('4.1 Public lighting'!F16,'4.1 Public lighting'!F21,'4.1 Public lighting'!F26) -> 9332613.2 | F45: =SUM('4.1 Public lighting'!G16,'4.1 Public lighting'!G21,'4.1 Public lighting'!G26) -> 9486722.1 | G45: =SUM('4.1 Public lighting'!H16,'4.1 Public lighting'!H21,'4.1 Public lighting'!H26) -> 9647298.211 | H45: =SUM('4.1 Public lighting'!I16,'4.1 Public lighting'!I21,'4.1 Public lighting'!I26) -> 9814660.87 | I45: =SUM('4.1 Public lighting'!J16,'4.1 Public lighting'!J21,'4.1 Public lighting'!J26) -> 9984042.825
B46: Fee and quoted | C46: 9634352.702 | D46: 9807412.228 | E46: 9980780.969 | F46: 10160063.3 | G46: 10343341.29 | H46: 10530532.2 | I46: 10721897.29
B47: Network overheads | C47: ='2.10 Overheads'!D17 -> 2244113.254 | D47: ='2.10 Overheads'!E17 -> 1856902.609 | E47: ='2.10 Overheads'!F17 -> 1870002.153 | F47: ='2.10 Overheads'!G17 -> 1888476.862 | G47: ='2.10 Overheads'!H17 -> 2706134.402 | H47: ='2.10 Overheads'!I17 -> 3394046.605 | I47: ='2.10 Overheads'!J17 -> 3415064.985
B48: Corporate overheads | C48: ='2.10 Overheads'!D32 -> 0 | D48: ='2.10 Overheads'!E32 -> 0 | E48: ='2.10 Overheads'!F32 -> 0 | F48: ='2.10 Overheads'!G32 -> 0 | G48: ='2.10 Overheads'!H32 -> 0 | H48: ='2.10 Overheads'!I32 -> 0 | I48: ='2.10 Overheads'!J32 -> 0
B49: capital contributions (included in the above) | C49: ='4.1 Public lighting'!D16 -> 4358526.517 | D49: ='4.1 Public lighting'!E16 -> 4480565.26 | E49: ='4.1 Public lighting'!F16 -> 4031427.592 | F49: ='4.1 Public lighting'!G16 -> 4144307.564 | G49: ='4.1 Public lighting'!H16 -> 4260348.176 | H49: ='4.1 Public lighting'!I16 -> 4379637.925 | I49: ='4.1 Public lighting'!J16 -> 4502267.787
B50: Total | C50: =SUM(C43:C48) -> 41923662.59 | D50: 38219550.35 | E50: 47537067.64 | F50: 47127913.03 | G50: 66055587.1 | H50: 81928113.08 | I50: 82459783.78
B53: 2.1.4 - ALTERNATIVE CONTROL SERVICES OPEX
C54: =CONCATENATE("EXPENDITURE ($, real ", dms_DollarReal, ")") -> EXPENDITURE ($, real June 2026)
C55: =CRCP_y4 -> 2024-25 | D55: =CRCP_y5 -> 2025-26 | E55: =FRCP_y1 -> 2026-27 | F55: =FRCP_y2 -> 2027-28 | G55: =FRCP_y3 -> 2028-29 | H55: =FRCP_y4 -> 2029-30 | I55: =FRCP_y5 -> 2030-31
B56: Connections | C56: =SUM('3.2 Operating expenditure'!C73) -> 5427975.533 | D56: =SUM('3.2 Operating expenditure'!D73) -> 4688284.667 | E56: =SUM('3.2 Operating expenditure'!E73) -> 5235580.808 | F56: =SUM('3.2 Operating expenditure'!F73) -> 5370151.341 | G56: =SUM('3.2 Operating expenditure'!G73) -> 5513867.415 | H56: =SUM('3.2 Operating expenditure'!H73) -> 5668802.518 | I56: =SUM('3.2 Operating expenditure'!I73) -> 5774190.157
B57: Metering | C57: ='3.2 Operating expenditure'!K72 -> 12500000 | D57: ='3.2 Operating expenditure'!L72 -> 11910620.87 | E57: ='3.2 Operating expenditure'!M72 -> 11321241.74 | F57: ='3.2 Operating expenditure'!N72 -> 11619964.88 | G57: ='3.2 Operating expenditure'!O72 -> 12374765.28 | H57: ='3.2 Operating expenditure'!P72 -> 12982798.98 | I57: ='3.2 Operating expenditure'!Q72 -> 13365072.84
B58: Public lighting | C58: ='3.2 Operating expenditure'!K74 -> 4328501.693 | D58: ='3.2 Operating expenditure'!L74 -> 4395084.911 | E58: ='3.2 Operating expenditure'!M74 -> 3601785.615 | F58: ='3.2 Operating expenditure'!N74 -> 3532822.323 | G58: ='3.2 Operating expenditure'!O74 -> 3494894.325 | H58: ='3.2 Operating expenditure'!P74 -> 3487713.205 | I58: ='3.2 Operating expenditure'!Q74 -> 3291368.426
B59: Fee and quoted | C59: 0 | D59: 0 | E59: 0 | F59: 0 | G59: 0 | H59: 0 | I59: 0
B60: Network overheads | C60: ='2.10 Overheads'!D14 -> 1306840.723 | D60: ='2.10 Overheads'!E14 -> 1323486.528 | E60: ='2.10 Overheads'!F14 -> 1100353.154 | F60: ='2.10 Overheads'!G14 -> 1088505.481 | G60: ='2.10 Overheads'!H14 -> 1092506.381 | H60: ='2.10 Overheads'!I14 -> 1101497.451 | I60: ='2.10 Overheads'!J14 -> 1059062.856
B61: Corporate overheads | C61: ='2.10 Overheads'!D29 ->  | D61: ='2.10 Overheads'!E29 -> 0 | E61: ='2.10 Overheads'!F29 -> 0 | F61: ='2.10 Overheads'!G29 -> 0 | G61: ='2.10 Overheads'!H29 -> 0 | H61: ='2.10 Overheads'!I29 -> 0 | I61: ='2.10 Overheads'!J29 -> 0
B62: Total | C62: =SUM(C56:C61) -> 23563317.95 | D62: 22317476.98 | E62: 21258961.32 | F62: 21611444.02 | G62: 22476033.4 | H62: 23240812.16 | I62: 23489694.28
B65: 2.1.5 - DUAL FUNCTION ASSETS CAPEX
C66: =CONCATENATE("EXPENDITURE ($, real ", dms_DollarReal, ")") -> EXPENDITURE ($, real June 2026)
C67: =CRCP_y4 -> 2024-25 | D67: =CRCP_y5 -> 2025-26 | E67: =FRCP_y1 -> 2026-27 | F67: =FRCP_y2 -> 2027-28 | G67: =FRCP_y3 -> 2028-29 | H67: =FRCP_y4 -> 2029-30 | I67: =FRCP_y5 -> 2030-31
B68: Replacement expenditure
B69: Connections
B70: Augmentation Expenditure
B71: Export services
B72: ICT
B73: Property
B74: Fleet
B75: Other non-network
B76: Network overheads
B77: Corporate overheads
B78: Metering
B79: capital contributions (included in the above)
B80: Total | C80: =SUM(C68:C78) -> 0 | D80: 0 | E80: 0 | F80: 0 | G80: 0 | H80: 0 | I80: 0
B83: 2.1.6 - DUAL FUNCTION ASSETS OPEX BY CATEGORY
C84: =CONCATENATE("EXPENDITURE ($, real ", dms_DollarReal, ")") -> EXPENDITURE ($, real June 2026)
C85: =CRCP_y4 -> 2024-25 | D85: =CRCP_y5 -> 2025-26
B86: Vegetation management | C86: 0 | D86: 0
B87: Maintenance | C87: 0 | D87: 0
B88: Emergency response | C88: 0 | D88: 0
B89: Non-network | C89: 0 | D89: 0
B90: Export services | C90: 0 | D90: 0
B91: Metering | C91: 0 | D91: 0
B92: Network overheads | C92: 0 | D92: 0
B93: Corporate overheads | C93: 0 | D93: 0
B94: Total | C94: =SUM(C86:C93) -> 0 | D94: =SUM(D86:D93) -> 0
B97: 2.1.7 - STANDARD CONTROL SERVICES (TOTAL) CAPITAL CONTRIBUTIONS
C98: =CONCATENATE("EXPENDITURE ($, real ", dms_DollarReal, ")") -> EXPENDITURE ($, real June 2026)
C99: =CRCP_y4 -> 2024-25 | D99: =CRCP_y5 -> 2025-26 | E99: =FRCP_y1 -> 2026-27 | F99: =FRCP_y2 -> 2027-28 | G99: =FRCP_y3 -> 2028-29 | H99: =FRCP_y4 -> 2029-30 | I99: =FRCP_y5 -> 2030-31
B100: Replacement expenditure | C100: 0 | D100: 0 | E100: 0 | F100: 0 | G100: 0 | H100: 0 | I100: 0
B101: Connections | C101: 97159783.44 | D101: 99399191.26 | E101: 112254264.4 | F101: 102084954.5 | G101: 99232870.35 | H101: 98974580.64 | I101: 100605401
B102: Augmentation Expenditure | C102: 0 | D102: 0 | E102: 0 | F102: 0 | G102: 0 | H102: 0 | I102: 0
B103: Export services | C103: 0 | D103: 0 | E103: 0 | F103: 0 | G103: 0 | H103: 0 | I103: 0
B104: ICT | C104: 0 | D104: 0 | E104: 0 | F104: 0 | G104: 0 | H104: 0 | I104: 0
B105: Property | C105: 0 | D105: 0 | E105: 0 | F105: 0 | G105: 0 | H105: 0 | I105: 0
B106: Fleet | C106: 0 | D106: 0 | E106: 0 | F106: 0 | G106: 0 | H106: 0 | I106: 0
B107: Other non-network | C107: 0 | D107: 0 | E107: 0 | F107: 0 | G107: 0 | H107: 0 | I107: 0
B108: Network overheads | C108: 4593185.469 | D108: 5883875.631 | E108: 5497836.697 | F108: 3939714.793 | G108: 3351724.891 | H108: 3236174.974 | I108: 3283965.41
B109: Corporate overheads | C109: 0 | D109: 0 | E109: 0 | F109: 0 | G109: 0 | H109: 0 | I109: 0
B110: Metering | C110: 0 | D110: 0 | E110: 0 | F110: 0 | G110: 0 | H110: 0 | I110: 0
B111: Total | C111: =SUM(C100:C110) -> 101752968.9 | D111: 105283066.9 | E111: 117752101.1 | F111: 106024669.3 | G111: 102584595.2 | H111: 102210755.6 | I111: 103889366.4
B114: 2.1.8 - STANDARD CONTROL SERVICES (TOTAL) CAPITALISED OVERHEADS
C115: =CONCATENATE("EXPENDITURE ($, real ", dms_DollarReal, ")") -> EXPENDITURE ($, real June 2026)
C116: =CRCP_y4 -> 2024-25 | D116: =CRCP_y5 -> 2025-26 | E116: =FRCP_y1 -> 2026-27 | F116: =FRCP_y2 -> 2027-28 | G116: =FRCP_y3 -> 2028-29 | H116: =FRCP_y4 -> 2029-30 | I116: =FRCP_y5 -> 2030-31
B117: Replacement expenditure | C117: 21771530.69 | D117: 21100588.74 | E117: 16666095.3 | F117: 18833133.23 | G117: 20328043.18 | H117: 20294343.78 | I117: 19834602.77
B118: Connections | C118: 10563891.09 | D118: 13285113.95 | E118: 11109861.87 | F118: 8809138.165 | G118: 7865616.47 | H118: 7592844.279 | I118: 7518402.018
B119: Augmentation Expenditure | C119: 5713277.31 | D119: 6593893.867 | E119: 13717772.22 | F119: 13961862.7 | G119: 13592064.38 | H119: 14155646.51 | I119: 14866717.65
B120: Export services | C120: 1239926.754 | D120: 561551.934 | E120: 0 | F120: 0 | G120: 0 | H120: 0 | I120: 0
B121: ICT | C121: 6090516.074 | D121: 7054601.793 | E121: 0 | F121: 0 | G121: 0 | H121: 0 | I121: 0
B122: Property | C122: 0 | D122: 0 | E122: 0 | F122: 0 | G122: 0 | H122: 0 | I122: 0
B123: Fleet | C123: 0 | D123: 0 | E123: 0 | F123: 0 | G123: 0 | H123: 0 | I123: 0
B124: Other non-network | C124: 0 | D124: 0 | E124: 0 | F124: 0 | G124: 0 | H124: 0 | I124: 0
B125: Metering | C125: 0 | D125: 0 | E125: 0 | F125: 0 | G125: 0 | H125: 0 | I125: 0
B126: capital contributions (included in the above) | C126: 4593185.469 | D126: 5883875.631 | E126: =SUM(E108:E109) -> 5497836.697 | F126: 3939714.793 | G126: 3351724.891 | H126: 3236174.974 | I126: 3283965.41
B127: Total | C127: =SUM(C117:C125) -> 45379141.92 | D127: 48595750.28 | E127: 41493729.38 | F127: 41604134.09 | G127: 41785724.03 | H127: 42042834.57 | I127: 42219722.45

Sheet 2.2 Repex
B1: =INDEX(dms_Worksheet_List,MATCH(dms_Model,dms_Model_List)) -> REGULATORY REPORTING STATEMENT
B2: =INDEX(dms_TradingNameFull_List,MATCH(dms_TradingName,dms_TradingName_List)) -> AusNet Electricity Services Pty Ltd
B3: =CONCATENATE("REGULATORY PERIOD FROM ", FRCP_y1," TO ",dms_MultiYear_FinalYear_Result) -> REGULATORY PERIOD FROM 2026-27 TO 2030-31
B4: 2.2 REPEX
B5: TEMPLATE DATE - SEPTEMBER 2024 - FINAL RIN
B8: 2.2.1 - REPLACEMENT EXPENDITURE, VOLUMES AND ASSET FAILURES BY ASSET CATEGORY
B9: EXPENDITURE
D10: =CONCATENATE("EXPENDITURE ($, real ", dms_DollarReal, ")") -> EXPENDITURE ($, real June 2026)
B11: ASSET GROUP | C11: ASSET CATEGORY | D11: =CRCP_y4 -> 2024-25 | E11: =CRCP_y5 -> 2025-26 | F11: =FRCP_y1 -> 2026-27 | G11: =FRCP_y2 -> 2027-28 | H11: =FRCP_y3 -> 2028-29 | I11: =FRCP_y4 -> 2029-30 | J11: =FRCP_y5 -> 2030-31
B12: POLES BY: HIGHEST OPERATING VOLTAGE; MATERIAL TYPE | C12: ˂ = 1 kV; wood | D12: 5898159.546 | E12: 5646755.285 | F12: 8916415.583 | G12: 8675485.026 | H12: 8490615.053 | I12: 8349536.236 | J12: 8218147.937
C13: > 1 kV & < = 11 kV; wood | D13: 106760.4725 | E13: 91325.71632 | F13: 112241.8529 | G13: 110292.641 | H13: 108551.1712 | I13: 107470.3758 | J13: 106412.6527
C14: ˃ 11 kV & < = 22 kV; wood | D14: 12399947.36 | E14: 11100885.48 | F14: 13518966.9 | G14: 13327566.26 | H14: 13164414.46 | I14: 13086038.32 | J14: 13001318.65
C15: > 22 kV & < = 66 kV; wood | D15: 966887.4448 | E15: 942326.1784 | F15: 1206500.871 | G15: 1226220.23 | H15: 1251517.449 | I15: 1262957.278 | J15: 1283567.429
C16: > 66 kV & < = 132 kV; wood | D16: 0 | E16: 0 | F16: 0 | G16: 0 | H16: 0 | I16: 0 | J16: 0
C17: > 132 kV; wood | D17: 0 | E17: 0 | F17: 0 | G17: 0 | H17: 0 | I17: 0 | J17: 0
C18: ˂ = 1 kV; concrete | D18: 2428835.758 | E18: 2316836.771 | F18: 3614852.302 | G18: 3520183.181 | H18: 3448279.11 | I18: 3394155.606 | J18: 3344059.393
C19: > 1 kV & < = 11 kV; concrete | D19: 36527.1568 | E19: 32581.36237 | F19: 39760.65997 | G19: 39180.60713 | H19: 38682.36281 | I19: 38431.39903 | J19: 38165.37996
C20: ˃ 11 kV & < = 22 kV; concrete | D20: 10157991.19 | E20: 12396684.16 | F20: 18173989.93 | G20: 28757176.55 | H20: 31970901.54 | I20: 35166582.18 | J20: 18228165.79
C21: > 22 kV & < = 66 kV; concrete | D21: 1728254.788 | E21: 1600678.758 | F21: 1837309.877 | G21: 1873184.644 | H21: 1911225.186 | I21: 1928695.25 | J21: 1959867.155
C22: > 66 kV & < = 132 kV; concrete | D22: 0 | E22: 0 | F22: 0 | G22: 0 | H22: 0 | I22: 0 | J22: 0
C23: > 132 kV; concrete | D23: 0 | E23: 0 | F23: 0 | G23: 0 | H23: 0 | I23: 0 | J23: 0
C24: ˂ = 1 kV; steel | D24: 2373539.557 | E24: 1969403.609 | F24: 1518772.387 | G24: 1586507.055 | H24: 1665134.068 | I24: 1752198.202 | J24: 1844472.78
C25: > 1 kV & < = 11 kV; steel | D25: 0 | E25: 0 | F25: 0 | G25: 0 | H25: 0 | I25: 0 | J25: 0
C26: ˃ 11 kV & < = 22 kV; steel | D26: 1810.4156 | E26: 1501.237553 | F26: 1759.171994 | G26: 1724.432904 | H26: 1692.638061 | I26: 1670.695697 | J26: 1649.996019
C27: > 22 kV & < = 66 kV; steel | D27: 0 | E27: 0 | F27: 2394.623965 | G27: 2417.547139 | H27: 2469.096434 | I27: 2491.665869 | J27: 2533.166139
C28: > 66 kV & < = 132 kV; steel | D28: 0 | E28: 0 | F28: 0 | G28: 0 | H28: 0 | I28: 0 | J28: 0
C29: > 132 kV; steel | D29: 0 | E29: 0 | F29: 0 | G29: 0 | H29: 0 | I29: 0 | J29: 0
C30: ˂ = 1 kV; composite pole | D30: 1649.3132 | E30: 1573.945639 | F30: 2906.054349 | G30: 2827.000131 | H30: 2766.211123 | I30: 2719.689433 | J30: 2676.309574
C31: > 1 kV & < = 11 kV; composite pole | D31: 0 | E31: 0 | F31: 0 | G31: 0 | H31: 0 | I31: 0 | J31: 0
C32: ˃ 11 kV & < = 22 kV; composite pole | D32: 0 | E32: -9.29241449 | F32: 0 | G32: 0 | H32: 0 | I32: 0 | J32: 0
C33: > 22 kV & < = 66 kV; composite pole | D33: 200156.2983 | E33: 170034.451 | F33: 200432.4008 | G33: 196689.2662 | H33: 193346.6311 | I33: 191023.7917 | J33: 188878.2995
C34: > 66 kV & < = 132 kV; composite pole | D34: 0 | E34: 0 | F34: 0 | G34: 0 | H34: 0 | I34: 0 | J34: 0
C35: > 132 kV; composite pole | D35: 0 | E35: 0 | F35: 0 | G35: 0 | H35: 0 | I35: 0 | J35: 0
C36: ˂ = 1 kV; pole - other technology | D36: 0 | E36: 0 | F36: 0 | G36: 0 | H36: 0 | I36: 0 | J36: 0
C37: > 1 kV & < = 11 kV; pole - other technology | D37: 0 | E37: 0 | F37: 0 | G37: 0 | H37: 0 | I37: 0 | J37: 0
C38: ˃ 11 kV & < = 22 kV; pole - other technology | D38: 0 | E38: 0 | F38: 0 | G38: 0 | H38: 0 | I38: 0 | J38: 0
C39: > 22 kV & < = 66 kV; pole - other technology | D39: 0 | E39: 0 | F39: 0 | G39: 0 | H39: 0 | I39: 0 | J39: 0
C40: > 66 kV & < = 132 kV; pole - other technology | D40: 0 | E40: 0 | F40: 0 | G40: 0 | H40: 0 | I40: 0 | J40: 0
C41: > 132 kV; pole - other technology | D41: 0 | E41: 0 | F41: 0 | G41: 0 | H41: 0 | I41: 0 | J41: 0
C42: Other | D42: 0 | E42: 0 | F42: 0 | G42: 0 | H42: 0 | I42: 0 | J42: 0
B43: POLE TOP STRUCTURES BY: HIGHEST OPERATING VOLTAGE | C43: ˂ = 1 kV | D43: 7210924 | E43: 7100989.459 | F43: 3557413.044 | G43: 3652553.674 | H43: 3764623.276 | I43: 3899970.389 | J43: 4033184.116
C44: > 1 kV & < = 11 kV | D44: 0 | E44: 0 | F44: 0 | G44: 0 | H44: 0 | I44: 0 | J44: 0
C45: ˃ 11 kV & < = 22 kV | D45: 4582646 | E45: 4465737.333 | F45: 7124203.038 | G45: 7346319.087 | H45: 7590101.893 | I45: 7878072.11 | J45: 8162849.518
C46: > 22 kV & < = 66 kV | D46: 0 | E46: 0 | F46: 0 | G46: 0 | H46: 0 | I46: 0 | J46: 0
C47: > 66 kV & < = 132 kV | D47: 256724 | E47: 251756.2079 | F47: 892117.0697 | G47: 915538.8294 | H47: 946773.1591 | I47: 978344.614 | J47: 1009445.198
C48: > 132 kV | D48: 0 | E48: 0 | F48: 0 | G48: 0 | H48: 0 | I48: 0 | J48: 0
C49: Other | D49: 0 | E49: 0 | F49: 0 | G49: 0 | H49: 0 | I49: 0 | J49: 0
B50: STAKING OF/ STAKED WOODEN POLES BY: HIGHEST OPERATING VOLTAGE | C50: ˂ = 1 Kv | D50: 861101.8 | E50: 716967.2 | F50: 271147.9797 | G50: 279915.6414 | H50: 289180.2633 | I50: 299306.2489 | J50: 308844.3611
C51: > 1 kV & < = 11 kV | D51: 0 | E51: 0 | F51: 0 | G51: 0 | H51: 0 | I51: 0 | J51: 0
C52: ˃ 11 kV & < = 22 kV | D52: 865841.2 | E52: 765392.8 | F52: 406721.9695 | G52: 419873.4622 | H52: 433770.395 | I52: 448959.3734 | J52: 463266.5416
C53: > 22 kV & < = 66 kV | D53: 0 | E53: 0 | F53: 0 | G53: 0 | H53: 0 | I53: 0 | J53: 0
C54: > 66 kV & < = 132 kV | D54: 0 | E54: 0 | F54: 0 | G54: 0 | H54: 0 | I54: 0 | J54: 0
C55: > 132 kV | D55: 0 | E55: 0 | F55: 0 | G55: 0 | H55: 0 | I55: 0 | J55: 0
B56: OVERHEAD CONDUCTORS BY: Highest operating voltage; Number of phases (at HV) | C56: ˂ = 1 kV | D56: 477735.6371 | E56: 1174788.375 | F56: 9385194.066 | G56: 9524615.004 | H56: 9707101.327 | I56: 9934656.468 | J56: 10018671.84
C57: > 1 kV & < = 11 kV | D57: 9028.269186 | E57: 213546.8477 | F57: 2325264.625 | G57: 2386731.983 | H57: 2526559.164 | I57: 2549653.852 | J57: 2571215.756
C58: ˃ 11 kV & < = 22 kV ; SWER | D58: 7561048.127 | E58: 10256328.53 | F58: 919151.164 | G58: 8679170.767 | H58: 8720102.574 | I58: 8799810.999 | J58: 8874229.209
C59: ˃ 11 kV & < = 22 kV ; Single-Phase | D59: 4434476.553 | E59: 4437982.131 | F59: 4118128.8 | G59: 4123190.758 | H59: 4142636.124 | I59: 4180502.995 | J59: 4215856.658
C60: ˃ 11 kV & < = 22 kV ; Multiple-Phase | D60: 19347006.38 | E60: 16310093.5 | F60: 14108533.34 | G60: 33715938.01 | H60: 57692384.94 | I60: 38864948.01 | J60: 51439786.85
C61: > 22 kV & < = 66 kV | D61: 864682.034 | E61: 513793.6199 | F61: 8673.394658 | G61: 8684.0559 | H61: 8725.010745 | I61: 8804.764034 | J61: 8879.224131
C62: > 66 kV & < = 132 kV | D62: 0 | E62: 0 | F62: 0 | G62: 0 | H62: 0 | I62: 0 | J62: 0
C63: > 132 kV | D63: 0 | E63: 0 | F63: 0 | G63: 0 | H63: 0 | I63: 0 | J63: 0
C64: Other | D64: 0 | E64: 0 | F64: 0 | G64: 0 | H64: 0 | I64: 0 | J64: 0
B65: UNDERGROUND CABLES BY: Highest operating voltage | C65: ˂ = 1 kV | D65: 0 | E65: 0 | F65: 0 | G65: 0 | H65: 0 | I65: 0 | J65: 0
C66: > 1 kV & < = 11 kV | D66: 2029655.031 | E66: 1651093.52 | F66: 2298932.637 | G66: 3836264.1 | H66: 6166970.067 | I66: 5445423.29 | J66: 3137985.215
C67: > 11 kV & < = 22 kV | D67: 3265841.029 | E67: 1073329.417 | F67: 1145392.68 | G67: 1911334.307 | H67: 3072557.351 | I67: 2713062.521 | J67: 1563432.193
C68: > 22 kV & < = 33 kV | D68: 0 | E68: 0 | F68: 0 | G68: 0 | H68: 0 | I68: 0 | J68: 0
C69: > 33 kV & < = 66 kV | D69: 5668.940751 | E69: 6017.063066 | F69: 6421.048264 | G69: 10714.90158 | H69: 17224.69454 | I69: 15209.37377 | J69: 8764.569344
C70: > 66 kV & < = 132 kV | D70: 0 | E70: 0 | F70: 0 | G70: 0 | H70: 0 | I70: 0 | J70: 0
C71: > 132 kV | D71: 0 | E71: 0 | F71: 0 | G71: 0 | H71: 0 | I71: 0 | J71: 0
C72: Other | D72: 0 | E72: 0 | F72: 0 | G72: 0 | H72: 0 | I72: 0 | J72: 0
B73: SERVICE LINES BY: Connection voltage; Customer type; Connection complexity | C73: ˂ = 11 kV ; Residential ; Simple Type | D73: 7552587.107 | E73: 4706884.195 | F73: 6583003.696 | G73: 6620363.797 | H73: 6674801.632 | I73: 6743623.694 | J73: 6808528.445
C74: ˂ = 11 kV ; Commercial & Industrial ; Simple Type | D74: 624773.8934 | E74: 480479.8046 | F74: 351309.8708 | G74: 354992.2283 | H74: 359244.7172 | I74: 363395.7825 | J74: 367343.5742
C75: ˂ = 11 kV ; Residential ; Complex Type | D75: 0 | E75: 0 | F75: 0 | G75: 0 | H75: 0 | I75: 0 | J75: 0
C76: ˂ = 11 kV ; Commercial & Industrial ; Complex Type | D76: 0 | E76: 0 | F76: 0 | G76: 0 | H76: 0 | I76: 0 | J76: 0
C77: ˂ = 11 kV ; Subdivision ; Complex Type | D77: 0 | E77: 0 | F77: 0 | G77: 0 | H77: 0 | I77: 0 | J77: 0
C78: > 11 kV & < = 22 kV ; Commercial & Industrial | D78: 0 | E78: 0 | F78: 0 | G78: 0 | H78: 0 | I78: 0 | J78: 0
C79: > 11 kV & < = 22 kV ; Subdivision | D79: 0 | E79: 0 | F79: 0 | G79: 0 | H79: 0 | I79: 0 | J79: 0
C80: > 22 kV & < = 33 kV ; Commercial & Industrial | D80: 0 | E80: 0 | F80: 0 | G80: 0 | H80: 0 | I80: 0 | J80: 0
C81: > 22 kV & < = 33 kV ; Subdivision | D81: 0 | E81: 0 | F81: 0 | G81: 0 | H81: 0 | I81: 0 | J81: 0
C82: > 33 kV & < = 66 kV ; Commercial & Industrial | D82: 0 | E82: 0 | F82: 0 | G82: 0 | H82: 0 | I82: 0 | J82: 0
C83: > 33 kV & < = 66 kV ; Subdivision | D83: 0 | E83: 0 | F83: 0 | G83: 0 | H83: 0 | I83: 0 | J83: 0
C84: > 66 kV & < = 132 kV ; Commercial & Industrial | D84: 0 | E84: 0 | F84: 0 | G84: 0 | H84: 0 | I84: 0 | J84: 0
C85: > 66 kV & < = 132 kV ; Subdivision | D85: 0 | E85: 0 | F85: 0 | G85: 0 | H85: 0 | I85: 0 | J85: 0
C86: > 132 kV ; Commercial & Industrial | D86: 0 | E86: 0 | F86: 0 | G86: 0 | H86: 0 | I86: 0 | J86: 0
C87: > 132 kV ; Subdivision | D87: 0 | E87: 0 | F87: 0 | G87: 0 | H87: 0 | I87: 0 | J87: 0
C88: Other | D88: 0 | E88: 0 | F88: 0 | G88: 0 | H88: 0 | I88: 0 | J88: 0
B89: TRANSFORMERS BY: Mounting type; Highest operating voltage; Ampere rating; Number of phases (at LV) | C89: Pole Mounted ; < = 22kV ; < = 60 kVA ; Single Phase | D89: 6001439.311 | E89: 4522685.794 | F89: 1746052.022 | G89: 1804230.246 | H89: 1835257.669 | I89: 1920206.337 | J89: 1959361.642
C90: Pole Mounted ; < = 22kV ; > 60 kVA and < = 600 kVA ; Single Phase | D90: 95915.90213 | E90: 72282.24188 | F90: 27905.66499 | G90: 28835.47807 | H90: 29331.36299 | I90: 30689.02534 | J90: 31314.81128
C91: Pole Mounted ; < = 22kV ; > 600 kVA ; Single Phase | D91: 1245.661067 | E91: 938.730414 | F91: 362.4112337 | G91: 374.4867282 | H91: 380.9267921 | I91: 398.5587706 | J91: 406.6858608
C92: Pole Mounted ; < = 22kV ; < = 60 kVA ; Multiple Phase | D92: 1003535.697 | E92: 756264.6898 | F92: 291967.5501 | G92: 301695.8704 | H92: 306884.1469 | I92: 321088.9096 | J92: 327636.2966
C93: Pole Mounted ; < = 22kV ; > 60 kVA and < = 600 kVA ; Multiple Phase | D93: 2032607.445 | E93: 1531773.353 | F93: 591364.5306 | G93: 611068.7188 | H93: 621577.293 | I93: 650348.274 | J93: 663609.6534
C94: Pole Mounted ; < = 22kV ; > 600 kVA ; Multiple Phase | D94: 3736.9832 | E94: 2816.191242 | F94: 1087.233701 | G94: 1123.460185 | H94: 1142.780376 | I94: 1195.676312 | J94: 1220.057582
C95: Kiosk Mounted ; < = 22kV ; < = 60 kVA ; Single Phase | D95: 0 | E95: 2540.521698 | F95: 11275.16813 | G95: 11289.02744 | H95: 11342.26758 | I95: 11445.94461 | J95: 11542.74063
C96: Kiosk Mounted ; < = 22kV ; > 60 kVA and < = 600 kVA ; Single Phase | D96: 0 | E96: 24433.84104 | F96: 108440.5876 | G96: 108573.8816 | H96: 109085.9265 | I96: 110083.0555 | J96: 111014.0055
C97: Kiosk Mounted ; < = 22kV ; > 600 kVA ; Single Phase | D97: 0 | E97: 3810.782547 | F97: 16912.75219 | G97: 16933.54116 | H97: 17013.40138 | I97: 17168.91691 | J97: 17314.11095
C98: Kiosk Mounted ; < = 22kV ; < = 60 kVA ; Multiple Phase | D98: 0 | E98: 261.5242925 | F98: 1160.679072 | G98: 1162.105766 | H98: 1167.586369 | I98: 1178.259004 | J98: 1188.2233
C99: Kiosk Mounted ; < = 22kV ; > 60 kVA and < = 600 kVA ; Multiple Phase | D99: 0 | E99: 114809.1644 | F99: 509538.1126 | G99: 510164.4313 | H99: 512570.4159 | I99: 517255.7026 | J99: 521630.0288
C100: Kiosk Mounted ; < = 22kV ; > 600 kVA ; Multiple Phase | D100: 0 | E100: 12553.16604 | F100: 55712.59546 | G100: 55781.07677 | H100: 56044.14571 | I100: 56556.43218 | J100: 57034.71841
C101: Ground Outdoor / Indoor Chamber Mounted; ˂ 22 kV ; < = 60 kVA ; Single Phase | D101: 0 | E101: 0 | F101: 0 | G101: 0 | H101: 0 | I101: 0 | J101: 0
C102: Ground Outdoor / Indoor Chamber Mounted; ˂ 22 kV ; > 60 kVA and < = 600 kVA ; Single Phase | D102: 0 | E102: 0 | F102: 0 | G102: 0 | H102: 0 | I102: 0 | J102: 0
C103: Ground Outdoor / Indoor Chamber Mounted; ˂ 22 kV ; > 600 kVA ; Single Phase | D103: 0 | E103: 0 | F103: 0 | G103: 0 | H103: 0 | I103: 0 | J103: 0
C104: Ground Outdoor / Indoor Chamber Mounted; ˂ 22 kV ; < = 60 kVA ; Multiple Phase | D104: 0 | E104: 0 | F104: 0 | G104: 0 | H104: 0 | I104: 0 | J104: 0
C105: Ground Outdoor / Indoor Chamber Mounted; ˂ 22 kV ; > 60 kVA and < = 600 kVA ; Multiple Phase | D105: 0 | E105: 0 | F105: 0 | G105: 0 | H105: 0 | I105: 0 | J105: 0
C106: Ground Outdoor / Indoor Chamber Mounted; ˂ 22 kV ; > 600 kVA ; Multiple Phase | D106: 0 | E106: 0 | F106: 0 | G106: 0 | H106: 0 | I106: 0 | J106: 0
C107: Ground Outdoor / Indoor Chamber Mounted; > = 22 kV & < = 33 kV ; < = 15 MVA | D107: 0 | E107: 0 | F107: 0 | G107: 0 | H107: 0 | I107: 0 | J107: 0
C108: Ground Outdoor / Indoor Chamber Mounted; > = 22 kV & < = 33 kV ; > 15 MVA and < = 40 MVA | D108: 0 | E108: 0 | F108: 0 | G108: 0 | H108: 0 | I108: 0 | J108: 0
C109: Ground Outdoor / Indoor Chamber Mounted; > = 22 kV & < = 33 kV ; > 40 MVA | D109: 0 | E109: 0 | F109: 0 | G109: 0 | H109: 0 | I109: 0 | J109: 0
C110: Ground Outdoor / Indoor Chamber Mounted; > 33 kV & < = 66 kV ; < = 15 MVA | D110: 0 | E110: 0 | F110: 0 | G110: 0 | H110: 3120704.524 | I110: 3149230.156 | J110: 7645557.696
C111: Ground Outdoor / Indoor Chamber Mounted; > 33 kV & < = 66 kV ; > 15 MVA and < = 40 MVA | D111: 9543698.078 | E111: 8689336.009 | F111: 4366111.911 | G111: 8742928.478 | H111: 8784131.938 | I111: 4432212.82 | J111: 0
C112: Ground Outdoor / Indoor Chamber Mounted; > 33 kV & < = 66 kV ; > 40 MVA | D112: 0 | E112: 0 | F112: 0 | G112: 0 | H112: 0 | I112: 0 | J112: 0
C113: Ground Outdoor / Indoor Chamber Mounted; > 66 kV & < = 132 kV ; < = 100 MVA | D113: 0 | E113: 0 | F113: 0 | G113: 0 | H113: 0 | I113: 0 | J113: 0
C114: Ground Outdoor / Indoor Chamber Mounted; > 66 kV & < = 132 kV ; > 100 MVA | D114: 0 | E114: 0 | F114: 0 | G114: 0 | H114: 0 | I114: 0 | J114: 0
C115: Ground Outdoor / Indoor Chamber Mounted; > 132 kV ; < = 100 MVA | D115: 0 | E115: 0 | F115: 0 | G115: 0 | H115: 0 | I115: 0 | J115: 0
C116: Ground Outdoor / Indoor Chamber Mounted; > 132 kV ; > 100 MVA | D116: 0 | E116: 0 | F116: 0 | G116: 0 | H116: 0 | I116: 0 | J116: 0
C117: Other | D117: 0 | E117: -87287 | F117: 95389.05888 | G117: 159177.1834 | H117: 159927.8784 | I117: 161389.7418 | J117: 162754.582
B118: SWITCHGEAR BY: Highest operating voltage; Switch function | C118: ˂ = 11 kV ; FUSE | D118: 12758459 | E118: 12853913 | F118: 20962814.53 | G118: 10650097.26 | H118: 9609500.951 | I118: 11154111.53 | J118: 10392389.73
C119: ˂ = 11 kV ; Switch | D119: 0 | E119: 230749 | F119: 1591523.951 | G119: 1593480.235 | H119: 2731109.53 | I119: 5306234.359 | J119: 8194383.453
C120: ˂ = 11 kV ; Circuit Breaker | D120: 0 | E120: 0 | F120: 0 | G120: 0 | H120: 0 | I120: 0 | J120: 0
C121: > 11 kV & < = 22 kV ; Switch | D121: 9263059.678 | E121: 7751397.149 | F121: 2765661.351 | G121: 3271346.319 | H121: 4576295.753 | I121: 7980577.454 | J121: 4050021.238
C122: > 11 kV & < = 22 kV ; Circuit Breaker | D122: 1545449.016 | E122: 986905.8628 | F122: 0 | G122: 1324835.103 | H122: 1711392.626 | I122: 2878393.445 | J122: 4063829.605
C123: > 22 kV & < = 33 kV ; Switch | D123: 0 | E123: 0 | F123: 0 | G123: 0 | H123: 0 | I123: 0 | J123: 0
C124: > 22 kV & < = 33 kV ; Circuit Breaker | D124: 0 | E124: 0 | F124: 0 | G124: 0 | H124: 0 | I124: 0 | J124: 0
C125: > 33 kV & < = 66 kV ; Switch | D125: 391269 | E125: 823449 | F125: 0 | G125: 3410843.593 | H125: 4283661.826 | I125: 4322817.78 | J125: 4359374.97
C126: > 33 kV & < = 66 kV ; Circuit Breaker | D126: 20152239.2 | E126: 11314006 | F126: 4362508.789 | G126: 3275903.353 | H126: 4388470.439 | I126: 4428584.424 | J126: 7815563.107
C127: > 66 kV & < = 132 kV ; Switch | D127: 0 | E127: 0 | F127: 0 | G127: 0 | H127: 0 | I127: 0 | J127: 0
C128: > 66 kV & < = 132 kV ; Circuit Breaker | D128: 0 | E128: 0 | F128: 0 | G128: 0 | H128: 0 | I128: 0 | J128: 0
C129: > 132 kV ; Switch | D129: 0 | E129: 0 | F129: 0 | G129: 0 | H129: 0 | I129: 0 | J129: 0
C130: > 132 kV ; Circuit Breaker | D130: 0 | E130: 0 | F130: 0 | G130: 0 | H130: 0 | I130: 0 | J130: 0
C131: Other | D131: 2577 | E131: -1439834 | F131: 0 | G131: 0 | H131: 0 | I131: 0 | J131: 0
B132: PUBLIC LIGHTING BY: Asset type ; Lighting obligation | C132: Luminaires ; Major Road
C133: Luminaires ; Minor Road
C134: Brackets ; Major Road
C135: Brackets ; Minor Road
C136: Lamps ; Major Road
C137: Lamps ; Minor Road
C138: Poles / Columns ; Major Road
C139: Poles / Columns ; Minor Road
C140: Other
B141: SCADA, NETWORK CONTROL AND PROTECTION SYSTEMS BY: Function | C141: Field Devices | D141: 3370459.6 | E141: 9724724 | F141: 8043885.919 | G141: 12517693.71 | H141: 14674982.12 | I141: 22201416.29 | J141: 22010929.67
C142: Local Network Wiring Assets | D142: 19814 | E142: 0 | F142: 0 | G142: 0 | H142: 0 | I142: 0 | J142: 0
C143: Communications Network Assets | D143: 3487601 | E143: 3732896 | F143: 3750208.177 | G143: 3601643.724 | H143: 4695344.154 | I143: 8273316.873 | J143: 11624598.38
C144: Master Station Assets | D144: 0 | E144: 0 | F144: 7977286.84 | G144: 7987092.434 | H144: 8024760.332 | I144: 8098112.796 | J144: 8166596.887
C145: Communications Site Infrastructure | D145: 0 | E145: 0 | F145: 0 | G145: 0 | H145: 0 | I145: 0 | J145: 0
C146: Communications Linear Assets | D146: 0 | E146: 0 | F146: 0 | G146: 0 | H146: 0 | I146: 0 | J146: 0
C147: AFLC | D147: 0 | E147: 0 | F147: 0 | G147: 0 | H147: 0 | I147: 0 | J147: 0
C148: Other | D148: 0 | E148: -722535 | F148: 0 | G148: 0 | H148: 0 | I148: 0 | J148: 0
B149: OTHER: | C149: Zone Substation Batteries | D149: 1716386.513 | E149: 1866346.058 | F149: 3926213.663 | G149: 5628817.066 | H149: 5266105.18 | I149: 6099873.513 | J149: 9075806.668
C150: Zone Substation Protection Relays | D150: 2205259.34 | E150: 2344928.939 | F150: 6664665.574 | G150: 10679446.66 | H150: 13732731.56 | I150: 17281033.52 | J150: 14363832.59
C151: Zone Substation Property | D151: 20578398.09 | E151: 15338438.13 | F151: 5527524.419 | G151: 7878526.67 | H151: 9107781.71 | I151: 13048303.76 | J151: 10943610.86
C152: Zone Substation Current transformers | D152: 575888.2 | E152: 0 | F152: 0 | G152: 1564767.619 | H152: 1572147.214 | I152: 1586517.845 | J152: 1599934.704
C153: Zone Substation Voltage transformers | D153: 495312.8133 | E153: 542134.2763 | F153: 782620.513 | G153: 644244.6786 | H153: 863230.3525 | I153: 911200.9676 | J153: 960495.5492
C154: Zone Substation Surge Arresters | D154: 0 | E154: 174646 | F154: 947346.9162 | G154: 948511.3846 | H154: 605323.7214 | I154: 610856.8444 | J154: 616022.7364
C155: Reactive Plant | D155: 985520 | E155: 299294 | F155: 671158.2237 | G155: 1284505.928 | H155: 675152.3417 | I155: 681323.7518 | J155: 687085.5681
C156: Power Transformer Bushings | D156: 0 | E156: 113245 | F156: 1025651.165 | G156: 1026911.884 | H156: 1547632.35 | I156: 1561778.896 | J156: 1574986.542
C157: Line Surge Arresters | D157: 6972438 | E157: 6032196 | F157: 956468.7149 | G157: 957644.3957 | H157: 962160.7391 | I157: 970955.6261 | J157: 979166.8002
C158: NERs & NEDs | D158: 0 | E158: 13338 | F158: 112354.5925 | G158: 112492.6975 | H158: 113023.2239 | I158: 114056.3429 | J158: 0
C159: ZSS - SOCI | D159: 1925732 | E159: 4350068 | F159: 5698062.029 | G159: 6280707.186 | H159: 6310327.607 | I159: 1324619.879 | J159: 1335821.919
C160: Upgrade oil control | D160: 0 | E160: 0 | F160: 3459392.328 | G160: 5712448.886 | H160: 6349674.13 | I160: 7547746.335 | J160: 6461903.762
C161: Capitalised insurance costs - Repex major projects | D161: 0 | E161: 0 | F161: 230672.8022 | G161: 279310.0988 | H161: 314415.9128 | I161: 320879.5085 | J161: 321198.9625
C162: SAPS | D162: 959345 | E162: 0 | F162: 0 | G162: 0 | H162: 0 | I162: 0 | J162: 0
B193: ASSET REPLACEMENTS
D194: VOLUMES (0's)
B195: ASSET GROUP | C195: ASSET CATEGORY | D195: =CRCP_y4 -> 2024-25 | E195: =CRCP_y5 -> 2025-26 | F195: =FRCP_y1 -> 2026-27 | G195: =FRCP_y2 -> 2027-28 | H195: =FRCP_y3 -> 2028-29 | I195: =FRCP_y4 -> 2029-30 | J195: =FRCP_y5 -> 2030-31
B196: POLES BY: HIGHEST OPERATING VOLTAGE; MATERIAL TYPE | C196: ˂ = 1 kV; wood | D196: 441 | E196: 429 | F196: 705.3977059 | G196: 685.6871035 | H196: 668.1236312 | I196: 651.2712185 | J196: 635.8548764
C197: > 1 kV & < = 11 kV; wood | D197: 8 | E197: 7 | F197: 7.249080115 | G197: 7.10669841 | H197: 6.953247984 | I197: 6.812377942 | J197: 6.681064957
C198: ˃ 11 kV & < = 22 kV; wood | D198: 917 | E198: 819 | F198: 817.3365068 | G198: 802.8963882 | H198: 787.312616 | I198: 773.299876 | J198: 760.003411
C199: > 22 kV & < = 66 kV; wood | D199: 57 | E199: 66 | F199: 49.4686128 | G199: 50.17678679 | H199: 50.97553014 | I199: 50.97553014 | J199: 51.37490182
C200: > 66 kV & < = 132 kV; wood | D200: 0 | E200: 0 | F200: 0 | G200: 0 | H200: 0 | I200: 0 | J200: 0
C201: > 132 kV; wood | D201: 0 | E201: 0 | F201: 0 | G201: 0 | H201: 0 | I201: 0 | J201: 0
C202: ˂ = 1 kV; concrete | D202: 185 | E202: 181 | F202: 290.858797 | G202: 283.3270823 | H202: 276.6824321 | I202: 270.3228085 | J202: 264.5652226
C203: > 1 kV & < = 11 kV; concrete | D203: 2 | E203: 2 | F203: 2.425892366 | G203: 2.382352931 | H203: 2.335375068 | I203: 2.292995746 | J203: 2.252894738
C204: ˃ 11 kV & < = 22 kV; concrete | D204: 712 | E204: 632 | F204: 942.7508778 | G204: 1401.652491 | H204: 1531.733485 | I204: 1653.204767 | J204: 910.9270001
C205: > 22 kV & < = 66 kV; concrete | D205: 57 | E205: 65 | F205: 75.183393 | G205: 76.47231906 | H205: 77.6677758 | I205: 77.6677758 | J205: 78.26550418
C206: > 66 kV & < = 132 kV; concrete | D206: 0 | E206: 0 | F206: 0 | G206: 0 | H206: 0 | I206: 0 | J206: 0
C207: > 132 kV; concrete | D207: 0 | E207: 0 | F207: 0 | G207: 0 | H207: 0 | I207: 0 | J207: 0
C208: ˂ = 1 kV; steel | D208: 300 | E208: 323 | F208: 296.5321579 | G208: 309.78105 | H208: 323.9950506 | I208: 338.2128029 | J208: 353.3919119
C209: > 1 kV & < = 11 kV; steel | D209: 0 | E209: 0 | F209: 0 | G209: 0 | H209: 0 | I209: 0 | J209: 0
C210: ˃ 11 kV & < = 22 kV; steel | D210: 0 | E210: 0 | F210: 0.1190024453 | G210: 0.1165092433 | H210: 0.1138242567 | I210: 0.1113310547 | J210: 0.1090296376
C211: > 22 kV & < = 66 kV; steel | D211: 58 | E211: 67 | F211: 0.09859835669 | G211: 0.09942000967 | H211: 0.1010633156 | I211: 0.1010633156 | J211: 0.1018849686
C212: > 66 kV & < = 132 kV; steel | D212: 0 | E212: 0 | F212: 0 | G212: 0 | H212: 0 | I212: 0 | J212: 0
C213: > 132 kV; steel | D213: 0 | E213: 0 | F213: 0 | G213: 0 | H213: 0 | I213: 0 | J213: 0
C214: ˂ = 1 kV; composite pole | D214: 0 | E214: 0 | F214: 0.2290572876 | G214: 0.2225526181 | H214: 0.2167448776 | I214: 0.2111694466 | J214: 0.2060586349
C215: > 1 kV & < = 11 kV; composite pole | D215: 0 | E215: 0 | F215: 0 | G215: 0 | H215: 0 | I215: 0 | J215: 0
C216: ˃ 11 kV & < = 22 kV; composite pole | D216: 0 | E216: 0 | F216: 0 | G216: 0 | H216: 0 | I216: 0 | J216: 0
C217: > 22 kV & < = 66 kV; composite pole | D217: 17 | E217: 16 | F217: 13.35031823 | G217: 13.07924567 | H217: 12.78922359 | I217: 12.51628367 | J217: 12.26623894
C218: > 66 kV & < = 132 kV; composite pole | D218: 0 | E218: 0 | F218: 0 | G218: 0 | H218: 0 | I218: 0 | J218: 0
C219: > 132 kV; composite pole | D219: 0 | E219: 0 | F219: 0 | G219: 0 | H219: 0 | I219: 0 | J219: 0
C220: ˂ = 1 kV; pole - other technology | D220: 0 | E220: 0 | F220: 0 | G220: 0 | H220: 0 | I220: 0 | J220: 0
C221: > 1 kV & < = 11 kV; pole - other technology | D221: 0 | E221: 0 | F221: 0 | G221: 0 | H221: 0 | I221: 0 | J221: 0
C222: ˃ 11 kV & < = 22 kV; pole - other technology | D222: 0 | E222: 0 | F222: 0 | G222: 0 | H222: 0 | I222: 0 | J222: 0
C223: > 22 kV & < = 66 kV; pole - other technology | D223: 0 | E223: 0 | F223: 0 | G223: 0 | H223: 0 | I223: 0 | J223: 0
C224: > 66 kV & < = 132 kV; pole - other technology | D224: 0 | E224: 0 | F224: 0 | G224: 0 | H224: 0 | I224: 0 | J224: 0
C225: > 132 kV; pole - other technology | D225: 0 | E225: 0 | F225: 0 | G225: 0 | H225: 0 | I225: 0 | J225: 0
C226: Other | D226: 0 | E226: 0 | F226: 0 | G226: 0 | H226: 0 | I226: 0 | J226: 0
B227: POLE TOP STRUCTURES BY: HIGHEST OPERATING VOLTAGE | C227: ˂ = 1 kV | D227: 2078 | E227: 1832 | F227: 949.2240031 | G227: 974.2240031 | H227: 1000.224003 | I227: 1027.601283 | J227: 1054.601283
C228: > 1 kV & < = 11 kV | D228: 0 | E228: 0 | F228: 0 | G228: 0 | H228: 0 | I228: 0 | J228: 0
C229: ˃ 11 kV & < = 22 kV | D229: 1340 | E229: 1037 | F229: 1464.720779 | G229: 1505.720779 | H229: 1545.720779 | I229: 1587.274643 | J229: 1628.274643
C230: > 22 kV & < = 66 kV | D230: 0 | E230: 0 | F230: 0 | G230: 0 | H230: 0 | I230: 0 | J230: 0
C231: > 66 kV & < = 132 kV | D231: 153 | E231: 85 | F231: 205.0552174 | G231: 210.0552174 | H231: 216.0552174 | I231: 221.1240735 | J231: 226.1240735
C232: > 132 kV | D232: 0 | E232: 0 | F232: 0 | G232: 0 | H232: 0 | I232: 0 | J232: 0
... 297 more rows

Sheet 2.3 Augex (b)
B1: =INDEX(dms_Worksheet_List,MATCH(dms_Model,dms_Model_List)) -> REGULATORY REPORTING STATEMENT
B2: =INDEX(dms_TradingNameFull_List,MATCH(dms_TradingName,dms_TradingName_List)) -> AusNet Electricity Services Pty Ltd
B3: =CONCATENATE("REGULATORY PERIOD FROM ", FRCP_y1," TO ",dms_MultiYear_FinalYear_Result) -> REGULATORY PERIOD FROM 2026-27 TO 2030-31
B4: 2.3 AUGEX PROJECT DATA
B5: TEMPLATE DATE - SEPTEMBER 2024 - FINAL RIN
B7: There are FOUR tables on this worksheet. These tables have been 'grouped' (and sub-grouped) for easy navigation. See the Instructions sheet on how to group or ungroup tables.
B9: NOTE: DNSP must provide expenditure information on an 'as incurred' basis.
B10: 2.3.3 - AUGEX DATA - HV/LV FEEDERS AND DISTRIBUTION SUBSTATIONS
D11: VOLUMES
B12: PROJECT TYPE | C12: UNITS | D12: =CRCP_y4 -> 2024-25 | E12: =CRCP_y5 -> 2025-26 | F12: =FRCP_y1 -> 2026-27 | G12: =FRCP_y2 -> 2027-28 | H12: =FRCP_y3 -> 2028-29 | I12: =FRCP_y4 -> 2029-30 | J12: =FRCP_y5 -> 2030-31
B13: DESCRIPTOR METRICS - UNITS ADDED
B14: HV feeder augmentations - overhead conductor | C14: Circuit Line Length in KM | D14: 2.920243793 | E14: 4.28326938 | F14: 0 | G14: 2.75 | H14: 53.9 | I14: 9.75 | J14: 0
B15: HV feeder augmentations - underground asset (cable) | C15: Circuit Line Length in KM | D15: 2.286800236 | E15: 3.354165654 | F15: 9 | G15: 9 | H15: 2.95 | I15: 15 | J15: 0
B16: LV feeder augmentations - overhead conductor | C16: Circuit Line Length in KM | D16: 2.742935242 | E16: 5.794462455 | F16: 0.9 | G16: 30.04875 | H16: 35.46 | I16: 24.51375 | J16: 11.3775
B17: LV feeder augmentations - underground asset (cable) | C17: Circuit Line Length in KM | D17: 5.100033431 | E17: 10.77384248 | F17: 0 | G17: 2.5875 | H17: 0.8625 | I17: 0.8625 | J17: 0
B18: Distribution Substation Augmentations - Pole Mounted | C18: Number | D18: 18.71434914 | E18: 27.19460987 | F18: 0 | G18: 0 | H18: 0 | I18: 0 | J18: 0
B19: Distribution Substation Augmentations - Ground Mounted | C19: Number | F19: 0 | G19: 0 | H19: 0 | I19: 0 | J19: 0
B20: Distribution Substation Augmentations - Indoor | C20: Number | D20: 0.08534972106 | E20: 0.1240252787 | F20: 0 | G20: 0 | H20: 0 | I20: 0 | J20: 0
B21: DESCRIPTOR METRICS - UNITS UPGRADED
B22: HV feeder augmentations - overhead conductor | C22: Circuit Line Length in KM | D22: 3.684432883 | E22: 5.404144197 | F22: 99 | G22: 12 | H22: 0 | I22: 3 | J22: 0
B23: HV feeder augmentations - underground asset (cable) | C23: Circuit Line Length in KM | E23: 0.09943441756 | F23: 0.03 | G23: 0.03 | H23: 0.03 | I23: 0.03 | J23: 0.03
B24: LV feeder augmentations - overhead conductor | C24: Circuit Line Length in KM | D24: 2.154733116 | E24: 4.551882943 | F24: 0 | G24: 0 | H24: 0 | I24: 0 | J24: 0
B25: LV feeder augmentations - underground asset (cable) | C25: Circuit Line Length in KM | D25: 0.08272498918 | E25: 0.1747568942 | F25: 0 | G25: 0 | H25: 0 | I25: 0 | J25: 0
B26: Distribution Substation Augmentations - Pole Mounted | C26: Number | D26: 7.197826591 | E26: 10.45946534 | F26: 33 | G26: 248 | H26: 293 | I26: 279 | J26: 100
B27: Distribution Substation Augmentations - Ground Mounted | C27: Number | F27: 5 | G27: 11 | H27: 7 | I27: 2 | J27: 0
B28: Distribution Substation Augmentations - Indoor | C28: Number | D28: 0.03282681579 | E28: 0.04770203026 | F28: 0 | G28: 0 | H28: 0 | I28: 0 | J28: 0
B30: COST METRICS
D31: =CONCATENATE("TOTAL DIRECT EXPENDITURE ($, real ", dms_DollarReal,")") -> TOTAL DIRECT EXPENDITURE ($, real June 2026)
B32: PROJECT TYPE | D32: =CRCP_y4 -> 2024-25 | E32: =CRCP_y5 -> 2025-26 | F32: =FRCP_y1 -> 2026-27 | G32: =FRCP_y2 -> 2027-28 | H32: =FRCP_y3 -> 2028-29 | I32: =FRCP_y4 -> 2029-30 | J32: =FRCP_y5 -> 2030-31
B33: HV feeder augmentations - overhead conductor | D33: 5122865.918 | E33: 7513966.736 | F33: 37541993.98 | G33: 20258082.43 | H33: 22521984.43 | I33: 10223408.85 | J33: 47729726.7
B34: HV feeder augmentations - underground asset (cable) | D34: 1647846.073 | E34: 2416979.242 | F34: 8755240.423 | G34: 7151358.217 | H34: 2154067.583 | I34: 31371895.51 | J34: 20669742.83
B35: HV feeder non-material projects | D35: 220876.0091 | E35: 323970.0223 | F35: 675018.5183 | G35: 338678.5591 | H35: 0 | I35: 9618005.561 | J35: 3873445.182
B36: LV feeder augmentations - overhead conductor | D36: 2773650.98 | E36: 5859349.583 | F36: 5733676.233 | G36: 5929957.287 | H36: 5962730.805 | I36: 7588961.814 | J36: 11286893.35
B37: LV feeder augmentations - underground asset (cable) | D37: 801924.3074 | E37: 1694068.537 | F37: 209679.4242 | G37: 526395.2691 | H37: 148809.4663 | I37: 277189.3216 | J37: 0
B38: LV feeder non-material projects | D38: 26269.71245 | E38: 55494.88015 | F38: 0 | G38: 0 | H38: 0 | I38: 0 | J38: 0
B39: Distribution substation augmentations - pole mounted | D39: 2444385.995 | E39: 3552040.363 | F39: 10194478.19 | G39: 9913967.954 | H39: 9969383.206 | I39: 12970551.32 | J39: 19593464.69
B40: Distribution substation augmentations - ground mounted | D40: 0 | E40: 0 | F40: 0 | G40: 1173340.965 | H40: 518036.8088 | I40: 589833.0557 | J40: 0
B41: Distribution substation augmentations - indoor | D41: 11148.00527 | E41: 16199.63655 | F41: 0 | G41: 0 | H41: 0 | I41: 0 | J41: 0
B45: 2.3.4 - AUGEX - TOTAL EXPENDITURE
D46: =CONCATENATE("TOTAL DIRECT EXPENDITURE ($, real ", dms_DollarReal,")") -> TOTAL DIRECT EXPENDITURE ($, real June 2026)
D47: =CRCP_y4 -> 2024-25 | E47: =CRCP_y5 -> 2025-26 | F47: =FRCP_y1 -> 2026-27 | G47: =FRCP_y2 -> 2027-28 | H47: =FRCP_y3 -> 2028-29 | I47: =FRCP_y4 -> 2029-30 | J47: =FRCP_y5 -> 2030-31
B48: Subtransmission Substations, Switching Stations, Zone Substations | D48: 15444179.77 | E48: 12105333.95 | F48: 35577593.97 | G48: 40229423.44 | H48: 49792337.8 | I48: 15364190.56 | J48: 19069500.89
B49: Subtransmission Lines | D49: 10818702 | E49: 17041761 | F49: 23126178.04 | G49: 65394321.76 | H49: 70912658.63 | I49: 50616479.76 | J49: 47659726.48
B50: HV Feeders | D50: 6991588 | E50: 10254916 | F50: 53054325.67 | G50: 33794927.16 | H50: 30726085.43 | I50: 57315778.85 | J50: 78431229.5
B51: HV Feeders - Land Purchases and Easements | D51: 0 | E51: 0 | F51: 0 | G51: 0 | H51: 0 | I51: 0 | J51: 0
B52: Distribution Substations | D52: 3601845 | E52: 7608913 | F52: 10194478.19 | G52: 11087308.92 | H52: 10487420.01 | I52: 13560384.37 | J52: 19593464.69
B53: Distribution Substations - Land Purchases and Easements | D53: 0 | E53: 0 | F53: 0 | G53: 0 | H53: 0 | I53: 0 | J53: 0
B54: LV Feeders | D54: 2455534 | E54: 3568240 | F54: 10330512.96 | G54: 12318138.43 | H54: 9265622.931 | I54: 8444353.578 | J54: 11756648.2
B55: LV Feeders - Land Purchases and Easements | D55: 0 | E55: 0 | F55: 0 | G55: 0 | H55: 0 | I55: 0 | J55: 0
B56: Other Assets | D56: 13785524 | E56: 6412140 | F56: 12758316.57 | G56: 10470831.84 | H56: 22402552.96 | I56: 36385795.58 | J56: 41087597.91
B60: 2.3.5 - AUGEX - BY DRIVER
D61: =CONCATENATE("TOTAL DIRECT EXPENDITURE ($, real ", dms_DollarReal,")") -> TOTAL DIRECT EXPENDITURE ($, real June 2026)
D62: =CRCP_y4 -> 2024-25 | E62: =CRCP_y5 -> 2025-26 | F62: =FRCP_y1 -> 2026-27 | G62: =FRCP_y2 -> 2027-28 | H62: =FRCP_y3 -> 2028-29 | I62: =FRCP_y4 -> 2029-30 | J62: =FRCP_y5 -> 2030-31
B63: "Greenfield" driven augex (network expansion capex) | D63: 6735751 | E63: 12794932 | F63: 54996996.06 | G63: 85845396.75 | H63: 74749503.94 | I63: 40761980.86 | J63: 62303872.63
B64: Reinforcement driven augex (augmentation of the existing network) | D64: 46361621.77 | E64: 44196371.95 | F64: 90044409.33 | G64: 87449554.79 | H64: 118837173.8 | I64: 140925001.8 | J64: 155294295
B68: 2.3.6 - AUGEX - GREENFIELDS DRIVEN
D69: =CONCATENATE("TOTAL DIRECT EXPENDITURE ($, real ", dms_DollarReal,")") -> TOTAL DIRECT EXPENDITURE ($, real June 2026)
D70: =CRCP_y4 -> 2024-25 | E70: =CRCP_y5 -> 2025-26 | F70: =FRCP_y1 -> 2026-27 | G70: =FRCP_y2 -> 2027-28 | H70: =FRCP_y3 -> 2028-29 | I70: =FRCP_y4 -> 2029-30 | J70: =FRCP_y5 -> 2030-31
B71: Subtransmission Substations, Switching Stations, Zone Substations | D71: 287455 | E71: 429167 | F71: 29966916.66 | G71: 36651519.68 | H71: 36106464.35 | I71: 0 | J71: 0
B72: Subtransmission Lines | D72: 6230098 | E72: 7003487 | F72: 10159011.13 | G72: 39259081.94 | H72: 24480066.2 | I72: 0 | J72: 0
B73: HV Feeders | D73: 218198 | E73: 5362278 | F73: 14871068.28 | G73: 9934795.13 | H73: 0 | I73: 12142705.02 | J73: 28598961.97
B74: HV Feeders - Land Purchases and Easements | D74: 0 | E74: 0 | F74: 0 | G74: 0 | H74: 0 | I74: 0 | J74: 0
B75: Distribution Substations | D75: 0 | E75: 0 | F75: 0 | G75: 0 | H75: 0 | I75: 0 | J75: 0
B76: Distribution Substations - Land Purchases and Easements | D76: 0 | E76: 0 | F76: 0 | G76: 0 | H76: 0 | I76: 0 | J76: 0
B77: LV Feeders | D77: 0 | E77: 0 | F77: 0 | G77: 0 | H77: 0 | I77: 0 | J77: 0
B78: LV Feeders - Land Purchases and Easements | D78: 0 | E78: 0 | F78: 0 | G78: 0 | H78: 0 | I78: 0 | J78: 0
B79: Other Assets | D79: 0 | E79: 0 | F79: 0 | G79: 0 | H79: 14162973.39 | I79: 28619275.84 | J79: 33704910.66

Sheet 2.5 Connections
B1: =INDEX(dms_Worksheet_List,MATCH(dms_Model,dms_Model_List)) -> REGULATORY REPORTING STATEMENT
B2: =INDEX(dms_TradingNameFull_List,MATCH(dms_TradingName,dms_TradingName_List)) -> AusNet Electricity Services Pty Ltd
B3: =CONCATENATE("REGULATORY PERIOD FROM ", FRCP_y1," TO ",dms_MultiYear_FinalYear_Result) -> REGULATORY PERIOD FROM 2026-27 TO 2030-31
B4: 2.5 CONNECTIONS
B5: TEMPLATE DATE - SEPTEMBER 2024 - FINAL RIN
B7: There are THREE tables on this worksheet - each has been 'grouped' (and sub-grouped) for easy navigation. See the Instructions sheet on how to group or ungroup tables.
B9: 2.5.1 - DESCRIPTOR METRICS
B10: VOLUMES AND EXPENDITURE - ALL SERVICE CLASSIFICATIONS
B11: CONNECTION SUBCATEGORY | C11: DESCRIPTOR METRIC | D11: Unit of Measure | E11: =CONCATENATE("VOLUMES and EXPENDITURE (0's, real ", dms_DollarReal, ")") -> VOLUMES and EXPENDITURE (0's, real June 2026)
E12: =CRCP_y4 -> 2024-25 | F12: =CRCP_y5 -> 2025-26 | G12: =FRCP_y1 -> 2026-27 | H12: =FRCP_y2 -> 2027-28 | I12: =FRCP_y3 -> 2028-29 | J12: =FRCP_y4 -> 2029-30 | K12: =FRCP_y5 -> 2030-31 | Q12: DRAFT TEMPLATE ONLY
B13: RESIDENTIAL | C13: Underground connections | D13: 0's | E13: 15763.25556 | F13: 15893.59803 | G13: 16359.47087 | H13: 16374.97432 | I13: 16375.88508 | J13: 16388.76663 | K13: 16383.73571 | Q13: DO NOT USE FOR SUBMISSIONS
C14: Overhead connections | D14: 0's | E14: 805.1432995 | F14: 811.8008307 | G14: 835.596321 | H14: 836.3881941 | I14: 836.434713 | J14: 837.0926671 | K14: 836.8357014
C15: Distribution substations installed | D15: MVA | E15: 25.46063064 | F15: 26.92314407 | G15: 31.29062512 | H15: 31.72480161 | I15: 31.91413306 | J15: 32.24859148 | K15: 32.53873694
C16: Distribution substations installed | D16: Number of substations | E16: 127.3031532 | F16: 134.6157204 | G16: 156.4531256 | H16: 158.6240081 | I16: 159.5706653 | J16: 161.2429574 | K16: 162.6936847
C17: Distribution substations installed | D17: $ | E17: 2134415.562 | F17: 2257020.987 | G17: 2623155.654 | H17: 2659553.537 | I17: 2675425.571 | J17: 2703463.889 | K17: 2727787.363
C18: Augmentation HV | D18: km added | E18: 14.64283641 | F18: 15.48395245 | G18: 17.99576418 | H18: 18.24546637 | I18: 18.35435407 | J18: 18.54670672 | K18: 18.71357425
C19: Augmentation HV | D19: $ | E19: 884745.9638 | F19: 935567.6766 | G19: 1087335.764 | H19: 1102423.211 | I19: 1109002.397 | J19: 1120624.684 | K19: 1130707.114
C20: Augmentation LV | D20: km added | E20: 10.81436283 | F20: 11.43556311 | G20: 13.29064381 | H20: 13.4750596 | I20: 13.55547783 | J20: 13.69753852 | K20: 13.82077735
C21: Augmentation LV | D21: $ | E21: 716289.1747 | F21: 757434.3669 | G21: 880305.6123 | H21: 892520.3892 | I21: 897846.8899 | J21: 907256.2775 | K21: 915418.9997
C22: Mean days to connect residential customer with LV single phase connection | D22: 0's | E22: 10 | F22: 10 | G22: 10 | H22: 10 | I22: 10 | J22: 10 | K22: 10
C23: Volume of GSL breaches for residential customers | D23: 0's | E23: 6879.75 | F23: 6879.75 | G23: 6879.75 | H23: 6879.75 | I23: 6879.75 | J23: 6879.75 | K23: 6879.75
C24: Volume of customer complaints relating to connection services | D24: 0's | E24: 56 | F24: 56 | G24: 56 | H24: 56 | I24: 56 | J24: 56 | K24: 56
C25: GSL payments | D25: $ | E25: 664067.5 | F25: 664067.5 | G25: 664067.5 | H25: 664067.5 | I25: 664067.5 | J25: 664067.5 | K25: 664067.5
B26: COMMERCIAL/INDUSTRIAL | C26: Underground connections | D26: 0's | E26: 1839.044195 | F26: 1830.597825 | G26: 1973.766 | H26: 2052.644747 | I26: 2121.214133 | J26: 2209.526705 | K26: 2289.430585
C27: Overhead connections | D27: 0's | E27: 366.7886199 | F27: 365.1040316 | G27: 393.6582432 | H27: 409.3902344 | I27: 423.0660724 | J27: 440.679595 | K27: 456.6160437
C28: Distribution substations installed | D28: MVA | E28: 404.8706859 | F28: 400.4858505 | G28: 538.6801832 | H28: 550.9209162 | I28: 585.5415594 | J28: 551.1485949 | K28: 495.1245353
C29: Distribution substations installed | D29: Number of substations | E29: 404.8706859 | F29: 400.4858505 | G29: 538.6801832 | H29: 550.9209162 | I29: 585.5415594 | J29: 551.1485949 | K29: 495.1245353
C30: Distribution substations installed | D30: $ | E30: 19643311.87 | F30: 19430570.64 | G30: 26135413.62 | H30: 26729303.33 | I30: 28409010.25 | J30: 26740349.73 | K30: 24022202.65
C31: Augmentation HV | D31: km added | E31: 180.2531139 | F31: 178.3009344 | G31: 239.8266504 | H31: 245.2763663 | I31: 260.6898772 | J31: 245.3777315 | K31: 220.4351719
C32: Augmentation HV | D32: $ | E32: 10790576.07 | F32: 10673711.84 | G32: 14356854.41 | H32: 14683093.3 | I32: 15605799.47 | J32: 14689161.37 | K32: 13196013.31
C33: Augmentation LV | D33: km added | E33: 41.16426616 | F33: 40.71844843 | G33: 54.76902925 | H33: 56.01357673 | I33: 59.53354846 | J33: 56.03672542 | K33: 50.34061211
C34: Augmentation LV | D34: $ | E34: 3541104.175 | F34: 3502753.266 | G34: 4711436.793 | H34: 4818497.423 | I34: 5121298.56 | J34: 4820488.76 | K34: 4330487.784
B35: SUBDIVISION | C35: Underground connections | D35: 0's | E35: 310.7764711 | F35: 310.7764711 | G35: 319.2726537 | H35: 318.9864665 | I35: 319.0222399 | J35: 319.254767 | K35: 319.1474468
C36: Overhead connections | D36: 0's | E36: 138.3747446 | F36: 138.3747446 | G36: 142.1577115 | H36: 142.0302852 | I36: 142.0462135 | J36: 142.1497473 | K36: 142.1019625
C37: Distribution substations installed | D37: MVA | E37: 201.3708901 | F37: 203.4453145 | G37: 173.1666334 | H37: 173.5180948 | I37: 174.4611194 | J37: 176.3714411 | K37: 177.9778019
C38: Distribution substations installed | D38: Number of substations | E38: 566.7507772 | F38: 572.5891663 | G38: 487.37096 | H38: 488.3601351 | I38: 491.0142423 | J38: 496.3907706 | K38: 500.9118125
C39: Distribution substations installed | D39: $ | E39: 13301105.17 | F39: 13438126.64 | G39: 11438135.87 | H39: 11461350.88 | I39: 11523640.26 | J39: 11649822.3 | K39: 11755926.88
C40: Augmentation HV | D40: km added | E40: 143.3573891 | F40: 144.8341868 | G40: 123.2785753 | H40: 123.5287833 | I40: 124.2001293 | J40: 125.5601011 | K40: 126.7036809
C41: Augmentation HV | D41: $ | E41: 6297050.033 | F41: 6361919.16 | G41: 5415077.391 | H41: 5426067.91 | I41: 5455557.142 | J41: 5515294.631 | K41: 5565526.987
C42: Augmentation LV | D42: km added | E42: 450.7246643 | F42: 455.3678092 | G42: 387.5956085 | H42: 388.3822781 | I42: 390.4930322 | J42: 394.7688692 | K42: 398.3643563
C43: Augmentation LV | D43: $ | E43: 10786383.81 | F43: 10897499.86 | G43: 9275629.509 | H43: 9294455.46 | I43: 9344968.348 | J43: 9447294.274 | K43: 9533338.608
C44: Cost per lot | D44: $ | E44: 1647.950814 | F44: 1647.950814 | G44: 1647.950814 | H44: 1647.950814 | I44: 1647.950814 | J44: 1647.950814 | K44: 1647.950814
B45: EMBEDDED GENERATION | C45: Underground connections | D45: 0's | E45: 0 | F45: 0 | G45: 0 | H45: 0 | I45: 0 | J45: 0 | K45: 0
C46: Overhead connections | D46: 0's | E46: 8.5 | F46: 9.5 | G46: 9.5 | H46: 11.5 | I46: 2 | J46: 1 | K46: 1
C47: Distribution substations installed | D47: MVA | E47: 5.562098032 | F47: 11.51284737 | G47: 10.24014655 | H47: 5.118695504 | I47: 2.893173448 | J47: 3.202088025 | K47: 5.113963968
C48: Distribution substations installed | D48: Number of substations | E48: 11.12419606 | F48: 23.02569475 | G48: 20.4802931 | H48: 10.23739101 | I48: 5.786346896 | J48: 6.404176049 | K48: 10.22792794
C49: Distribution substations installed | D49: $ | E49: 500229.7015 | F49: 1035412.927 | G49: 920952.0259 | H49: 460352.1026 | I49: 260198.8102 | J49: 287981.1768 | K49: 459926.5698
C50: Augmentation HV | D50: km added | E50: 3.77240456 | F50: 7.808405691 | G50: 6.945216591 | H50: 3.471673844 | I50: 1.962248893 | J50: 2.171765293 | K50: 3.468464755
C51: Augmentation HV | D51: $ | E51: 2220013.764 | F51: 4595150.875 | G51: 4087174.688 | H51: 2043037.431 | I51: 1154759.38 | J51: 1278057.209 | K51: 2041148.921
C52: Augmentation LV | D52: km added | E52: 6.251749592e-06 | F52: 1.294033986e-05 | G52: 1.150983525e-05 | H52: 5.753369024e-06 | I52: 3.251901678e-06 | J52: 3.599118963e-06 | K52: 5.748050819e-06
C53: Augmentation LV | D53: $ | E53: -0.02304811683 | F53: -0.04770671962 | G53: -0.04243292596 | H53: -0.0212107538 | I53: -0.01198867752 | J53: -0.01326875191 | K53: -0.02119114735
B55: VOLUMES AND EXPENDITURE - STANDARD CONTROL SERVICES
B56: CONNECTION SUBCATEGORY | C56: DESCRIPTOR METRIC | D56: Unit of Measure | E56: =CONCATENATE("VOLUMES and EXPENDITURE (0's, real ", dms_DollarReal, ")") -> VOLUMES and EXPENDITURE (0's, real June 2026)
E57: =CRCP_y4 -> 2024-25 | F57: =CRCP_y5 -> 2025-26 | G57: =FRCP_y1 -> 2026-27 | H57: =FRCP_y2 -> 2027-28 | I57: =FRCP_y3 -> 2028-29 | J57: =FRCP_y4 -> 2029-30 | K57: =FRCP_y5 -> 2030-31
B58: RESIDENTIAL | C58: Underground connections | D58: 0's | E58: 1890.201305 | F58: 2020.543774 | G58: 2051.739782 | H58: 2081.884976 | I58: 2080.965515 | J58: 2081.950652 | K58: 2082.410383
C59: Overhead connections | D59: 0's | E59: 96.54623117 | F59: 103.2037623 | G59: 104.7971677 | H59: 106.3369005 | I59: 106.289937 | J59: 106.3402551 | K59: 106.3637368
C60: Distribution substations installed | D60: MVA | E60: 18.71039713 | F60: 20.05165777 | G60: 24.32045612 | H60: 24.70356597 | I60: 24.81998643 | J60: 25.06163505 | K60: 25.28138667
C61: Distribution substations installed | D61: Number of substations | E61: 93.55198567 | F61: 100.2582889 | G61: 121.6022806 | H61: 123.5178298 | I61: 124.0999321 | J61: 125.3081752 | K61: 126.4069334
C62: Distribution substations installed | D62: $ | E62: 1568529.994 | F62: 1680970.554 | G62: 2038832.453 | H62: 2070949.318 | I62: 2080709.078 | J62: 2100966.965 | K62: 2119389.182
C63: Augmentation HV | D63: km added | E63: 10.76066372 | F63: 11.53204525 | G63: 13.98710289 | H63: 14.2074358 | I63: 14.27439116 | J63: 14.41336734 | K63: 14.53975019
C64: Augmentation HV | D64: $ | E64: 650178.253 | F64: 696786.4833 | G64: 845125.3896 | H64: 858438.2922 | I64: 862483.8532 | J64: 870881.0388 | K64: 878517.3132
C65: Augmentation LV | D65: km added | E65: 7.947211761 | F65: 8.516910107 | G65: 10.33007549 | H65: 10.4928008 | I65: 10.54225021 | J65: 10.64489008 | K65: 10.73822923
C66: Augmentation LV | D66: $ | E66: 526383.4629 | F66: 564117.4252 | G66: 684212.4097 | H66: 694990.5182 | I66: 698265.7991 | J66: 705064.1496 | K66: 711246.4673
C67: Mean days to connect residential customer with LV single phase connection | D67: 0's | E67: 10 | F67: 10 | G67: 10 | H67: 10 | I67: 10 | J67: 10 | K67: 10
C68: Volume of GSL breaches for residential customers | D68: 0's | E68: 6879.75 | F68: 6879.75 | G68: 6879.75 | H68: 6879.75 | I68: 6879.75 | J68: 6879.75 | K68: 6879.75
C69: Volume of customer complaints relating to connection services | D69: 0's | E69: 56 | F69: 56 | G69: 56 | H69: 56 | I69: 56 | J69: 56 | K69: 56
C70: GSL payments | D70: $ | E70: 664067.5 | F70: 664067.5 | G70: 664067.5 | H70: 664067.5 | I70: 664067.5 | J70: 664067.5 | K70: 664067.5
B71: COMMERCIAL/INDUSTRIAL | C71: Underground connections | D71: 0's | E71: 488.2668355 | F71: 479.8204657 | G71: 580.6654709 | H71: 660.9698411 | I71: 729.3610243 | J71: 816.5152782 | K71: 896.9537659
C72: Overhead connections | D72: 0's | E72: 97.38249861 | F72: 95.6979103 | G72: 115.8109671 | H72: 131.8272919 | I72: 145.4675881 | J72: 162.8500897 | K72: 178.8931635
C73: Distribution substations installed | D73: MVA | E73: 395.9597142 | F73: 391.4148132 | G73: 529.4788751 | H73: 541.6521951 | I73: 576.1765885 | J73: 541.661106 | K73: 485.5441196
C74: Distribution substations installed | D74: Number of substations | E74: 395.9597142 | F74: 391.4148132 | G74: 529.4788751 | H74: 541.6521951 | I74: 576.1765885 | J74: 541.661106 | K74: 485.5441196
C75: Distribution substations installed | D75: $ | E75: 19210973.84 | F75: 18990466.62 | G75: 25688989.19 | H75: 26279608.19 | I75: 27954645.32 | J75: 26280040.53 | K75: 23557384.87
C76: Augmentation HV | D76: km added | E76: 176.2858462 | F76: 174.2624037 | G76: 235.7301215 | H76: 241.1498244 | I76: 256.5204838 | J76: 241.1537917 | K76: 216.16986
C77: Augmentation HV | D77: $ | E77: 10553081.67 | F77: 10431951.39 | G77: 14111622 | H77: 14436064.2 | I77: 15356205.14 | J77: 14436301.69 | K77: 12940676.96
C78: Augmentation LV | D78: km added | E78: 40.25826426 | F78: 39.79617224 | G78: 53.83350809 | H78: 55.07120151 | I78: 58.58138728 | J78: 55.07210751 | K78: 49.36654609
C79: Augmentation LV | D79: $ | E79: 3463166.502 | F79: 3423415.618 | G79: 4630959.762 | H79: 4737430.781 | I79: 5039390.093 | J79: 4737508.718 | K79: 4246694.98
B80: SUBDIVISION | C80: Underground connections | D80: 0's | E80: 310.7764711 | F80: 310.7764711 | G80: 319.2726537 | H80: 318.9864665 | I80: 319.0222399 | J80: 319.254767 | K80: 319.1474468
C81: Overhead connections | D81: 0's | E81: 138.3747446 | F81: 138.3747446 | G81: 142.1577115 | H81: 142.0302852 | I81: 142.0462135 | J81: 142.1497473 | K81: 142.1019625
C82: Distribution substations installed | D82: MVA | E82: 201.3708901 | F82: 203.4453145 | G82: 173.1666334 | H82: 173.5180948 | I82: 174.4611194 | J82: 176.3714411 | K82: 177.9778019
C83: Distribution substations installed | D83: Number of substations | E83: 566.7507772 | F83: 572.5891663 | G83: 487.37096 | H83: 488.3601351 | I83: 491.0142423 | J83: 496.3907706 | K83: 500.9118125
C84: Distribution substations installed | D84: $ | E84: 13301105.17 | F84: 13438126.64 | G84: 11438135.87 | H84: 11461350.88 | I84: 11523640.26 | J84: 11649822.3 | K84: 11755926.88
C85: Augmentation HV | D85: km added | E85: 143.3573891 | F85: 144.8341868 | G85: 123.2785753 | H85: 123.5287833 | I85: 124.2001293 | J85: 125.5601011 | K85: 126.7036809
C86: Augmentation HV | D86: $ | E86: 6297050.033 | F86: 6361919.16 | G86: 5415077.391 | H86: 5426067.91 | I86: 5455557.142 | J86: 5515294.631 | K86: 5565526.987
C87: Augmentation LV | D87: km added | E87: 450.7246643 | F87: 455.3678092 | G87: 387.5956085 | H87: 388.3822781 | I87: 390.4930322 | J87: 394.7688692 | K87: 398.3643563
C88: Augmentation LV | D88: $ | E88: 10786383.81 | F88: 10897499.86 | G88: 9275629.509 | H88: 9294455.46 | I88: 9344968.348 | J88: 9447294.274 | K88: 9533338.608
C89: Cost per lot | D89: $ | E89: 1647.950814 | F89: 1647.950814 | G89: 1647.950814 | H89: 1647.950814 | I89: 1647.950814 | J89: 1647.950814 | K89: 1647.950814
B90: EMBEDDED GENERATION | C90: Underground connections | D90: 0's | E90: 0 | F90: 0 | G90: 0 | H90: 0 | I90: 0 | J90: 0 | K90: 0
C91: Overhead connections | D91: 0's | E91: 8.5 | F91: 9.5 | G91: 9.5 | H91: 11.5 | I91: 2 | J91: 1 | K91: 1
C92: Distribution substations installed | D92: MVA | E92: 5.562098032 | F92: 11.51284737 | G92: 10.24014655 | H92: 5.118695504 | I92: 2.893173448 | J92: 3.202088025 | K92: 5.113963968
C93: Distribution substations installed | D93: Number of substations | E93: 11.12419606 | F93: 23.02569475 | G93: 20.4802931 | H93: 10.23739101 | I93: 5.786346896 | J93: 6.404176049 | K93: 10.22792794
C94: Distribution substations installed | D94: $ | E94: 500229.7015 | F94: 1035412.927 | G94: 920952.0259 | H94: 460352.1026 | I94: 260198.8102 | J94: 287981.1768 | K94: 459926.5698
C95: Augmentation HV | D95: km added | E95: 3.77240456 | F95: 7.808405691 | G95: 6.945216591 | H95: 3.471673844 | I95: 1.962248893 | J95: 2.171765293 | K95: 3.468464755
C96: Augmentation HV | D96: $ | E96: 2220013.764 | F96: 4595150.875 | G96: 4087174.688 | H96: 2043037.431 | I96: 1154759.38 | J96: 1278057.209 | K96: 2041148.921
C97: Augmentation LV | D97: km added | E97: 6.251749592e-06 | F97: 1.294033986e-05 | G97: 1.150983525e-05 | H97: 5.753369024e-06 | I97: 3.251901678e-06 | J97: 3.599118963e-06 | K97: 5.748050819e-06
C98: Augmentation LV | D98: $ | E98: -0.02304811683 | F98: -0.04770671962 | G98: -0.04243292596 | H98: -0.0212107538 | I98: -0.01198867752 | J98: -0.01326875191 | K98: -0.02119114735
B102: 2.5.2 - COST METRICS BY CONNECTION CLASSIFICATION
B103: EXPENDITURE - ALL SERVICE CLASSIFICATIONS INCLUDING CAPITAL CONTRIBUTIONS
B104: CONNECTION SUBCATEGORY | C104: CONNECTION CLASSICIATION | E104: =CONCATENATE("EXPENDITURE ($, real ", dms_DollarReal, ")") -> EXPENDITURE ($, real June 2026)
E105: =CRCP_y4 -> 2024-25 | F105: =CRCP_y5 -> 2025-26 | G105: =FRCP_y1 -> 2026-27 | H105: =FRCP_y2 -> 2027-28 | I105: =FRCP_y3 -> 2028-29 | J105: =FRCP_y4 -> 2029-30 | K105: =FRCP_y5 -> 2030-31
B106: RESIDENTIAL | C106: Simple connection LV | E106: 12158005.33 | F106: 12588748.83 | G106: 13621369.01 | H106: 13765299.82 | I106: 13878003.27 | J106: 14041296.5 | K106: 14173280.45
C107: Complex connection LV | E107: 11871328 | F107: 12668037.84 | G107: 15190492.74 | H107: 15423050.9 | I107: 15500119.79 | J107: 15652710.38 | K107: 15790785.4
C108: Complex connection HV | E108: 7204192.642 | F108: 7687681.19 | G108: 9218449.359 | H108: 9359578.795 | I108: 9406348.553 | J108: 9498949.144 | K108: 9582740.871
B109: COMMERCIAL/INDUSTRIAL | C109: Simple connection LV | E109: 903017.2598 | F109: 914164.6238 | G109: 932718.3316 | H109: 940276.6314 | I109: 950511.7658 | J109: 964132.2569 | K109: 975026.8159
C110: Complex connection HV (customer connected at LV, minor HV works) | E110: 8650633.741 | F110: 7442589.422 | G110: 9007480.106 | H110: 9268254.54 | I110: 9491070.73 | J110: 9933793.374 | K110: 10421097.31
C111: Complex connection HV (customer connected at LV, upstream asset works) | E111: 15114349.8 | F111: 13003660 | G111: 15737830.22 | H111: 16193454.18 | I111: 16582757.66 | J111: 17356280.75 | K111: 18207696.07
C112: Complex connection HV (customer connected at HV) | E112: 19735747.98 | F112: 16979688.84 | G112: 20549865.21 | H112: 21144801.79 | I112: 21653139.6 | J112: 22663176.87 | K112: 23774922.89
C113: Complex connection sub-transmission | E113: 814581.8276 | F113: 6493221.162 | G113: 12160951.28 | H113: 12083961.75 | I113: 14393091.13 | J113: 8860256.453 | K113: 981296.4859
B114: SUBDIVISION | C114: Complex connection LV | E114: 7236682.379 | F114: 7228144.192 | G114: 6943926.452 | H114: 7053625.506 | I114: 7110584.212 | J114: 7194099.114 | K114: 7263576.357
C115: Complex connection HV (no upstream asset works) | E115: 54967808.91 | F115: 54902955.24 | G115: 52744117.03 | H115: 53577360.26 | I115: 54010002.61 | J115: 54644358.37 | K115: 55172088.02
C116: Complex connection HV (with upstream asset works) | E116: 2864980.065 | F116: 2861599.823 | G116: 2749078.903 | H116: 2792508.417 | I116: 2815058.192 | J116: 2848121.482 | K116: 2875627.307
B117: EMBEDDED GENERATION | C117: Simple connection LV | E117: 0 | F117: 0 | G117: 0 | H117: 0 | I117: 0 | J117: 0 | K117: 0
C118: Complex connection HV (small capacity) | E118: 878566.8617 | F118: 875048.8722 | G118: 874088.1286 | H118: 874986.3688 | I118: 0 | J118: 0 | K118: 0
C119: Complex connection HV (large capacity) | E119: 18932882.44 | F119: 28743994.29 | G119: 25470684.17 | H119: 12293855.2 | I119: 7443252.434 | J119: 8237995.375 | K119: 13156668.77
B121: EXPENDITURE - STANDARD CONTROL SERVICES EXCLUDING CAPITAL CONTRIBUTIONS
E122: =CONCATENATE("EXPENDITURE ($, real ", dms_DollarReal, ")") -> EXPENDITURE ($, real June 2026)
E123: =CRCP_y4 -> 2024-25 | F123: =CRCP_y5 -> 2025-26 | G123: =FRCP_y1 -> 2026-27 | H123: =FRCP_y2 -> 2027-28 | I123: =FRCP_y3 -> 2028-29 | J123: =FRCP_y4 -> 2029-30 | K123: =FRCP_y5 -> 2030-31
B124: RESIDENTIAL | C124: Simple connection LV | E124: 1738865.672 | F124: 1880865.216 | G124: 1314326.54 | H124: 1334200.884 | I124: 1341006.439 | J124: 1351908.34 | K124: 1361653.697
C125: Complex connection LV | E125: 4777781.886 | F125: 5167945.924 | G125: 3611299.961 | H125: 3665907.562 | I125: 3684606.797 | J125: 3714561.328 | K125: 3741338.089
C126: Complex connection HV | E126: 2899428.026 | F126: 3136201.611 | G126: 2191540.88 | H126: 2224679.857 | I126: 2236027.61 | J126: 2254205.712 | K126: 2270455.364
B127: COMMERCIAL/INDUSTRIAL | C127: Simple connection LV | E127: 21040.08042 | F127: 17752.23976 | G127: 19649.63905 | H127: 19936.16449 | I127: 20260.43787 | J127: 20739.15841 | K127: 21194.21506
C128: Complex connection HV (customer connected at LV, minor HV works) | E128: 5654439.503 | F128: 4770845.157 | G128: 5280763.81 | H128: 5357766.404 | I128: 5444913.61 | J128: 5573567.888 | K128: 5695862.586
C129: Complex connection HV (customer connected at LV, upstream asset works) | E129: 9879412.203 | F129: 8335599.989 | G129: 9226527.652 | H129: 9361066.25 | I129: 9513329.47 | J129: 9738113.667 | K129: 9951786.434
C130: Complex connection HV (customer connected at HV) | E130: 12900163.89 | F130: 10884312.12 | G130: 12047651.86 | H130: 12223327.29 | I130: 12422146.86 | J130: 12715661.59 | K130: 12994667.43
C131: Complex connection sub-transmission | E131: 532446.9631 | F131: 3726334.438 | G131: 6524722.482 | H131: 6529244.044 | I131: 7835352.34 | J131: 4796134.121 | K131: 536347.5433
B132: SUBDIVISION | C132: Complex connection LV | E132: 2231645.486 | F132: 2231637.925 | G132: 1814347.453 | H132: 1816170.298 | I132: 1826145.518 | J132: 1846220.138 | K132: 1862999.338
C133: Complex connection HV (no upstream asset works) | E133: 16950952.96 | F133: 16950895.53 | G133: 13781274.19 | H133: 13795120.01 | I133: 13870888.98 | J133: 14023370.16 | K133: 14150820.25
C134: Complex connection HV (with upstream asset works) | E134: 883501.5127 | F134: 883498.5194 | G134: 718294.5184 | H134: 719016.1769 | I134: 722965.3354 | J134: 730912.8152 | K134: 737555.6482
B135: EMBEDDED GENERATION | C135: Simple connection LV | E135: 0 | F135: 0 | G135: 0 | H135: 0 | I135: 0 | J135: 0 | K135: 0
C136: Complex connection HV (small capacity) | E136: 666241.837 | F136: 663574.0471 | G136: 593603.4741 | H136: 594213.4795 | I136: 0 | J136: 0 | K136: 0
C137: Complex connection HV (large capacity) | E137: -3004481.798 | F137: 5476171.675 | G137: 2411392.125 | H137: 2351538.176 | I137: 2528031.773 | J137: 3541402.718 | K137: 5660057.262
B139: EXPENDITURE - STANDARD CONTROL SERVICES - TYPE 1 CAPITAL CONTRIBUTIONS
E140: =CONCATENATE("EXPENDITURE ($, real ", dms_DollarReal, ")") -> EXPENDITURE ($, real June 2026)
E141: =CRCP_y4 -> 2024-25 | F141: =CRCP_y5 -> 2025-26 | G141: =FRCP_y1 -> 2026-27 | H141: =FRCP_y2 -> 2027-28 | I141: =FRCP_y3 -> 2028-29 | J141: =FRCP_y4 -> 2029-30 | K141: =FRCP_y5 -> 2030-31
B142: RESIDENTIAL | C142: Simple connection LV | E142: 2272898.496 | F142: 2418483.513 | G142: 3900310.738 | H142: 3962580.368 | I142: 3980736.946 | J142: 4021647.803 | K142: 4059020.189
C143: Complex connection LV | E143: 6245113.373 | F143: 6645129.01 | G143: 10716661.04 | H143: 10887755.74 | I143: 10937643.54 | J143: 11050051.96 | K143: 11152737.93
C144: Complex connection HV | E144: 3789887.686 | F144: 4032639.779 | G144: 6503475.482 | H144: 6607305.417 | I144: 6637580.15 | J144: 6705795.933 | K144: 6768111.583
B145: COMMERCIAL/INDUSTRIAL | C145: Simple connection LV | E145: 7046.257163 | F145: 6352.30229 | G145: 10517.05247 | H145: 11149.5665 | I145: 11732.74687 | J145: 12508.27927 | K145: 13246.55143
C146: Complex connection HV (customer connected at LV, minor HV works) | E146: 1893654.114 | F146: 1707156.45 | G146: 2826416.809 | H146: 2996402.486 | I146: 3153129.934 | J146: 3361551.24 | K146: 3559959.001
C147: Complex connection HV (customer connected at LV, upstream asset works) | E147: 3308584.265 | F147: 2982736.354 | G147: 4938303.203 | H147: 5235301.443 | I147: 5509134.96 | J147: 5873287.764 | K147: 6219944.945
C148: Complex connection HV (customer connected at HV) | E148: 4320224.562 | F148: 3894744.649 | G148: 6448250.093 | H148: 6836059.194 | I148: 7193620.674 | J148: 7669117.674 | K148: 8121769.547
C149: Complex connection sub-transmission | E149: 178314.8236 | F149: 1925340.636 | G149: 4420739.219 | H149: 4362931.704 | I149: 5203474.13 | J149: 3173373.994 | K149: 335221.4411
B150: SUBDIVISION | C150: Complex connection LV | E150: 391438.9779 | F150: 418468.271 | G150: 441344.5453 | H150: 444099.8856 | I150: 446408.6316 | J150: 451218.1201 | K150: 455363.5936
C151: Complex connection HV (no upstream asset works) | E151: 2973260.648 | F151: 3178567.574 | G151: 3352329.335 | H151: 3373258.127 | I151: 3390794.714 | J151: 3427326.239 | K151: 3458814.093
C152: Complex connection HV (with upstream asset works) | E152: 154969.4749 | F152: 165670.288 | G152: 174726.9339 | H152: 175817.7646 | I152: 176731.79 | J152: 178635.8515 | K152: 180277.0316
B153: EMBEDDED GENERATION | C153: Simple connection LV | E153: 0 | F153: 0 | G153: 0 | H153: 0 | I153: 0 | J153: 0 | K153: 0
C154: Complex connection HV (small capacity) | E154: 212325.0247 | F154: 211474.8251 | G154: 280484.6545 | H154: 280772.8893 | I154: 0 | J154: 0 | K154: 0
C155: Complex connection HV (large capacity) | E155: 16435495.91 | F155: 23267822.62 | G155: 23059292.05 | H155: 9942317.024 | I155: 4915220.66 | J155: 4696592.657 | K155: 7496611.508
B159: 2.5.3 - VOLUMES BY CONNECTION CLASSIFICATION
B160: NEW CONNECTIONS - ALL
E161: VOLUMES
E162: =CRCP_y4 -> 2024-25 | F162: =CRCP_y5 -> 2025-26 | G162: =FRCP_y1 -> 2026-27 | H162: =FRCP_y2 -> 2027-28 | I162: =FRCP_y3 -> 2028-29 | J162: =FRCP_y4 -> 2029-30 | K162: =FRCP_y5 -> 2030-31
B163: RESIDENTIAL | C163: Simple connection LV | E163: 15189.34604 | F163: 15257.92808 | G163: 15304.56205 | H163: 15772.60228 | I163: 15767.99803 | J163: 15769.59276 | K163: 15782.44928
C164: Complex connection LV | E164: 872.0688001 | F164: 941.43078 | G164: 1006.348951 | H164: 1021.886387 | I164: 1036.900457 | J164: 1036.442511 | K164: 1036.933167
C165: Complex connection HV | E165: 377.0940789 | F165: 369.0400028 | G165: 394.4878664 | H165: 400.5785271 | I165: 406.4640286 | J165: 406.2845144 | K165: 406.4768511
B166: COMMERCIAL/INDUSTRIAL | C166: Simple connection LV | E166: 1690.153955 | F166: 1624.34618 | G166: 1624.274171 | H166: 1675.898245 | I166: 1674.872921 | J166: 1675.669732 | K166: 1677.794993
C167: Complex connection HV (customer connected at LV, minor HV works) | E167: 180.7888833 | F167: 182.6203238 | G167: 179.461234 | H167: 217.1790271 | I167: 247.214264 | J167: 272.793761 | K167: 305.0791487
C168: Complex connection HV (customer connected at LV, upstream asset works) | E168: 91.38332905 | F168: 96.13789096 | G168: 94.47483272 | H168: 114.3308324 | I168: 130.1424588 | J168: 143.6084238 | K168: 160.6046103
C169: Complex connection HV (customer connected at HV) | E169: 306.8199125 | F169: 283.2046582 | G169: 278.3055926 | H169: 336.797739 | I169: 383.3759009 | J169: 423.044173 | K169: 473.1118324
C170: Complex connection sub-transmission | E170: 22.34499614 | F170: 19.52376172 | G170: 19.18602649 | H170: 23.21839918 | I170: 26.42943723 | J170: 29.16411645 | K170: 33.61571593
B171: SUBDIVISION | C171: Complex connection LV | E171: 88.98916654 | F171: 152.0075011 | G171: 152.0075011 | H171: 156.163168 | I171: 156.0231877 | J171: 156.0406852 | K171: 156.1544193
C172: Complex connection HV (no upstream asset works) | E172: 177.1425319 | F172: 276.2685033 | G172: 276.2685033 | H172: 283.8212877 | I172: 283.5668781 | J172: 283.5986793 | K172: 283.8053871
C173: Complex connection HV (with upstream asset works) | E173: 13.86830155 | F173: 20.87521119 | G173: 20.87521119 | H173: 21.4459095 | I173: 21.42668598 | J173: 21.42908892 | K173: 21.44470803
B174: EMBEDDED GENERATION | C174: Simple connection LV | E174: 0 | F174: 0 | G174: 0 | H174: 0 | I174: 0 | J174: 0 | K174: 0
C175: Complex connection HV (small capacity) | E175: 0 | F175: 7.5 | G175: 7.5 | H175: 7.5 | I175: 7.5 | J175: 0 | K175: 0
C176: Complex connection HV (large capacity) | E176: 2 | F176: 1 | G176: 2 | H176: 2 | I176: 4 | J176: 2 | K176: 1
B178: NEW CONNECTIONS - STANDARD CONTROL SERVICES
E179: VOLUMES
E180: =CRCP_y4 -> 2024-25 | F180: =CRCP_y5 -> 2025-26 | G180: =FRCP_y1 -> 2026-27 | H180: =FRCP_y2 -> 2027-28 | I180: =FRCP_y3 -> 2028-29 | J180: =FRCP_y4 -> 2029-30 | K180: =FRCP_y5 -> 2030-31
B181: RESIDENTIAL | C181: Simple connection LV | E181: 628.162879 | F181: 676.2767536 | G181: 722.9107187 | H181: 734.072035 | I181: 744.8573912 | J181: 744.5284261 | K181: 744.8808887
C182: Complex connection LV | E182: 872.0688001 | F182: 941.43078 | G182: 1006.348951 | H182: 1021.886387 | I182: 1036.900457 | J182: 1036.442511 | K182: 1036.933167
C183: Complex connection HV | E183: 377.0940789 | F183: 369.0400028 | G183: 394.4878664 | H183: 400.5785271 | I183: 406.4640286 | J183: 406.2845144 | K183: 406.4768511
B184: COMMERCIAL/INDUSTRIAL | C184: Simple connection LV | E184: 2.337120978 | F184: 4.16269943 | G184: 4.09069024 | H184: 4.95044031 | I184: 5.635072014 | J184: 6.218138319 | K184: 6.954060598
C185: Complex connection HV (customer connected at LV, minor HV works) | E185: 180.7888833 | F185: 182.6203238 | G185: 179.461234 | H185: 217.1790271 | I185: 247.214264 | J185: 272.793761 | K185: 305.0791487
C186: Complex connection HV (customer connected at LV, upstream asset works) | E186: 91.38332905 | F186: 96.13789096 | G186: 94.47483272 | H186: 114.3308324 | I186: 130.1424588 | J186: 143.6084238 | K186: 160.6046103
C187: Complex connection HV (customer connected at HV) | E187: 306.8199125 | F187: 283.2046582 | G187: 278.3055926 | H187: 336.797739 | I187: 383.3759009 | J187: 423.044173 | K187: 473.1118324
C188: Complex connection sub-transmission | E188: 22.34499614 | F188: 19.52376172 | G188: 19.18602649 | H188: 23.21839918 | I188: 26.42943723 | J188: 29.16411645 | K188: 33.61571593
B189: SUBDIVISION | C189: Complex connection LV | E189: 88.98916654 | F189: 152.0075011 | G189: 152.0075011 | H189: 156.163168 | I189: 156.0231877 | J189: 156.0406852 | K189: 156.1544193
C190: Complex connection HV (no upstream asset works) | E190: 177.1425319 | F190: 276.2685033 | G190: 276.2685033 | H190: 283.8212877 | I190: 283.5668781 | J190: 283.5986793 | K190: 283.8053871
C191: Complex connection HV (with upstream asset works) | E191: 13.86830155 | F191: 20.87521119 | G191: 20.87521119 | H191: 21.4459095 | I191: 21.42668598 | J191: 21.42908892 | K191: 21.44470803
B192: EMBEDDED GENERATION | C192: Simple connection LV | E192: 0 | F192: 0 | G192: 0 | H192: 0 | I192: 0 | J192: 0 | K192: 0
C193: Complex connection HV (small capacity) | E193: 0 | F193: 7.5 | G193: 7.5 | H193: 7.5 | I193: 7.5 | J193: 0 | K193: 0
C194: Complex connection HV (large capacity) | E194: 2 | F194: 1 | G194: 2 | H194: 2 | I194: 4 | J194: 2 | K194: 1
B196: EXISTING CONNECTIONS - ALL
E197: VOLUMES
E198: =CRCP_y4 -> 2024-25 | F198: =CRCP_y5 -> 2025-26 | G198: =FRCP_y1 -> 2026-27 | H198: =FRCP_y2 -> 2027-28 | I198: =FRCP_y3 -> 2028-29 | J198: =FRCP_y4 -> 2029-30 | K198: =FRCP_y5 -> 2030-31
B199: RESIDENTIAL | C199: Simple connection LV | E199: 719149.4017 | F199: 733122.8777 | G199: 747564.394 | H199: 762001.306 | I199: 776439.8128 | J199: 790891.1761 | K199: 805336.9327
C200: Complex connection LV | E200: 59616.06904 | F200: 60517.33733 | G200: 61434.14305 | H200: 62365.96284 | I200: 63297.32468 | J200: 64229.17718 | K200: 65161.25866
C201: Complex connection HV | E201: 15618.60632 | F201: 15983.57336 | G201: 16354.63106 | H201: 16731.57427 | I201: 17108.33796 | J201: 17485.29399 | K201: 17862.33977
B202: COMMERCIAL/INDUSTRIAL | C202: Simple connection LV | E202: 76862.72724 | F202: 77312.74021 | G202: 77814.37726 | H202: 78314.98898 | I202: 78816.39752 | J202: 79319.93132 | K202: 79823.51676
C203: Complex connection HV (customer connected at LV, minor HV works) | E203: 6884.948882 | F203: 6964.095153 | G203: 7080.959218 | H203: 7227.858519 | I203: 7400.337317 | J203: 7605.101503 | K203: 7840.262914
C204: Complex connection HV (customer connected at LV, upstream asset works) | E204: 5144.386648 | F204: 5167.562163 | G204: 5210.593677 | H204: 5269.436817 | I204: 5341.745923 | J204: 5431.051215 | K204: 5536.358697
C205: Complex connection HV (customer connected at HV) | E205: 1399.141413 | F205: 1557.634983 | G205: 1774.6207 | H205: 2038.184579 | I205: 2341.416729 | J205: 2694.71654 | K205: 3095.155876
C206: Complex connection sub-transmission | E206: 122.8026207 | F206: 141.9886472 | G206: 165.2070464 | H206: 191.6364836 | I206: 220.8006001 | J206: 254.416316 | K206: 290.2817697
B207: SUBDIVISION | C207: Complex connection LV | E207: 5199.92059 | F207: 5351.928092 | G207: 5508.09126 | H207: 5664.114447 | I207: 5820.155132 | J207: 5976.309552 | K207: 6132.411478
C208: Complex connection HV (no upstream asset works) | E208: 5569.130396 | F208: 5845.398899 | G208: 6129.220187 | H208: 6412.787065 | I208: 6696.385744 | J208: 6980.191132 | K208: 7263.901115
C209: Complex connection HV (with upstream asset works) | E209: 89.79366601 | F209: 110.6688772 | G209: 132.1147867 | H209: 153.5414727 | I209: 174.9705616 | J209: 196.4152696 | K209: 217.8527689
B210: EMBEDDED GENERATION | C210: Simple connection LV | E210: 0 | F210: 0 | G210: 0 | H210: 0 | I210: 0 | J210: 0 | K210: 0
C211: Complex connection HV (small capacity) | E211: 41.5 | F211: 49 | G211: 56.5 | H211: 64 | I211: 64 | J211: 64 | K211: 64
C212: Complex connection HV (large capacity) | E212: 7.5 | F212: 9.5 | G212: 11.5 | H212: 15.5 | I212: 17.5 | J212: 18.5 | K212: 19.5

Sheet 2.6 Non-network
B1: =INDEX(dms_Worksheet_List,MATCH(dms_Model,dms_Model_List)) -> REGULATORY REPORTING STATEMENT
B2: =INDEX(dms_TradingNameFull_List,MATCH(dms_TradingName,dms_TradingName_List)) -> AusNet Electricity Services Pty Ltd
B3: =CONCATENATE("REGULATORY PERIOD FROM ", FRCP_y1," TO ",dms_MultiYear_FinalYear_Result) -> REGULATORY PERIOD FROM 2026-27 TO 2030-31
B4: 2.6 NON-NETWORK EXPENDITURE
B5: TEMPLATE DATE - SEPTEMBER 2024 - FINAL RIN
B7: There are THREE tables on this worksheet - each has been 'grouped' (and sub-grouped) for easy navigation. See the Instructions sheet on how to group or ungroup tables.
B9: 2.6.1 - NON-NETWORK EXPENDITURE
E10: =CONCATENATE("EXPENDITURE ($, real ", dms_DollarReal, ")") -> EXPENDITURE ($, real June 2026)
B11: SERVICE SUBCATEGORY | C11: ASSET CATEGORY | E11: =CRCP_y4 -> 2024-25 | F11: =CRCP_y5 -> 2025-26 | G11: =FRCP_y1 -> 2026-27 | H11: =FRCP_y2 -> 2027-28 | I11: =FRCP_y3 -> 2028-29 | J11: =FRCP_y4 -> 2029-30 | K11: =FRCP_y5 -> 2030-31
B12: OPEX
B13: IT & COMMUNICATIONS | C13: Total IT and communications | E13: ='3.2 Operating expenditure'!C28+'3.2 Operating expenditure'!C35 -> 50868799.83 | F13: ='3.2 Operating expenditure'!D28+'3.2 Operating expenditure'!D35 -> 43890656.56 | G13: ='3.2 Operating expenditure'!E28+'3.2 Operating expenditure'!E35 -> 49501191.89 | H13: ='3.2 Operating expenditure'!F28+'3.2 Operating expenditure'!F35 -> 53834572.5 | I13: ='3.2 Operating expenditure'!G28+'3.2 Operating expenditure'!G35 -> 56790606.14 | J13: ='3.2 Operating expenditure'!H28+'3.2 Operating expenditure'!H35 -> 59832848.34 | K13: ='3.2 Operating expenditure'!I28+'3.2 Operating expenditure'!I35 -> 60959006.49
B14: MOTOR VEHICLES | C14: Car | E14: 93729.80458 | F14: 197819.9932 | G14: 228162.8994 | H14: 260679.8904 | I14: 260223.7427 | J14: 275054.7384 | K14: 278956.1067
C15: Light commercial vehicle | E15: 811681.917 | F15: 2221152.568 | G15: 2789300.967 | H15: 3500636.218 | I15: 3564982.158 | J15: 3816034.165 | K15: 3744071.218
C16: Elevated work platform (LCV) | E16: 0 | F16: 0 | G16: 0 | H16: 0 | I16: 0 | J16: 0 | K16: 0
C17: Elevated work platform (HCV) | E17: 0 | F17: 2066717.736 | G17: 2262481.399 | H17: 2253958.676 | I17: 2051749.832 | J17: 1977262.941 | K17: 1679732.51
C18: Heavy commercial vehicle | E18: 65015.50814 | F18: 1182140.893 | G18: 1292621.427 | H18: 1296981.437 | I18: 1291557.725 | J18: 1302473.114 | K18: 1243022.662
B19: BUILDINGS AND PROPERTY | C19: Total buildings and property expenditure | E19: 5274324.585 | F19: 5424915.023 | G19: 6177267.935 | H19: 6167439.928 | I19: 6157189.21 | J19: 6225351.198 | K19: 6157189.21
B20: OTHER | C20: Other expenditure | E20: - | F20: - | G20: - | H20: - | I20: - | J20: - | K20: -
B21: OTHER - DNSP nominated | C21: General furniture and equipment | E21: 0 | F21: 0 | G21: 0 | H21: 0 | I21: 0 | J21: 0 | K21: 0
C22: Plant | E22: 0 | F22: 464184.5548 | G22: 516780.8883 | H22: 528211.0763 | I22: 534152.5946 | J22: 579447.4658 | K22: 591807.5173
B32: CAPEX
B33: IT & COMMUNICATIONS | C33: Total IT and communications | E33: 74822064.8 | F33: 66490120.57 | G33: 81492175.88 | H33: 89281461.51 | I33: 84716722.97 | J33: 66127821.87 | K33: 65057030.81
B34: MOTOR VEHICLES | C34: Car | E34: 120000 | F34: 302235 | G34: 735274.0771 | H34: 735274.0771 | I34: 735274.0771 | J34: 735274.0771 | K34: 735274.0771
C35: Light commercial vehicle | E35: 563470.2009 | F35: 1603605 | G35: 3506119.061 | H35: 5070725.366 | I35: 3506119.061 | J35: 3506119.061 | K35: 5123880.033
C36: Elevated work platform (LCV) | E36: 0 | F36: 0 | G36: 0 | H36: 0 | I36: 0 | J36: 0 | K36: 0
C37: Elevated work platform (HCV) | E37: 0 | F37: 0 | G37: 643041.2844 | H37: 1629798.234 | I37: 6845152.581 | J37: 709991.1508 | K37: 6527405.217
C38: Heavy commercial vehicle | E38: 500000 | F38: 421800.356 | G38: 2572165.138 | H38: 814899.1168 | I38: 977878.9402 | J38: 7691570.801 | K38: 725267.2463
B39: BUILDINGS AND PROPERTY | C39: Total buildings and property expenditure | E39: 9577478.04 | F39: 3074459.859 | G39: 73981666.96 | H39: 30865206.37 | I39: 19568733.82 | J39: 18694641.64 | K39: 30632857.35
B40: OTHER | C40: Other expenditure | E40: 270684 | F40: 7820556.709 | G40: 125948.0809 | H40: 127207.5618 | I40: 128479.6374 | J40: 129764.4337 | K40: 131062.0781
B41: OTHER - DNSP nominated | C41: General furniture and equipment | E41: 1146462.693 | F41: 737960.6969 | G41: 769838.3885 | H41: 777536.7724 | I41: 785312.1401 | J41: 793165.2615 | K41: 801096.9141
C42: Running Costs | E42: 0 | F42: 0 | G42: 14479603.2 | H42: 16257027.13 | I42: 15930938.99 | J42: 16516866.22 | K42: 15540308.72
C43: Plant | E43: 0 | F43: 1525484.286 | G43: 3252717.164 | H43: 766005.1698 | I43: 2064411.096 | J43: 3473040.046 | K43: 2417557.488
B55: 2.6.2 - ANNUAL DESCRIPTOR METRICS
B56: IT & COMMUNICATIONS
E57: VOLUMES
E58: =CRCP_y4 -> 2024-25 | F58: =CRCP_y5 -> 2025-26 | G58: =FRCP_y1 -> 2026-27 | H58: =FRCP_y2 -> 2027-28 | I58: =FRCP_y3 -> 2028-29 | J58: =FRCP_y4 -> 2029-30 | K58: =FRCP_y5 -> 2030-31
B59: Number of devices | E59: 1305.261006 | F59: 1340.181529 | G59: 1361.900391 | H59: 1361.900391 | I59: 1361.900391 | J59: 1361.900391 | K59: 1361.900391
B61: MOTOR VEHICLES
E62: VOLUMES or PER CENT
B63: ASSET CATEGORY | C63: DESCRIPTOR METRIC | D63: UNITS | E63: =CRCP_y4 -> 2024-25 | F63: =CRCP_y5 -> 2025-26 | G63: =FRCP_y1 -> 2026-27 | H63: =FRCP_y2 -> 2027-28 | I63: =FRCP_y3 -> 2028-29 | J63: =FRCP_y4 -> 2029-30 | K63: =FRCP_y5 -> 2030-31
B64: CAR | C64: Average kilometres travelled | D64: 0's | E64: 14930.5 | F64: 17961.81746 | G64: 17961.81746 | H64: 17961.81746 | I64: 17961.81746 | J64: 18127.59263 | K64: 18078.40659
C65: Number purchased | D65: 0's | E65: 2 | F65: 5 | G65: 10 | H65: 10 | I65: 10 | J65: 10 | K65: 10
C66: Number leased | D66: 0's | E66: 0 | F66: 14 | G66: 14 | H66: 14 | I66: 14 | J66: 15 | K66: 15
C67: Number in fleet | D67: 0's | E67: 49 | F67: 63 | G67: 63 | H67: 63 | I67: 64 | J67: 64 | K67: 66
C68: Proportion of total fleet expenditure allocated as regulatory expenditure | D68: % | E68: 0.9619 | F68: 0.9619 | G68: 0.9619 | H68: 0.9619 | I68: 0.9619 | J68: 0.9619 | K68: 0.9619
B69: LIGHT COMMERCIAL VEHICLE | C69: Average kilometres travelled | D69: 0's | E69: 21230 | F69: 32396.96203 | G69: 32396.96203 | H69: 32444.77987 | I69: 32444.77987 | J69: 32828.1791 | K69: 32912.80236
C70: Number purchased | D70: 0's | E70: 6 | F70: 13 | G70: 34 | H70: 30 | I70: 26 | J70: 39 | K70: 52
C71: Number leased | D71: 0's | E71: 0 | F71: 188 | G71: 188 | H71: 182 | I71: 178 | J71: 194 | K71: 183
C72: Number in fleet | D72: 0's | E72: 128 | F72: 316 | G72: 318 | H72: 318 | I72: 335 | J72: 339 | K72: 343
C73: Proportion of total fleet expenditure allocated as regulatory expenditure | D73: % | E73: 0.9619 | F73: 0.9619 | G73: 0.9619 | H73: 0.9619 | I73: 0.9619 | J73: 0.9619 | K73: 0.9619
B74: ELEVATED WORK PLATFORM (LCV) | C74: Average kilometres travelled | D74: 0's | E74: 0 | F74: 0 | G74: 0 | H74: 0 | I74: 0 | J74: 0 | K74: 0
C75: Number purchased | D75: 0's | E75: 0 | F75: 0 | G75: 0 | H75: 0 | I75: 0 | J75: 0 | K75: 0
C76: Number leased | D76: 0's | E76: 0 | F76: 0 | G76: 0 | H76: 0 | I76: 0 | J76: 0 | K76: 0
C77: Number in fleet | D77: 0's | E77: 0 | F77: 0 | G77: 0 | H77: 0 | I77: 0 | J77: 0 | K77: 0
C78: Proportion of total fleet expenditure allocated as regulatory expenditure | D78: % | E78: 0 | F78: 0 | G78: 0 | H78: 0 | I78: 0 | J78: 0 | K78: 0
B79: ELEVATED WORK PLATFORM (HCV) | C79: Average kilometres travelled | D79: 0's | E79: 0 | F79: 1000 | G79: 1000 | H79: 1000 | I79: 1000 | J79: 1000 | K79: 1000
C80: Number purchased | D80: 0's | E80: 0 | F80: 0 | G80: 5 | H80: 21 | I80: 2 | J80: 18 | K80: 0
C81: Number leased | D81: 0's | E81: 0 | F81: 102 | G81: 100 | H81: 96 | I81: 75 | J81: 79 | K81: 60
C82: Number in fleet | D82: 0's | E82: 0 | F82: 102 | G82: 103 | H82: 103 | I82: 112 | J82: 114 | K82: 117
C83: Proportion of total fleet expenditure allocated as regulatory expenditure | D83: % | E83: 0 | F83: 0.9619 | G83: 0.9619 | H83: 0.9619 | I83: 0.9619 | J83: 0.9619 | K83: 0.9619
B84: HEAVY COMMERCIAL VEHICLE | C84: Average kilometres travelled | D84: 0's | E84: 11177.5 | F84: 24645.57692 | G84: 24645.57692 | H84: 24645.57692 | I84: 24645.57692 | J84: 24674.76471 | K84: 24682.24138
C85: Number purchased | D85: 0's | E85: 2 | F85: 3 | G85: 3 | H85: 1 | I85: 15 | J85: 4 | K85: 2
C86: Number leased | D86: 0's | E86: 0 | F86: 73 | G86: 64 | H86: 61 | I86: 60 | J86: 49 | K86: 46
C87: Number in fleet | D87: 0's | E87: 2 | F87: 78 | G87: 78 | H87: 78 | I87: 85 | J87: 87 | K87: 88
C88: Proportion of total fleet expenditure allocated as regulatory expenditure | D88: % | E88: 0.9619 | F88: 0.9619 | G88: 0.9619 | H88: 0.9619 | I88: 0.9619 | J88: 0.9619 | K88: 0.9619
B93: 2.6.5 - INFORMATION & COMMUNICATIONS TECHNOLOGY - CAPEX
E94: =CONCATENATE("EXPENDITURE ($, real ", dms_DollarReal, ")") -> EXPENDITURE ($, real June 2026)
E95: =CRCP_y4 -> 2024-25 | F95: =CRCP_y5 -> 2025-26 | G95: =FRCP_y1 -> 2026-27 | H95: =FRCP_y2 -> 2027-28 | I95: =FRCP_y3 -> 2028-29 | J95: =FRCP_y4 -> 2029-30 | K95: =FRCP_y5 -> 2030-31
B96: RECURRENT
B97: Business Systems (TAM - Systems) | G97: 8300651.862 | H97: 10476126.11 | I97: 17818189.74 | J97: 15094670.18 | K97: 15655363.24
B98: Hardware (TAM -Infrastructure) | G98: 7178084.399 | H98: 6473348.7 | I98: 5853459.243 | J98: 6459819.298 | K98: 6757741.417
B99: Cyber security | G99: 3533584.553 | H99: 3553831.911 | I99: 3578881.331 | J99: 3609086.516 | K99: 3634521.13
B100: Metering systems | G100: 0 | H100: 1645292.551 | I100: 2540563.908 | J100: 891132.4732 | K100: 0
B101: ICT expenditure | E101: 18966353.32 | F101: 16854321.28
B107: NON-RECURRENT
B108: Innovation initiatives | G108: 1701355.526 | H108: 1711104.253 | I108: 1723165.085 | J108: 1737708.323 | K108: 1749954.618
B109: Market systems | G109: 8179593.873 | H109: 12065478.71 | I109: 0 | J109: 0 | K109: 0
B110: Customer engagement platform | G110: 9815512.648 | H110: 9871755.308 | I110: 9941337.03 | J110: 4455662.366 | K110: 11217657.81
B111: ADMS Energy Management (IT portion) | G111: 7901487.818 | H111: 9317172.16 | I111: 8289712.154 | J111: 1670873.387 | K111: 729147.7575
B112: Field Enablement ERP | G112: 10531499.76 | H112: 3251509.405 | I112: 1656889.505 | J112: 3341746.774 | K112: 0
B113: Network Model Management Geospatial and asset model tools | G113: 15876346.18 | H113: 7656890.034 | I113: 11957219.26 | J113: 2924028.428 | K113: 4290754.112
B114: Asset Risk Management | G114: 3380898.801 | H114: 18756335.09 | I114: 17231650.85 | J114: 22166920.27 | K114: 17723899.34
B115: Cyber security | G115: 1897665.779 | H115: 1908539.36 | I115: 1921991.826 | J115: 1938213.129 | K115: 1951872.459
B116: Conductor clearance compliance (3D Model/LiDAR) | G116: 3195494.673 | H116: 2594077.923 | I116: 2203663.042 | J116: 1837960.726 | K116: 1346118.937
B117: ICT expenditure | E117: 55855711.48 | F117: 49635799.29

Sheet 2.10 Overheads
B1: =INDEX(dms_Worksheet_List,MATCH(dms_Model,dms_Model_List)) -> REGULATORY REPORTING STATEMENT
B2: =INDEX(dms_TradingNameFull_List,MATCH(dms_TradingName,dms_TradingName_List)) -> AusNet Electricity Services Pty Ltd
B3: =CONCATENATE("REGULATORY PERIOD FROM ", FRCP_y1," TO ",dms_MultiYear_FinalYear_Result) -> REGULATORY PERIOD FROM 2026-27 TO 2030-31
B4: 2.10 OVERHEADS
B5: TEMPLATE DATE - SEPTEMBER 2024 - FINAL RIN
B7: There are TWO tables on this worksheet. Each table has been 'grouped' (and sub-grouped) for easy navigation. See the Instructions sheet on how to group or ungroup data.
B9: 2.10.1 - NETWORK OVERHEADS EXPENDITURE
D10: =CONCATENATE("EXPENDITURE ($, real ", dms_DollarReal, ")") -> EXPENDITURE ($, real June 2026)
D11: =CRCP_y4 -> 2024-25 | E11: =CRCP_y5 -> 2025-26 | F11: =FRCP_y1 -> 2026-27 | G11: =FRCP_y2 -> 2027-28 | H11: =FRCP_y3 -> 2028-29 | I11: =FRCP_y4 -> 2029-30 | J11: =FRCP_y5 -> 2030-31
B12: OPEX
B13: Standard Control Services | C13: Total | D13: 94343640.23 | E13: 88105859.82 | F13: 95531924.96 | G13: 97777785.99 | H13: 100321229.8 | I13: 103090202.4 | J13: 104867243.4
B14: Alternative Control Services | C14: Total | D14: 1306840.723 | E14: 1323486.528 | F14: 1100353.154 | G14: 1088505.481 | H14: 1092506.381 | I14: 1101497.451 | J14: 1059062.856
B15: CAPEX
B16: Standard Control Services | C16: Total | D16: 38775249.08 | E16: 41523505.5 | F16: 41493729.38 | G16: 41604134.09 | H16: 41785724.03 | I16: 42042834.57 | J16: 42219722.45
B17: Alternative Control Services | C17: Total | D17: 2244113.254 | E17: 1856902.609 | F17: 1870002.153 | G17: 1888476.862 | H17: 2706134.402 | I17: 3394046.605 | J17: 3415064.985
B18: OTHER DISTRIBUTION SERVICES
B19: Negotiated Services | C19: Total
B20: Unregulated Distribution Services | C20: Total
B24: 2.10.2 - CORPORATE OVERHEADS EXPENDITURE
D25: =CONCATENATE("EXPENDITURE ($, real ", dms_DollarReal, ")") -> EXPENDITURE ($, real June 2026)
D26: =CRCP_y4 -> 2024-25 | E26: =CRCP_y5 -> 2025-26 | F26: =FRCP_y1 -> 2026-27 | G26: =FRCP_y2 -> 2027-28 | H26: =FRCP_y3 -> 2028-29 | I26: =FRCP_y4 -> 2029-30 | J26: =FRCP_y5 -> 2030-31
B27: OPEX
B28: Standard Control Services | C28: Total | D28: 32311611 | E28: 30175243 | F28: 36955422.72 | G28: 37724604.28 | H28: 38595704.51 | I28: 39544045.76 | J28: 40152661.86
B29: Alternative Control Services | C29: Total
B30: CAPEX
B31: Standard Control Services | C31: Total | D31: 6603892.844 | E31: 7072244.779 | F31: 0 | G31: 0 | H31: 0 | I31: 0 | J31: 0
B32: Alternative Control Services | C32: Total | D32: 0 | E32: 0 | F32: 0 | G32: 0 | H32: 0 | I32: 0 | J32: 0
B33: OTHER DISTRIBUTION SERVICES
B34: Negotiated Services | C34: Total
B35: Unregulated Distribution Services | C35: Total

Sheet 2.11 Labour
B1: =INDEX(dms_Worksheet_List,MATCH(dms_Model,dms_Model_List)) -> REGULATORY REPORTING STATEMENT
B2: =INDEX(dms_TradingNameFull_List,MATCH(dms_TradingName,dms_TradingName_List)) -> AusNet Electricity Services Pty Ltd
B3: =CONCATENATE("REGULATORY PERIOD FROM ", FRCP_y1," TO ",dms_MultiYear_FinalYear_Result) -> REGULATORY PERIOD FROM 2026-27 TO 2030-31
B4: 2.11 LABOUR
B5: TEMPLATE DATE - SEPTEMBER 2024 - FINAL RIN
B7: Table numbering on this worksheet starts at 2.11.3.
B9: 2.11.3 - LABOUR / NON-LABOUR EXPENDITURE SPLIT - STANDARD CONTROL SERVICES
C10: =CONCATENATE("EXPENDITURE ($, real ", dms_DollarReal, ")") -> EXPENDITURE ($, real June 2026)
C11: =CRCP_y4 -> 2024-25 | D11: =CRCP_y5 -> 2025-26 | E11: =FRCP_y1 -> 2026-27 | F11: =FRCP_y2 -> 2027-28 | G11: =FRCP_y3 -> 2028-29 | H11: =FRCP_y4 -> 2029-30 | I11: =FRCP_y5 -> 2030-31
B12: OPEX
B13: In-house labour expenditure | C13: 101981478.8 | D13: 88272332.85 | E13: 98263194.95 | F13: 100790428.6 | G13: 103536895 | H13: 106474713.2 | I13: 108468818.8
B14: Labour expenditure outsourced to related parties | C14: 0 | D14: 0 | E14: 0 | F14: 0 | G14: 0 | H14: 0 | I14: 0
B15: Labour expenditure outsourced to unrelated parties | C15: 0 | D15: 0 | E15: 0 | F15: 0 | G15: 0 | H15: 0 | I15: 0
B16: Non-labour expenditure | C16: 229792941.2 | D16: 198902381.5 | E16: 221414602.4 | F16: 227109170.2 | G16: 233297731.2 | H16: 239917461.5 | I16: 244410741.9
B17: Total | C17: =SUM(C13:C16) -> 331774420 | D17: 287174714.3 | E17: 319677797.4 | F17: 327899598.8 | G17: 336834626.2 | H17: 346392174.6 | I17: 352879560.7
B18: CAPEX
B19: In-house labour expenditure | C19: 32614861.83 | D19: 31440629.47 | E19: 62396906.65 | F19: 57187640.89 | G19: 58892042.18 | H19: 58904075.7 | I19: 60312810.84
B20: Labour expenditure outsourced to related parties | E20: 0 | F20: 0 | G20: 0 | H20: 0 | I20: 0
B21: Labour expenditure outsourced to unrelated parties | E21: 0 | F21: 0 | G21: 0 | H21: 0 | I21: 0
B22: Non-labour expenditure | C22: 408814274.2 | D22: 394095740.4 | E22: 603476584.6 | F22: 644290714.1 | G22: 681102640.4 | H22: 683725576.6 | I22: 692976285.2
B23: Total | C23: =SUM(C19:C22) -> 441429136.1 | D23: 425536369.9 | E23: 665873491.3 | F23: 701478355 | G23: 739994682.6 | H23: 742629652.3 | I23: 753289096.1

Sheet 2.14 Forecast price changes
B1: =INDEX(dms_Worksheet_List,MATCH(dms_Model,dms_Model_List)) -> REGULATORY REPORTING STATEMENT
B2: =INDEX(dms_TradingNameFull_List,MATCH(dms_TradingName,dms_TradingName_List)) -> AusNet Electricity Services Pty Ltd
B3: =CONCATENATE("REGULATORY PERIOD FROM ", FRCP_y1," TO ",dms_MultiYear_FinalYear_Result) -> REGULATORY PERIOD FROM 2026-27 TO 2030-31
B4: 2.14 FORECAST PRICE CHANGES
B5: TEMPLATE DATE - SEPTEMBER 2024 - FINAL RIN
B7: There is ONE table on this worksheet.
B9: Instructions
B10: =CONCATENATE(dms_TradingName, " must provide all forecast price changes used to forecast opex and capex, including forecast changes in CPI. FORECAST price changes must be expressed in real terms, except for CPI. "&"If the same escalators are not used for capex and opex, report capex and opex escalators separately. Add additional rows as required. If price changes for a given year were not used to forecast either opex or capex enter '0' for that year.") -> AusNet (D) must provide all forecast price changes used to forecast opex and capex, including forecast changes in CPI. FORECAST price changes must be expressed in real terms, except for CPI. If the same escalators are not used for capex and opex, report capex and opex escalators separately. Add additional rows as required. If price changes for a given year were not used to forecast either opex or capex enter '0' for that year.
B12: 2.14.2 - FORECAST CAPEX AND OPEX PRICE CHANGES
C13: Price changes (% YoY real) Current regulatory period | E13: Price changes (%YoY real) Forthcoming regulatory period
C14: FORECAST
B15: DESCRIPTION | C15: =CRCP_y4 -> 2024-25 | D15: =CRCP_y5 -> 2025-26 | E15: =FRCP_y1 -> 2026-27 | F15: =FRCP_y2 -> 2027-28 | G15: =FRCP_y3 -> 2028-29 | H15: =FRCP_y4 -> 2029-30 | I15: =FRCP_y5 -> 2030-31
B16: OPEX
B17: Labour Price Growth - WPI | C17: 0.0099 | D17: 0.0131 | E17: 0.009313524394 | F17: 0.008358355629 | G17: 0.01025499053 | H17: 0.01224018808 | I17: 0.01018235304
B18: Output Growth | C18: 0.01026277866 | D18: 0.01017556589 | E18: 0.008857097066 | F18: 0.01116873392 | G18: 0.01797984569 | H18: 0.01805624607 | I18: 0.01787608857
B19: Productivity | C19: 0.005 | D19: 0.005 | E19: 0.005 | F19: 0.005 | G19: 0.005 | H19: 0.005 | I19: 0.005
B20: CAPEX
B21: Labour Price Growth - WPI | C21: 0.008268156453 | D21: 0.008100515567 | E21: 0.009313524394 | F21: 0.008358355629 | G21: 0.01025499053 | H21: 0.01224018808 | I21: 0.01018235304
B24: CPI adjusted to $2026 | C24: 0.04051987768 | D24: 0.03 | E24: 0.025 | F24: 0.025 | G24: 0.025 | H24: 0.025 | I24: 0.025

Sheet 2.16 Opex Summary
B1: =INDEX(dms_Worksheet_List,MATCH(dms_Model,dms_Model_List)) -> REGULATORY REPORTING STATEMENT
B2: =INDEX(dms_TradingNameFull_List,MATCH(dms_TradingName,dms_TradingName_List)) -> AusNet Electricity Services Pty Ltd
B3: =CONCATENATE("REGULATORY PERIOD FROM ", FRCP_y1," TO ",dms_MultiYear_FinalYear_Result) -> REGULATORY PERIOD FROM 2026-27 TO 2030-31
B4: 2.16 OPEX SUMMARY
B5: TEMPLATE DATE - SEPTEMBER 2024 - FINAL RIN
B7: Instructions | J7: IMPORTANT!
B8: =CONCATENATE("Complete the tables below in accordance with the regulatory information notice. ",dms_TradingName,"'s total forecast opex must reconcile to Table 2.16.1 (and if ",dms_TradingName," owns any dual function assets Table 2.16.3). If ",dms_TradingName," did not forecast its total opex using a Base Year approach, total forecast opex must reconcile to Table 2.16.2 (and if ",dms_TradingName," owns any dual function assets Table 2.16.4).") -> Complete the tables below in accordance with the regulatory information notice. AusNet (D)'s total forecast opex must reconcile to Table 2.16.1 (and if AusNet (D) owns any dual function assets Table 2.16.3). If AusNet (D) did not forecast its total opex using a Base Year approach, total forecast opex must reconcile to Table 2.16.2 (and if AusNet (D) owns any dual function assets Table 2.16.4). | J8: =CONCATENATE("Has ",dms_TradingName," used a base-step-trend model to derive its opex forecast? ") -> Has AusNet (D) used a base-step-trend model to derive its opex forecast? | L8: Yes
B9: =CONCATENATE("If ",dms_TradingName," does not own any dual function assets,Table 2.16.3 and 2.16.4 may be left blank.") -> If AusNet (D) does not own any dual function assets,Table 2.16.3 and 2.16.4 may be left blank. | J9: Yes / No
B10: The total step changes in Table 2.16.1 and Table 2.16.3 must "&"reconcile (in each year) to the total step changes for each year in Table 2.17.1 and Table 2.17.3 of worksheet '2.17 Step Changes', respectively.") | J10: Please nominate the base year. | L10: 2022-23
B13: 2.16.1 - STANDARD CONTROL SERVICES - OPEX BY DRIVER
C14: =CONCATENATE("EXPENDITURE ($, real ", dms_DollarReal, ")") -> EXPENDITURE ($, real June 2026)
C15: =CRCP_y1 -> 2021-22 | D15: =CRCP_y2 -> 2022-23 | E15: =CRCP_y3 -> 2023-24 | F15: =CRCP_y4 -> 2024-25 | G15: =CRCP_y5 -> 2025-26 | H15: =FRCP_y1 -> 2026-27 | I15: =FRCP_y2 -> 2027-28 | J15: =FRCP_y3 -> 2028-29 | K15: =FRCP_y4 -> 2029-30 | L15: =FRCP_y5 -> 2030-31
B16: Base year total opex, excluding category specific | D16: 270740074.4 | E16: 270740074.4 | F16: 270740074.4 | G16: 270740074.4 | H16: 285946044 | I16: 285946044 | J16: 285946044 | K16: 285946044 | L16: 285946044
B17: Increment from base year to final year | G17: 15205969.56 | H17: 0 | I17: 0 | J17: 0 | K17: 0 | L17: 0
B18: Price growth | H18: 1576593.95 | I18: 2999298.094 | J18: 4753472.088 | K18: 6859936.406 | L18: 8624957.095
B19: Output growth | H19: 2533882.834 | I19: 5756949.635 | J19: 11015279.9 | K19: 16420985.09 | L19: 21866648.8
B20: Productivity growth | H20: -1437613.19 | I20: -2882229.787 | J20: -4338726.615 | K20: -5812344.931 | L20: -7290999.571
B21: Step changes | H21: 19612755.58 | I21: 23985787.82 | J21: 27021647.57 | K21: 30065096.06 | L21: 31000104.13
B22: Category specific | D22: - | E22: - | F22: - | G22: - | H22: 11446134.21 | I22: 12093749.03 | J22: 12436909.25 | K22: 12912458 | L22: 12732806.25
B23: Total opex | C23: =SUM(C16:C22) -> 0 | D23: 270740074.4 | E23: 270740074.4 | F23: 270740074.4 | G23: 285946044 | H23: 319677797.4 | I23: 327899598.8 | J23: 336834626.2 | K23: 346392174.6 | L23: 352879560.7
B26: 2.16.2 - STANDARD CONTROL SERVICES - OPEX BY CATEGORY
C27: =CONCATENATE("EXPENDITURE ($, real ", dms_DollarReal, ")") -> EXPENDITURE ($, real June 2026)
C28: =CRCP_y1 -> 2021-22 | D28: =CRCP_y2 -> 2022-23 | E28: =CRCP_y3 -> 2023-24 | F28: =CRCP_y4 -> 2024-25 | G28: =CRCP_y5 -> 2025-26 | H28: =FRCP_y1 -> 2026-27 | I28: =FRCP_y2 -> 2027-28 | J28: =FRCP_y3 -> 2028-29 | K28: =FRCP_y4 -> 2029-30 | L28: =FRCP_y5 -> 2030-31
B29: Vegetation management
B30: Maintenance
B31: Emergency response
B32: Non-network
B33: Metering
B34: Network overheads
B35: Corporate overheads
B36: Total opex | C36: =SUM(C29:C35) -> 0 | D36: 0 | E36: 0 | F36: 0 | G36: 0 | H36: 0 | I36: 0 | J36: 0 | K36: 0 | L36: 0
B39: 2.16.3 - DUAL FUNCTION ASSETS - OPEX BY DRIVER
C40: =CONCATENATE("EXPENDITURE ($, real ", dms_DollarReal, ")") -> EXPENDITURE ($, real June 2026)
C41: =CRCP_y1 -> 2021-22 | D41: =CRCP_y2 -> 2022-23 | E41: =CRCP_y3 -> 2023-24 | F41: =CRCP_y4 -> 2024-25 | G41: =CRCP_y5 -> 2025-26 | H41: =FRCP_y1 -> 2026-27 | I41: =FRCP_y2 -> 2027-28 | J41: =FRCP_y3 -> 2028-29 | K41: =FRCP_y4 -> 2029-30 | L41: =FRCP_y5 -> 2030-31
B42: Base year total opex, excluding category specific | D42: 0 | E42: 0 | F42: 0 | G42: 0 | H42: 0 | I42: 0 | J42: 0 | K42: 0 | L42: 0
B43: Increment from base year to final year | G43: 0 | H43: 0 | I43: 0 | J43: 0 | K43: 0 | L43: 0
B44: Price growth | H44: 0 | I44: 0 | J44: 0 | K44: 0 | L44: 0
B45: Output growth | H45: 0 | I45: 0 | J45: 0 | K45: 0 | L45: 0
B46: Productivity growth | H46: 0 | I46: 0 | J46: 0 | K46: 0 | L46: 0
B47: Step changes | H47: 0 | I47: 0 | J47: 0 | K47: 0 | L47: 0
B48: Category specific | D48: 0 | E48: 0 | F48: 0 | G48: 0 | H48: 0 | I48: 0 | J48: 0 | K48: 0 | L48: 0
B49: Total opex | C49: =SUM(C42:C48) -> 0 | D49: 0 | E49: 0 | F49: 0 | G49: 0 | H49: 0 | I49: 0 | J49: 0 | K49: 0 | L49: 0
B52: 2.16.4 - DUAL FUNCTION ASSETS - OPEX BY CATEGORY
C53: =CONCATENATE("EXPENDITURE ($, real ", dms_DollarReal, ")") -> EXPENDITURE ($, real June 2026)
C54: =CRCP_y1 -> 2021-22 | D54: =CRCP_y2 -> 2022-23 | E54: =CRCP_y3 -> 2023-24 | F54: =CRCP_y4 -> 2024-25 | G54: =CRCP_y5 -> 2025-26 | H54: =FRCP_y1 -> 2026-27 | I54: =FRCP_y2 -> 2027-28 | J54: =FRCP_y3 -> 2028-29 | K54: =FRCP_y4 -> 2029-30 | L54: =FRCP_y5 -> 2030-31
B55: Vegetation management
B56: Maintenance
B57: Emergency response
B58: Non-network
B59: Metering
B60: Network overheads
B61: Corporate overheads
B62: Total opex | C62: =SUM(C55:C61) -> 0 | D62: 0 | E62: 0 | F62: 0 | G62: 0 | H62: 0 | I62: 0 | J62: 0 | K62: 0 | L62: 0

Sheet 2.17 Step Changes
B1: =INDEX(dms_Worksheet_List,MATCH(dms_Model,dms_Model_List)) -> REGULATORY REPORTING STATEMENT
B2: =INDEX(dms_TradingNameFull_List,MATCH(dms_TradingName,dms_TradingName_List)) -> AusNet Electricity Services Pty Ltd
B3: =CONCATENATE("REGULATORY PERIOD FROM ", FRCP_y1," TO ",dms_MultiYear_FinalYear_Result) -> REGULATORY PERIOD FROM 2026-27 TO 2030-31
B4: 2.17 STEP CHANGES
B5: TEMPLATE DATE - SEPTEMBER 2024 - FINAL RIN
B7: 2.17.1 - STEP CHANGES FOR STANDARD CONTROL SERVICES - FORECAST OPEX
E8: =CONCATENATE("EXPENDITURE ($, real ", dms_DollarReal, ")") -> EXPENDITURE ($, real June 2026)
B9: STEP CHANGE | C9: DESCRIPTION | E9: =CRCP_y4 -> 2024-25 | F9: =CRCP_y5 -> 2025-26 | G9: =FRCP_y1 -> 2026-27 | H9: =FRCP_y2 -> 2027-28 | I9: =FRCP_y3 -> 2028-29 | J9: =FRCP_y4 -> 2029-30 | K9: =FRCP_y5 -> 2030-31
B10: Flexible services and non-network solutions | C10: Increases due to additonal personnel to manage new flexible services and payments to third parties for non-network solutions | E10: 0 | F10: 0 | G10: 536841.7 | H10: 1073683.4 | I10: 1667590.95 | J10: 2318564.35 | K10: 2855406.05
B11: ESV more frequent pole inspections | C11: More frequent pole inspections due to a recent Energy Safe Victoria direction | E11: 1604812.174 | F11: 1604812.174 | G11: 1604812.174 | H11: 1604812.174 | I11: 1604812.174 | J11: 1604812.174 | K11: 1604812.174
B12: Fleet Electrification | C12: Progressive electrification of AusNet owned fleet | E12: 0 | F12: 0 | G12: -46331.48049 | H12: -92662.96098 | I12: -138994.4415 | J12: -185325.922 | K12: -231657.4024
B13: Digital (SaaS, Licenses, etc.) | C13: Costs associated with progressively transitioning digital systems to cloud and opex with assosciated capex related to ADMS | E13: 0 | F13: 0 | G13: 3608100.384 | H13: 7354790.469 | I13: 8685270.194 | J13: 10024204.12 | K13: 10239786.22
B14: EFD Rollout | C14: Software that allows to identify faults on SWER network | E14: 0 | F14: 0 | G14: 1570762.05 | H14: 1569847.231 | I14: 1568259.447 | J14: 1566533.762 | K14: 1564895.674
B15: Digital Efficiencies | C15: Efficiencies realised above productivity adjustment due to digital capex program | E15: 0 | F15: 0 | G15: -770544.8011 | H15: -770544.8011 | I15: -770544.8011 | J15: -770544.8011 | K15: -770544.8011
B16: Preparedness and Response | C16: Uplifting resposne to emergencies and major event days through Victorian Government Network Outage Review and NOUS review | E16: 570658.5 | F16: 1719016 | G16: 1813768.683 | H16: 1877725.655 | I16: 1845581.831 | J16: 1812984.024 | K16: 1807591.259
B17: Resilience (Hazard tree program) | C17: Expansion of annual ‘hazard tree’ management program to reduce climate increase-related and resilience related vegetation outages | E17: 0 | F17: 0 | G17: 3000000 | H17: 3000000 | I17: 3000000 | J17: 3000000 | K17: 3000000
B18: Customer relationship management and broad communications | C18: Customer relationship managers, living and working in the regions, dedicated to local customer engagement, community energy support, planned and unplanned outage management, connections management and supporting complex enquiries. Broad communications to build customer agency, improve understanding of tariffs and services, provide necessary information related to preparedness for extreme weather events and community resilience | E18: 159961.8571 | F18: 159961.8571 | G18: 3286850.519 | H18: 3120249.116 | I18: 3111394.95 | J18: 3101771.792 | K18: 3092637.113
B19: Emergency Backstop Mechanism | C19: To comply with the obligation for emergency backstop to make sure that solar exports can be safely managed, enabling rooftop solar systems to be turned down or switched off when there is too much power in the grid. | E19: 3163217.39 | F19: 3250139.47 | G19: 3250139.47 | H19: 3250139.47 | I19: 4321859.382 | J19: 5351636.951 | K19: 5456662.421
B20: Insurance | C20: Bushfire Liability premium increase, major external factor | E20: 0 | F20: 0 | G20: 1758356.881 | H20: 1997748.07 | I20: 2126417.879 | J20: 2240459.608 | K20: 2380515.422
B30: Total | E30: =SUM(E10:E29) -> 5498649.922 | F30: 6733929.502 | G30: 19612755.58 | H30: 23985787.82 | I30: 27021647.57 | J30: 30065096.06 | K30: 31000104.13
B31: Check | G31: =IF(ROUND(G$30,0)-ROUND('2.16 Opex Summary'!H$21,0)=0,"OK","Error") -> OK | H31: =IF(ROUND(H$30,0)-ROUND('2.16 Opex Summary'!I$21,0)=0,"OK","Error") -> OK | I31: =IF(ROUND(I$30,0)-ROUND('2.16 Opex Summary'!J$21,0)=0,"OK","Error") -> OK | J31: =IF(ROUND(J$30,0)-ROUND('2.16 Opex Summary'!K$21,0)=0,"OK","Error") -> OK | K31: =IF(ROUND(K$30,0)-ROUND('2.16 Opex Summary'!L$21,0)=0,"OK","Error") -> OK
B33: 2.17.2 - STEP CHANGES FOR STANDARD CONTROL SERVICES - FORECAST CAPEX
E34: =CONCATENATE("EXPENDITURE ($, real ", dms_DollarReal, ")") -> EXPENDITURE ($, real June 2026)
B35: STEP CHANGE | C35: DESCRIPTION | E35: =CRCP_y4 -> 2024-25 | F35: =CRCP_y5 -> 2025-26 | G35: =FRCP_y1 -> 2026-27 | H35: =FRCP_y2 -> 2027-28 | I35: =FRCP_y3 -> 2028-29 | J35: =FRCP_y4 -> 2029-30 | K35: =FRCP_y5 -> 2030-31
B36: Augex | C36: Investments in resilience - reclosers, SAPS, community hubs, mobile generation, emergency vehicles | E36: 3316464.777 | F36: 2325480.43 | G36: 11051058.86 | H36: 8459068.502 | I36: 6007968.527 | J36: 5465186.507 | K36: 5017030.228
B37: Repex | C37: Investments in resilience - undergrounding, covered conductors and pole hardening | E37: 2116693.125 | F37: 6244535.352 | G37: 9544970.686 | H37: 41817465.49 | I37: 70527538.95 | J37: 53519256.81 | K37: 48768407.47
B38: Augex | C38: Reliability upgrade (10 worst served feeders) | E38: 0 | F38: 0 | G38: 20761405.81 | H38: 4872854.346 | I38: 0 | J38: 0 | K38: 0
B39: Augex | C39: Reliability upgrade to BN11 | E39: 5307035.011 | F39: 1725969.843 | G39: 16116947.74 | H39: 10744631.82 | I39: 0 | J39: 0 | K39: 0
B40: Augex | C40: Reliability upgrade - regional reliability fund | E40: 0 | F40: 0 | G40: 6191025.836 | H40: 6191025.836 | I40: 18573077.51 | J40: 31883783.05 | K40: 31883783.05
B41: Repex | C41: Repex (volume and/or unit rate increases) | E41: 46523785.35 | F41: 27834195.95 | G41: 24801678.49 | H41: 48751120.53 | I41: 65717447.14 | J41: 83637050.45 | K41: 84415811.59
B42: Augex | C42: Enabling large renewables | E42: 6524846.6 | F42: 8953960.6 | G42: 14374705.68 | H42: 45187886.97 | I42: 23880765.04 | J42: 27891255.21 | K42: 40058329.01
B43: Augex | C43: Demand driven augex | E43: 0 | F43: 7630301.6 | G43: 51229531.16 | H43: 71331446.43 | I43: 100403303.1 | J43: 59054152.37 | K43: 73563633.58
B44: Augex | C44: Under frequency load shedding (UFLS) compliance | E44: 0 | F44: 0 | G44: 0 | H44: 0 | I44: 4376293.108 | J44: 8833307.904 | K44: 8911865.605
B56: Total | E56: =SUM(E36:E55) -> 63788824.87 | F56: 54714443.78 | G56: 154071324.3 | H56: 237355499.9 | I56: 289486393.3 | J56: 270283992.3 | K56: 292618860.5
B58: 2.17.3 - STEP CHANGES FOR DUAL FUNCTION ASSETS - FORECAST OPEX
E59: =CONCATENATE("EXPENDITURE ($, real ", dms_DollarReal, ")") -> EXPENDITURE ($, real June 2026)
B60: STEP CHANGE | C60: DESCRIPTION | E60: =CRCP_y4 -> 2024-25 | F60: =CRCP_y5 -> 2025-26 | G60: =FRCP_y1 -> 2026-27 | H60: =FRCP_y2 -> 2027-28 | I60: =FRCP_y3 -> 2028-29 | J60: =FRCP_y4 -> 2029-30 | K60: =FRCP_y5 -> 2030-31
B81: Total | E81: =SUM(E61:E80) -> 0 | F81: 0 | G81: 0 | H81: 0 | I81: 0 | J81: 0 | K81: 0
B82: Check | G82: =IF(ROUND(G$30,0)-ROUND('2.16 Opex Summary'!H$47,0)=0,"OK","Error") -> Error | H82: =IF(ROUND(H$30,0)-ROUND('2.16 Opex Summary'!I$47,0)=0,"OK","Error") -> Error | I82: =IF(ROUND(I$30,0)-ROUND('2.16 Opex Summary'!J$47,0)=0,"OK","Error") -> Error | J82: =IF(ROUND(J$30,0)-ROUND('2.16 Opex Summary'!K$47,0)=0,"OK","Error") -> Error | K82: =IF(ROUND(K$30,0)-ROUND('2.16 Opex Summary'!L$47,0)=0,"OK","Error") -> Error
B84: 2.17.4 - STEP CHANGES FOR DUAL FUNCTION ASSETS - FORECAST CAPEX
E85: =CONCATENATE("EXPENDITURE ($, real ", dms_DollarReal, ")") -> EXPENDITURE ($, real June 2026)
B86: STEP CHANGE | C86: DESCRIPTION | E86: =CRCP_y4 -> 2024-25 | F86: =CRCP_y5 -> 2025-26 | G86: =FRCP_y1 -> 2026-27 | H86: =FRCP_y2 -> 2027-28 | I86: =FRCP_y3 -> 2028-29 | J86: =FRCP_y4 -> 2029-30 | K86: =FRCP_y5 -> 2030-31
B107: Total | E107: =SUM(E87:E106) -> 0 | F107: 0 | G107: 0 | H107: 0 | I107: 0 | J107: 0 | K107: 0
B110: 2.17.5 - FORECAST CATEGORY SPECIFIC OPEX
D111: EXPENDITURE ($, real June 2024)
B112: CATEGORY | C112: DESCRIPTION | D112: =CRCP_y3 -> 2023-24 | E112: =CRCP_y4 -> 2024-25 | F112: =CRCP_y5 -> 2025-26 | G112: =FRCP_y1 -> 2026-27 | H112: =FRCP_y2 -> 2027-28 | I112: =FRCP_y3 -> 2028-29 | J112: =FRCP_y4 -> 2029-30 | K112: =FRCP_y5 -> 2030-31
B113: GSL Payments | D113: 28351374.9 | E113: 7477785.836 | F113: 7274141.711 | G113: 10521193.22 | H113: 10214015.07 | I113: 10108739.09 | J113: 10108739.09 | K113: 10108739.09
B114: Innovation | D114: 277295.0417 | E114: 1322974.786 | F114: 203076.3403 | G114: 310000 | H114: 1230000 | I114: 1660000 | J114: 2110000 | K114: 1940000
B133: Total | D133: =SUM(D113:D132) -> 28628669.95 | E133: =SUM(E113:E132) -> 8800760.623 | F133: =SUM(F113:F132) -> 7477218.051 | G133: 10831193.22 | H133: 11444015.07 | I133: 11768739.09 | J133: 12218739.09 | K133: 12048739.09

Sheet 3.1 Revenue
B1: =INDEX(dms_Worksheet_List,MATCH(dms_Model,dms_Model_List)) -> REGULATORY REPORTING STATEMENT
B2: =INDEX(dms_TradingNameFull_List,MATCH(dms_TradingName,dms_TradingName_List)) -> AusNet Electricity Services Pty Ltd
B3: =CONCATENATE("REGULATORY PERIOD FROM ", FRCP_y1," TO ",dms_MultiYear_FinalYear_Result) -> REGULATORY PERIOD FROM 2026-27 TO 2030-31
B4: 3.1 REVENUE
B5: TEMPLATE DATE - SEPTEMBER 2024 - FINAL RIN
B7: There are THREE tables on this worksheet. Each table has been 'grouped' (and 'sub-grouped') for easy navigation. See the Instructions sheet on how to group or ungroup data.
B9: 3.1.1 - REVENUE GROUPING BY CHARGEABLE QUANTITY
C10: Standard control services | K10: Alternative control services
C11: =CONCATENATE("REVENUE FORECAST ($, real ", dms_DollarReal,")") -> REVENUE FORECAST ($, real June 2026) | K11: =CONCATENATE("REVENUE FORECAST ($, real ", dms_DollarReal,")") -> REVENUE FORECAST ($, real June 2026)
C12: =CRCP_y4 -> 2024-25 | D12: =CRCP_y5 -> 2025-26 | E12: =FRCP_y1 -> 2026-27 | F12: =FRCP_y2 -> 2027-28 | G12: =FRCP_y3 -> 2028-29 | H12: =FRCP_y4 -> 2029-30 | I12: =FRCP_y5 -> 2030-31 | K12: =CRCP_y4 -> 2024-25 | L12: =CRCP_y5 -> 2025-26 | M12: =FRCP_y1 -> 2026-27 | N12: =FRCP_y2 -> 2027-28 | O12: =FRCP_y3 -> 2028-29 | P12: =FRCP_y4 -> 2029-30 | Q12: =FRCP_y5 -> 2030-31
A13: DREV0101 | B13: Revenue from Fixed Customer Charges | C13: 131073469.2 | D13: 130739436.2 | E13: 137085031.7 | F13: 142525000.6 | G13: 148304142.9 | H13: 154350841.7 | I13: 161717657 | K13: 0 | L13: 0 | M13: 0 | N13: 0 | O13: 0 | P13: 0 | Q13: 0
A14: DREV0102 | B14: Revenue from Energy Delivery charges where time of use is not a determinant | C14: 228220245.3 | D14: 227638639.4 | E14: 189907421 | F14: 193014637.7 | G14: 195910464.8 | H14: 197599479.9 | I14: 198188209.2 | K14: 0 | L14: 0 | M14: 0 | N14: 0 | O14: 0 | P14: 0 | Q14: 0
A15: DREV0103 | B15: Revenue from On–Peak Energy Delivery charges | C15: 255806993.1 | D15: 255155084.1 | E15: 257466841.7 | F15: 278753227.4 | G15: 300848152.2 | H15: 325750556.2 | I15: 351183132 | K15: 0 | L15: 0 | M15: 0 | N15: 0 | O15: 0 | P15: 0 | Q15: 0
A16: DREV0104 | B16: Revenue from Shoulder period Energy Delivery Charges | C16: 16799496.33 | D16: 16756683.81 | E16: 18132611.5 | F16: 18909043.33 | G16: 19764459.44 | H16: 20667107.38 | I16: 21754244.14 | K16: 0 | L16: 0 | M16: 0 | N16: 0 | O16: 0 | P16: 0 | Q16: 0
A17: DREV0105 | B17: Revenue from Off–Peak Energy Delivery charges | C17: 103840266.2 | D17: 103575635.4 | E17: 118623643.5 | F17: 130033335.4 | G17: 142654583.6 | H17: 155938847.5 | I17: 170088606.5 | K17: 0 | L17: 0 | M17: 0 | N17: 0 | O17: 0 | P17: 0 | Q17: 0
A18: DREV0106 | B18: Revenue from controlled load customer charges | C18: 0 | D18: 0 | E18: 0 | F18: 0 | G18: 0 | H18: 0 | I18: 0 | K18: 0 | L18: 0 | M18: 0 | N18: 0 | O18: 0 | P18: 0 | Q18: 0
A19: DREV0107 | B19: Revenue from unmetered supplies | C19: 0 | D19: 0 | E19: 0 | F19: 0 | G19: 0 | H19: 0 | I19: 0 | K19: 0 | L19: 0 | M19: 0 | N19: 0 | O19: 0 | P19: 0 | Q19: 0
A20: DREV0108 | B20: Revenue from Contracted Maximum Demand charges | C20: 55166423.4 | D20: 55025835.02 | E20: 55932744.01 | F20: 57948791.85 | G20: 60139337.9 | H20: 62367699.9 | I20: 65097326.89 | K20: 0 | L20: 0 | M20: 0 | N20: 0 | O20: 0 | P20: 0 | Q20: 0
A21: DREV0109 | B21: Revenue from Measured Maximum Demand charges | C21: 51541264.21 | D21: 51409914.33 | E21: 50548416.28 | F21: 52029502.71 | G21: 53612295.95 | H21: 55219519.94 | I21: 57311429.02 | K21: 0 | L21: 0 | M21: 0 | N21: 0 | O21: 0 | P21: 0 | Q21: 0
A22: DREV0110 | B22: Revenue from metering charges | C22: 0 | D22: 0 | E22: 0 | F22: 0 | G22: 0 | H22: 0 | I22: 0 | K22: 70513360.67 | L22: 71042210.87 | M22: 46887859.17 | N22: 43864584.82 | O22: 41036247.65 | P22: 38390278.37 | Q22: 35914918.09
A23: DREV0111 | B23: Revenue from connection charges | C23: 0 | D23: 0 | E23: 0 | F23: 0 | G23: 0 | H23: 0 | I23: 0 | K23: 7286944.365 | L23: 7284726.947 | M23: 10074605.24 | N23: 10148416.4 | O23: 10253801.14 | P23: 10387947.39 | Q23: 10489693.87
A24: DREV0112 | B24: Revenue from public lighting charges | C24: 0 | D24: 0 | E24: 0 | F24: 0 | G24: 0 | H24: 0 | I24: 0 | K24: 10015527.39 | L24: 9718597.186 | M24: 10492131.34 | N24: 10718905.84 | O24: 10974326.62 | P24: 11276575.98 | Q24: 11372051.58
A25: DREV0113 | B25: Revenue from other Sources | C25: 0 | D25: 0 | E25: 0 | F25: 0 | G25: 0 | H25: 0 | I25: 0 | K25: 9634352.702 | L25: 9807412.228 | M25: 10549685.48 | N25: 10739186.91 | O25: 10932911.74 | P25: 11130772.53 | Q25: 11333045.44
A26: DREV01 | B26: Total revenue by chargeable quantity | C26: =SUM(C13:C25) -> 842448157.7 | D26: 840301228.2 | E26: 827696709.8 | F26: 873213539 | G26: 921233436.8 | H26: 971894052.5 | I26: =SUM(I13:I25) -> 1025340605 | K26: =SUM(K13:K25) -> 97450185.12 | L26: 97852947.23 | M26: 78004281.23 | N26: 75471093.96 | O26: 73197287.15 | P26: 71185574.27 | Q26: 69109708.97
B29: 3.1.2 - REVENUE GROUPING BY CUSTOMER TYPE OR CLASS
C30: Standard control services | K30: Alternative control services
C31: =CONCATENATE("REVENUE FORECAST ($, real ", dms_DollarReal,")") -> REVENUE FORECAST ($, real June 2026) | K31: =CONCATENATE("REVENUE FORECAST ($, real ", dms_DollarReal,")") -> REVENUE FORECAST ($, real June 2026)
C32: =CRCP_y4 -> 2024-25 | D32: =CRCP_y5 -> 2025-26 | E32: =FRCP_y1 -> 2026-27 | F32: =FRCP_y2 -> 2027-28 | G32: =FRCP_y3 -> 2028-29 | H32: =FRCP_y4 -> 2029-30 | I32: =FRCP_y5 -> 2030-31 | K32: =CRCP_y4 -> 2024-25 | L32: =CRCP_y5 -> 2025-26 | M32: =FRCP_y1 -> 2026-27 | N32: =FRCP_y2 -> 2027-28 | O32: =FRCP_y3 -> 2028-29 | P32: =FRCP_y4 -> 2029-30 | Q32: =FRCP_y5 -> 2030-31
A33: DREV0201 | B33: Revenue from residential Customers | C33: 474144060.9 | D33: 472935732.8 | E33: 473251178.2 | F33: 507567164.4 | G33: 544050472.6 | H33: 582165779.8 | I33: 620292715.7 | K33: 63313970.17 | L33: 63788824.94 | M33: 42100624.46 | N33: 39386025.4 | O33: 36846460.52 | P33: 34470643.81 | Q33: 32248016.98
A34: DREV0202 | B34: Revenue from Non residential customers not on demand tariffs | C34: 98138403.63 | D34: 97888303.7 | E34: 83123235.79 | F34: 86282800.68 | G34: 89493321.58 | H34: 92605086.33 | I34: 96881638.35 | K34: 7199390.498 | L34: 7253385.927 | M34: 4787234.712 | N34: 4478559.413 | O34: 4189787.136 | P34: 3919634.559 | Q34: 3666901.103
A35: DREV0203 | B35: Revenue from Non-residential low voltage demand tariff customers | C35: 233608302 | D35: 233012965 | E35: 236364293.5 | F35: 243870415.7 | G35: 251367662.6 | H35: 259862037.9 | I35: 269699792.3 | K35: 0 | L35: 0 | M35: 0 | N35: 0 | O35: 0 | P35: 0 | Q35: 0
A36: DREV0204 | B36: Revenue from Non-residential high voltage demand tariff customers | C36: 26968341.89 | D36: 26899614.66 | E36: 27146222.59 | F36: 27831936.88 | G36: 28812027.7 | H36: 29908928.42 | I36: 31233636 | K36: 0 | L36: 0 | M36: 0 | N36: 0 | O36: 0 | P36: 0 | Q36: 0
A37: DREV0205 | B37: Revenue from unmetered supplies | C37: 9589049.262 | D37: 9564612.135 | E37: 7811779.778 | F37: 7661221.311 | G37: 7509952.3 | H37: 7352219.961 | I37: 7232822.494 | K37: 0 | L37: 0 | M37: 0 | N37: 0 | O37: 0 | P37: 0 | Q37: 0
A38: DREV0206 | B38: Revenue from Other Customers | C38: 0 | D38: 0 | E38: 0 | F38: 0 | G38: 0 | H38: 0 | I38: 0 | K38: 26936824.46 | L38: 26810736.36 | M38: 31116422.06 | N38: 31606509.15 | O38: 32161039.5 | P38: 32795295.9 | Q38: 33194790.88
A39: DREV02 | B39: Total revenue by customer class | C39: =SUM(C33:C38) -> 842448157.7 | D39: 840301228.2 | E39: 827696709.8 | F39: 873213539 | G39: 921233436.8 | H39: 971894052.5 | I39: 1025340605 | K39: =SUM(K33:K38) -> 97450185.12 | L39: 97852947.23 | M39: 78004281.23 | N39: 75471093.96 | O39: 73197287.15 | P39: 71185574.27 | Q39: 69109708.97
B42: 3.1.3 - REVENUE (penalties) ALLOWED (deducted) THROUGH INCENTIVE SCHEMES
C43: Standard control services | K43: Alternative control services
C44: =CONCATENATE("REVENUE FORECAST ($, real ", dms_DollarReal,")") -> REVENUE FORECAST ($, real June 2026) | K44: =CONCATENATE("REVENUE FORECAST ($, real ", dms_DollarReal,")") -> REVENUE FORECAST ($, real June 2026)
C45: =CRCP_y4 -> 2024-25 | D45: =CRCP_y5 -> 2025-26 | E45: =FRCP_y1 -> 2026-27 | F45: =FRCP_y2 -> 2027-28 | G45: =FRCP_y3 -> 2028-29 | H45: =FRCP_y4 -> 2029-30 | I45: =FRCP_y5 -> 2030-31 | K45: =CRCP_y4 -> 2024-25 | L45: =CRCP_y5 -> 2025-26 | M45: =FRCP_y1 -> 2026-27 | N45: =FRCP_y2 -> 2027-28 | O45: =FRCP_y3 -> 2028-29 | P45: =FRCP_y4 -> 2029-30 | Q45: =FRCP_y5 -> 2030-31
A46: DREV0301 | B46: EBSS | C46: -4926338.421 | D46: -7616232.713 | E46: -15046680.03 | F46: 15015527.07 | G46: 0 | H46: -6115299.021 | I46: 46361348.66 | K46: 0 | L46: 0 | M46: 0 | N46: 0 | O46: 0 | P46: 0 | Q46: 0
A47: DREV0306 | B47: CESS | C47: 18214343.27 | D47: 18214343.27 | E47: -23432035.23 | F47: -23432035.23 | G47: -23432035.23 | H47: -23432035.23 | I47: -23432035.23 | K47: 0 | L47: 0 | M47: 0 | N47: 0 | O47: 0 | P47: 0 | Q47: 0
A48: DREV0302 | B48: STPIS | C48: 10609867.74 | D48: 13483624 | E48: 0 | F48: 0 | G48: 0 | H48: 0 | I48: 0 | K48: 0 | L48: 0 | M48: 0 | N48: 0 | O48: 0 | P48: 0 | Q48: 0
A49: DREV0307 | B49: CSIS | C49: 0 | D49: 0 | E49: 0 | F49: 0 | G49: 0 | H49: 0 | I49: 0 | K49: 0 | L49: 0 | M49: 0 | N49: 0 | O49: 0 | P49: 0 | Q49: 0
A50: DREV0308 | B50: ESIS | C50: 0 | D50: 0 | E50: 0 | F50: 0 | G50: 0 | H50: 0 | I50: 0 | K50: 0 | L50: 0 | M50: 0 | N50: 0 | O50: 0 | P50: 0 | Q50: 0
A51: DREV0309 | B51: DMIS/DMIA/DMIAM | C51: 441748.446 | D51: 35097.302 | E51: 866011.5027 | F51: 917060.3457 | G51: 944450.6714 | H51: 976067.6646 | I51: 1050303.883 | K51: 0 | L51: 0 | M51: 0 | N51: 0 | O51: 0 | P51: 0 | Q51: 0
A52: DREV0303 | B52: F-Factor | C52: 288267.6 | D52: 320808 | E52: 0 | F52: 0 | G52: 0 | H52: 0 | I52: 0 | K52: 0 | L52: 0 | M52: 0 | N52: 0 | O52: 0 | P52: 0 | Q52: 0
A53: DREV0305 | B53: Other | C53: 0 | D53: 0 | E53: 0 | F53: 0 | G53: 0 | H53: 0 | I53: 0 | K53: 0 | L53: 0 | M53: 0 | N53: 0 | O53: 0 | P53: 0 | Q53: 0
A54: DREV03 | B54: Total revenue rewards and penalties - incentive schemes | C54: =SUM(C46:C53) -> 24627888.64 | D54: 24437639.86 | E54: -37612703.76 | F54: -7499447.812 | G54: -22487584.56 | H54: -28571266.58 | I54: 23979617.32 | K54: =SUM(K46:K53) -> 0 | L54: 0 | M54: 0 | N54: 0 | O54: 0 | P54: 0 | Q54: 0

Sheet 3.2 Operating expenditure
B1: =INDEX(dms_Worksheet_List,MATCH(dms_Model,dms_Model_List)) -> REGULATORY REPORTING STATEMENT
B2: =INDEX(dms_TradingNameFull_List,MATCH(dms_TradingName,dms_TradingName_List)) -> AusNet Electricity Services Pty Ltd
B3: =CONCATENATE("REGULATORY PERIOD FROM ", FRCP_y1," TO ",dms_MultiYear_FinalYear_Result) -> REGULATORY PERIOD FROM 2026-27 TO 2030-31
B4: 3.2 OPERATING EXPENDITURE
B5: TEMPLATE DATE - SEPTEMBER 2024 - FINAL RIN
B7: There are TWO tables on this worksheet. Both ROWS and COLUMNS have been grouped for ease of navigation. see the Instructions sheet on how to group or ungroup tables.
B9: 3.2.1 - OPEX CATEGORIES
B10: CURRENT OPEX CATEGORIES AND COST ALLOCATIONS
C11: Standard control services | K11: Alternative control services
C12: =CONCATENATE("EXPENDITURE ($, real ", dms_DollarReal, ")") -> EXPENDITURE ($, real June 2026) | K12: =CONCATENATE("EXPENDITURE ($, real ", dms_DollarReal, ")") -> EXPENDITURE ($, real June 2026)
C13: =CRCP_y4 -> 2024-25 | D13: =CRCP_y5 -> 2025-26 | E13: =FRCP_y1 -> 2026-27 | F13: =FRCP_y2 -> 2027-28 | G13: =FRCP_y3 -> 2028-29 | H13: =FRCP_y4 -> 2029-30 | I13: =FRCP_y5 -> 2030-31 | K13: =CRCP_y4 -> 2024-25 | L13: =CRCP_y5 -> 2025-26 | M13: =FRCP_y1 -> 2026-27 | N13: =FRCP_y2 -> 2027-28 | O13: =FRCP_y3 -> 2028-29 | P13: =FRCP_y4 -> 2029-30 | Q13: =FRCP_y5 -> 2030-31
A14: DOPEX0101 | B14: Maintenance - Routine | C14: 22299435.24 | D14: 19240415.67 | E14: 21181740.28 | F14: 21439329.76 | G14: 21876701.21 | H14: 22359017.01 | I14: 22731866.41
A15: DOPEX0102 | B15: Maintenance - Condition based | C15: 84247679.67 | D15: 72690647.04 | E15: 76961997.27 | F15: 77935175.07 | G15: 79587572.52 | H15: 81409770.56 | I15: 82818402.5
A16: DOPEX0103 | B16: Maintenance - Emergency | C16: 28319858.47 | D16: 24434961.82 | E16: 24862326.22 | F16: 25189459.94 | G16: 25744913.37 | H16: 26357445.26 | I16: 26830956.9
A17: DOPEX0104 | B17: Maintenance - SCADA/Network Control | C17: 0 | D17: 0 | E17: 0 | F17: 0 | G17: 0 | H17: 0 | I17: 0
A18: DOPEX0105 | B18: Maintenance - AMI | C18: 0 | D18: 0 | E18: 0 | F18: 0 | G18: 0 | H18: 0 | I18: 0
A19: DOPEX0106 | B19: Maintenance - Public Lighting | C19: 0 | D19: 0 | E19: 0 | F19: 0 | G19: 0 | H19: 0 | I19: 0 | K19: 4328501.693 | L19: 4395084.911 | M19: 3601785.615 | N19: 3532822.323 | O19: 3494894.325 | P19: 3487713.205 | Q19: 3291368.426
A20: DOPEX0107 | B20: Maintenance - Alternative control -other | C20: 0 | D20: 0 | E20: 0 | F20: 0 | G20: 0 | H20: 0 | I20: 0
A21: DOPEX0108 | B21: Maintenance - Bushfire costs | C21: 0 | D21: 0 | E21: 0 | F21: 0 | G21: 0 | H21: 0 | I21: 0
A22: DOPEX0109 | B22: Network Operating Costs | C22: 66668037.43 | D22: 57021769.29 | E22: 61599957.27 | F22: 62673413.93 | G22: 64077537.89 | H22: 65600948.73 | I22: 66850309.86
A23: DOPEX0110 | B23: Billing & Revenue Collection | C23: 621246.3951 | D23: 536024.2871 | E23: 545399.2841 | F23: 552575.5435 | G23: 564760.4008 | H23: 578197.3758 | I23: 588584.6947
A24: DOPEX0111 | B24: Advertising, marketing & promotions | C24: 138582.7591 | D24: 119572.0816 | E24: 121663.3822 | F24: 123264.2057 | G24: 125982.3078 | H24: 128979.7225 | I24: 131296.8439
A25: DOPEX0112 | B25: Customer Service | C25: 13091588.57 | D25: 11295694.41 | E25: 14780105.19 | F25: 14764729.84 | G25: 15012648.41 | H25: 15286183.99 | I25: 15495942.35
A26: DOPEX0113 | B26: Regulatory | C26: 3879341.163 | D26: 3347176.093 | E26: 3405717.78 | F26: 3450529.562 | G26: 3526617.277 | H26: 3610523.776 | I26: 3675386.855
A27: DOPEX0114 | B27: Regulatory Reset | C27: 0 | D27: 0 | E27: 0 | F27: 0 | G27: 0 | H27: 0 | I27: 0
A28: DOPEX0115 | B28: IT | C28: 43013179.71 | D28: 37112664.43 | E28: 41033890.94 | F28: 45277443.04 | G28: 48080987.73 | H28: 50955045.95 | I28: 51951495.21
A29: DOPEX0116 | B29: License fee | C29: 1329281.259 | D29: 1146931.467 | E29: 1166991.153 | F29: 1182346.199 | G29: 1208418.146 | H29: 1237169.248 | I29: 1259395.001
A30: DOPEX0117 | B30: GSL payments | C30: 7477785.836 | D30: 7274141.711 | E30: 11118533.96 | F30: 10793915.78 | G30: 10682662.75 | H30: 10682662.75 | I30: 10682662.75
A31: DOPEX0118 | B31: Non-network alternatives costs | C31: 1798031.64 | D31: 1551379.027 | E31: 1578512.45 | F31: 1599282.215 | G31: 1634548.028 | H31: 1673437.76 | I31: 1703501.078
A32: DOPEX0119 | B32: Metering Cost | C32: 4494306 | D32: 4494306 | E32: 3998135 | F32: 4105998 | G32: 4375656 | H32: 4591383 | I32: 4724415 | K32: 12500000 | L32: =AVERAGE(K32,M32) -> 11910620.87 | M32: 11321241.74 | N32: 11619964.88 | O32: 12374765.28 | P32: 12982798.98 | Q32: 13365072.84
A33: DOPEX0120 | B33: Other - Standard Control Services | C33: 46486377.44 | D33: 40109411.54 | E33: 44829909.11 | F33: 45320559.9 | G33: 46185992.06 | H33: 47145117.19 | I33: 47876043.86
A34: DOPEX0121 | B34: Recoverable works | C34: 0 | D34: 0 | E34: 0 | F34: 0 | G34: 0 | H34: 0 | I34: 0
A35: DOPEX0122 | B35: Software as a Service (SaaS) | C35: 7855620.121 | D35: 6777992.127 | E35: 8467300.952 | F35: 8557129.464 | G35: 8709618.406 | H35: 8877802.393 | I35: 9007511.275
A36: DOPEX0123 | B36: Export Services | C36: 54068.30105 | D36: 21627.32042 | E36: 4025617.145 | F36: 4934446.356 | G36: 5440009.692 | H36: 5898489.907 | I36: 6551790.104
A37: DOPEX0124
A38: DOPEX0125
A39: DOPEX0126
A40: DOPEX0127
A41: DOPEX0128
A42: DOPEX0129
A43: DOPEX0130
A44: DOPEX0131
A45: DOPEX0132
A46: DOPEX0133
A47: DOPEX0134
A48: DOPEX0135
A49: DOPEX0136
A50: DOPEX0137
A51: DOPEX0138
A52: DOPEX0139
A53: DOPEX0140
A54: DOPEX0141
A55: DOPEX0142
A56: DOPEX0143
A57: DOPEX0144
A58: DOPEX0145
A59: DOPEX0146
A60: DOPEX0147
A61: DOPEX0148
A62: DOPEX0149
A63: DOPEX01 | B63: Total opex | C63: =SUM(C14:C62) -> 331774420 | D63: 287174714.3 | E63: 319677797.4 | F63: 327899598.8 | G63: 336834626.2 | H63: 346392174.6 | I63: 352879560.7 | K63: =SUM(K14:K61) -> 16828501.69 | L63: 16305705.78 | M63: 14923027.35 | N63: 15152787.2 | O63: 15869659.6 | P63: 16470512.19 | Q63: 16656441.26
B66: 3.2.2 - OPEX CONSISTENCY
B67: OPEX CONSISTENCY - CURRENT COST ALLOCATION APPROACH
C68: Standard control services | K68: Alternative control services
C69: =CONCATENATE("EXPENDITURE ($, real ", dms_DollarReal, ")") -> EXPENDITURE ($, real June 2026) | K69: =CONCATENATE("EXPENDITURE ($, real ", dms_DollarReal, ")") -> EXPENDITURE ($, real June 2026)
C70: =CRCP_y4 -> 2024-25 | D70: =CRCP_y5 -> 2025-26 | E70: =FRCP_y1 -> 2026-27 | F70: =FRCP_y2 -> 2027-28 | G70: =FRCP_y3 -> 2028-29 | H70: =FRCP_y4 -> 2029-30 | I70: =FRCP_y5 -> 2030-31 | K70: =CRCP_y4 -> 2024-25 | L70: =CRCP_y5 -> 2025-26 | M70: =FRCP_y1 -> 2026-27 | N70: =FRCP_y2 -> 2027-28 | O70: =FRCP_y3 -> 2028-29 | P70: =FRCP_y4 -> 2029-30 | Q70: =FRCP_y5 -> 2030-31
A71: DOPEX0201 | B71: Opex for network services | C71: 321835293.8 | D71: 277977574.5 | E71: 310427834 | F71: 318406784.2 | G71: 326927991.6 | H71: 336114397.1 | I71: 342363036.5
A72: DOPEX0202 | B72: Opex for metering | C72: 4494306 | D72: 4494306 | E72: 3998135 | F72: 4105998 | G72: 4375656 | H72: 4591383 | I72: 4724415 | K72: =K32 -> 12500000 | L72: 11910620.87 | M72: 11321241.74 | N72: 11619964.88 | O72: 12374765.28 | P72: 12982798.98 | Q72: 13365072.84
A73: DOPEX0203 | B73: Opex for connection services | C73: 5427975.533 | D73: 4688284.667 | E73: 5235580.808 | F73: 5370151.341 | G73: 5513867.415 | H73: 5668802.518 | I73: 5774190.157
A74: DOPEX0204 | B74: Opex for public lighting | C74: 0 | D74: 0 | E74: 0 | F74: 0 | G74: 0 | H74: 0 | I74: 0 | K74: =K19 -> 4328501.693 | L74: =L19 -> 4395084.911 | M74: 3601785.615 | N74: 3532822.323 | O74: 3494894.325 | P74: 3487713.205 | Q74: 3291368.426
A75: DOPEX0205 | B75: Opex for amounts payable for easement levy or similar direct charges on DNSP | C75: 0 | D75: 0 | E75: 0 | F75: 0 | G75: 0 | H75: 0 | I75: 0
A76: DOPEX0207 | B76: Opex for transmission connection point planning | C76: 16844.65619 | D76: 14549.17084 | E76: 16247.59694 | F76: 16665.21016 | G76: 17111.20478 | H76: 17592.01545 | I76: 17919.06529

Sheet 3.3 Assets (RAB)
B1: =INDEX(dms_Worksheet_List,MATCH(dms_Model,dms_Model_List)) -> REGULATORY REPORTING STATEMENT
B2: =INDEX(dms_TradingNameFull_List,MATCH(dms_TradingName,dms_TradingName_List)) -> AusNet Electricity Services Pty Ltd
B3: =CONCATENATE("REGULATORY PERIOD FROM ", FRCP_y1," TO ",dms_MultiYear_FinalYear_Result) -> REGULATORY PERIOD FROM 2026-27 TO 2030-31
B4: 3.3 ASSETS
B5: TEMPLATE DATE - SEPTEMBER 2024 - FINAL RIN
B7: There are FOUR tables on this worksheet. Both ROWS and COLUMNS in each have been grouped (and sub-grouped) for ease of navigation. see the Instructions sheet on how to group or ungroup tables.
B9: 3.3.1 - BENCHMARKING ASSET BASE VALUES
C10: Network services | K10: Standard control services | S10: Alternative control services
C11: =CONCATENATE(" VALUE FORECAST ($, real ", dms_DollarReal, ")") -> VALUE FORECAST ($, real June 2026) | K11: =CONCATENATE(" VALUE FORECAST ($, real ", dms_DollarReal, ")") -> VALUE FORECAST ($, real June 2026) | S11: =CONCATENATE(" VALUE FORECAST ($, real ", dms_DollarReal, ")") -> VALUE FORECAST ($, real June 2026)
C12: =CRCP_y4 -> 2024-25 | D12: =CRCP_y5 -> 2025-26 | E12: =FRCP_y1 -> 2026-27 | F12: =FRCP_y2 -> 2027-28 | G12: =FRCP_y3 -> 2028-29 | H12: =FRCP_y4 -> 2029-30 | I12: =FRCP_y5 -> 2030-31 | K12: =CRCP_y4 -> 2024-25 | L12: =CRCP_y5 -> 2025-26 | M12: =FRCP_y1 -> 2026-27 | N12: =FRCP_y2 -> 2027-28 | O12: =FRCP_y3 -> 2028-29 | P12: =FRCP_y4 -> 2029-30 | Q12: =FRCP_y5 -> 2030-31 | S12: =CRCP_y4 -> 2024-25 | T12: =CRCP_y5 -> 2025-26 | U12: =FRCP_y1 -> 2026-27 | V12: =FRCP_y2 -> 2027-28 | W12: =FRCP_y3 -> 2028-29 | X12: =FRCP_y4 -> 2029-30 | Y12: =FRCP_y5 -> 2030-31
B13: For total asset base:
A14: DRAB0101 | B14: Opening value | C14: 5649699020 | D14: 6037264631 | E14: 6130387535 | F14: 6431722234 | G14: 6803364371 | H14: 7196409335 | I14: 7579779209 | K14: 5664404885 | L14: 6052184113 | M14: 6144924754 | N14: 6445877190 | O14: 6817137065 | P14: 7209799766 | Q14: 7592787377 | S14: =S29+S38+S47+S56+S65+S74+S83+S92+S101+S110 -> 212419400.1 | T14: =T29+T38+T47+T56+T65+T74+T83+T92+T101+T110 -> 191611371.7 | U14: 167614486.6 | V14: 142264024.6 | W14: 142368593.2 | X14: 166161153.5 | Y14: 203913183.9
A15: DRAB0102 | B15: Inflation addition | C15: 228925113.2 | D15: 0 | E15: 0 | F15: 0 | G15: 0 | H15: 0 | I15: 0 | K15: 229520993 | L15: 0 | M15: 0 | N15: 0 | O15: 0 | P15: 0 | Q15: 0 | S15: =S30+S39+S48+S57+S66+S75+S84+S93+S102+S111 -> 6765942.281 | T15: 0 | U15: 0 | V15: 0 | W15: 0 | X15: 0 | Y15: 0
A16: DRAB0103 | B16: Actual straight line depreciation | C16: 306688305.8 | D16: 305876109.1 | E16: 312041024.5 | F16: 327390483.2 | G16: 349487843.1 | H16: 363826438.4 | I16: 374241212 | K16: 307070568.5 | L16: 306258371.8 | M16: 312423287.2 | N16: 327772745.9 | O16: 349870105.8 | P16: 364208701.1 | Q16: 374623474.7 | S16: =S31+S40+S49+S58+S67+S76+S85+S94+S103+S112 -> 46662935.26 | T16: 47628170.22 | U16: 49616180.96 | V16: 23378605.05 | W16: 18557944.36 | X16: 20342463.65 | Y16: 21615349.44
A17: DRAB0104 | B17: Gross capex | C17: 498986372.9 | D17: 489618222.3 | E17: 707367220.6 | F17: 743082489 | G17: 781780406.6 | H17: 784672486.9 | I17: 795508818.5 | K17: 498986372.9 | L17: 489618222.3 | M17: 707367220.6 | N17: 743082489 | O17: 781780406.6 | P17: 784672486.9 | Q17: 795508818.5 | S17: =S32+S41+S50+S59+S68+S77+S86+S95+S104+S113 -> 23023373.17 | T17: =T32+T41+T50+T59+T68+T77+T86+T95+T104+T113 -> 18938499.3 | U17: 27987459.29 | V17: 27324215.43 | W17: 45964942.73 | X17: 61515994.6 | Y17: 61754281.22
A18: DRAB0108 | B18: Capital contributions included in gross capex | C18: 47443127.39 | D18: 56738461.9 | E18: 68151312.3 | F18: 55419489.36 | G18: 51504495.74 | H18: 50515178.38 | I18: 51682875.68 | K18: 47443127.39 | L18: 56738461.9 | M18: 68151312.3 | N18: 55419489.36 | O18: 51504495.74 | P18: 50515178.38 | Q18: 51682875.68 | S18: =S33+S42+S51+S60+S69+S78+S87+S96+S105+S114 -> 4358526.517 | T18: 4480565.26 | U18: 4031427.592 | V18: 4144307.564 | W18: 4260348.176 | X18: 4379637.925 | Y18: 4502267.787
A19: DRAB0106 | B19: Disposals | C19: 1626885.212 | D19: 1626885.212 | E19: 36154220.28 | F19: 681891.6953 | G19: 915598.6197 | H19: 700593.4794 | I19: 735595.2882 | K19: 1626885.212 | L19: 1626885.212 | M19: 36154220.28 | N19: 681891.6953 | O19: 915598.6197 | P19: 700593.4794 | Q19: 735595.2882 | S19: =S34+S43+S52+S61+S70+S79+S88+S97+S106+S115 -> 0 | T19: 0 | U19: 0 | V19: 0 | W19: 0 | X19: 0 | Y19: 0
A20: DRAB0109 | B20: Capex timing adjustment | C20: 15412443.58 | D20: 10882896.71 | E20: 10314035.28 | F20: 12051512.97 | G20: 13172494.46 | H20: 13739597.52 | I20: 14637041.29 | K20: 15412443.58 | L20: 10882896.71 | M20: 10314035.28 | N20: 12051512.97 | O20: 13172494.46 | P20: 13739597.52 | Q20: 14637041.29 | S20: =S35+S44+S53+S62+S71+S80+S89+S98+S107+S116 -> 424117.9037 | T20: 258714.2116 | U20: 309687.263 | V20: 303265.7918 | W20: 645910.1096 | X20: 958137.3885 | Y20: 1008802.044
A21: DRAB0107 | B21: Closing value | C21: =C14+C15-C16+C17-C18-C19+C20 -> 6037264631 | D21: 6173524294 | E21: 6431722234 | F21: 6803364371 | G21: 7196409335 | H21: 7579779209 | I21: 7963265386 | K21: =K14+K15-K16+K17-K18-K19+K20 -> 6052184113 | L21: 6188061513 | M21: 6445877190 | N21: 6817137065 | O21: 7209799766 | P21: 7592787377 | Q21: 7975891291 | S21: =S14+S15-S16+S17-S18-S19+S20 -> 191611371.7 | T21: 158699849.7 | U21: 142264024.6 | V21: 142368593.2 | W21: 166161153.5 | X21: 203913183.9 | Y21: 240558649.9
B24: 3.3.2 - ASSET VALUE ROLL FORWARD
C25: Network services | K25: Standard control services | S25: Alternative control services
C26: =CONCATENATE(" VALUE FORECAST ($, real ", dms_DollarReal, ")") -> VALUE FORECAST ($, real June 2026) | K26: =CONCATENATE(" VALUE FORECAST ($, real ", dms_DollarReal, ")") -> VALUE FORECAST ($, real June 2026) | S26: =CONCATENATE(" VALUE FORECAST ($, real ", dms_DollarReal, ")") -> VALUE FORECAST ($, real June 2026)
C27: =CRCP_y4 -> 2024-25 | D27: =CRCP_y5 -> 2025-26 | E27: =FRCP_y1 -> 2026-27 | F27: =FRCP_y2 -> 2027-28 | G27: =FRCP_y3 -> 2028-29 | H27: =FRCP_y4 -> 2029-30 | I27: =FRCP_y5 -> 2030-31 | K27: =CRCP_y4 -> 2024-25 | L27: =CRCP_y5 -> 2025-26 | M27: =FRCP_y1 -> 2026-27 | N27: =FRCP_y2 -> 2027-28 | O27: =FRCP_y3 -> 2028-29 | P27: =FRCP_y4 -> 2029-30 | Q27: =FRCP_y5 -> 2030-31 | S27: =CRCP_y4 -> 2024-25 | T27: =CRCP_y5 -> 2025-26 | U27: =FRCP_y1 -> 2026-27 | V27: =FRCP_y2 -> 2027-28 | W27: =FRCP_y3 -> 2028-29 | X27: =FRCP_y4 -> 2029-30 | Y27: =FRCP_y5 -> 2030-31
B28: For overhead network assets less than 33kV:
A29: DRAB0201 | B29: Opening value | C29: 2685355287 | D29: 2833721207 | E29: 2850540025 | F29: 2944809557 | G29: 3048633150 | H29: 3168245775 | I29: 3301066830 | K29: 2685355287 | L29: 2833721207 | M29: 2850540025 | N29: 2944809557 | O29: 3048633150 | P29: 3168245775 | Q29: 3301066830 | S29: 0 | T29: 0 | U29: 0 | V29: 0 | W29: 0 | X29: 0 | Y29: 0
A30: DRAB0202 | B30: Inflation addition | C30: 108810267.8 | D30: 0 | E30: 0 | F30: 0 | G30: 0 | H30: 0 | I30: 0 | K30: 108810267.8 | L30: 0 | M30: 0 | N30: 0 | O30: 0 | P30: 0 | Q30: 0 | S30: 0 | T30: 0 | U30: 0 | V30: 0 | W30: 0 | X30: 0 | Y30: 0
A31: DRAB0203 | B31: Actual straight line depreciation | C31: 98103706.82 | D31: 100599558.4 | E31: 101729252 | F31: 105649227.7 | G31: 109838684.1 | H31: 114427710.3 | I31: 119372685.6 | K31: 98103706.82 | L31: 100599558.4 | M31: 101729252 | N31: 105649227.7 | O31: 109838684.1 | P31: 114427710.3 | Q31: 119372685.6 | S31: 0 | T31: 0 | U31: 0 | V31: 0 | W31: 0 | X31: 0 | Y31: 0
A32: DRAB0204 | B32: Gross capex | C32: 154104050.3 | D32: 152033309.7 | E32: 220172661.5 | F32: 230225803.5 | G32: 248603049.5 | H32: 266540530.4 | I32: 273814248.5 | K32: 154104050.3 | L32: 152033309.7 | M32: 220172661.5 | N32: 230225803.5 | O32: 248603049.5 | P32: 266540530.4 | Q32: 273814248.5 | S32: 0 | T32: 0 | U32: 0 | V32: 0 | W32: 0 | X32: 0 | Y32: 0
A33: DRAB0208 | B33: Capital contributions included in gross capex | C33: 21004192.68 | D33: 22498569.74 | E33: 27469636.06 | F33: 24364351.35 | G33: 23222194.85 | H33: 23838226.22 | I33: 25217421.33 | K33: 21004192.68 | L33: 22498569.74 | M33: 27469636.06 | N33: 24364351.35 | O33: 23222194.85 | P33: 23838226.22 | Q33: 25217421.33 | S33: 0 | T33: 0 | U33: 0 | V33: 0 | W33: 0 | X33: 0 | Y33: 0
A34: DRAB0206 | B34: Disposals | C34: 0 | D34: 0 | E34: 0 | F34: 0 | G34: 0 | H34: 0 | I34: 0 | K34: 0 | L34: 0 | M34: 0 | N34: 0 | O34: 0 | P34: 0 | Q34: 0 | S34: 0 | T34: 0 | U34: 0 | V34: 0 | W34: 0 | X34: 0 | Y34: 0
A35: DRAB0209 | B35: Capex timing adjustment | C35: 4559500.891 | D35: 3268878.371 | E35: 3295758.697 | F35: 3611368.541 | G35: 4070454.628 | H35: 4546460.49 | I35: 4896742.415 | K35: 4559500.891 | L35: 3268878.371 | M35: 3295758.697 | N35: 3611368.541 | O35: 4070454.628 | P35: 4546460.49 | Q35: 4896742.415 | S35: 0 | T35: 0 | U35: 0 | V35: 0 | W35: 0 | X35: 0 | Y35: 0
A36: DRAB0207 | B36: Closing value | C36: =C29+C30-C31+C32-C33-C34+C35 -> 2833721207 | D36: 2865925267 | E36: 2944809557 | F36: 3048633150 | G36: 3168245775 | H36: 3301066830 | I36: 3435187714 | K36: =K29+K30-K31+K32-K33-K34+K35 -> 2833721207 | L36: 2865925267 | M36: 2944809557 | N36: 3048633150 | O36: 3168245775 | P36: 3301066830 | Q36: 3435187714 | S36: =S29+S30-S31+S32-S33-S34+S35 -> 0 | T36: 0 | U36: 0 | V36: 0 | W36: 0 | X36: 0 | Y36: 0
B37: For underground network assets less than 33kV:
A38: DRAB0301 | B38: Opening value | C38: 1213429316 | D38: 1298443319 | E38: 1323191746 | F38: 1390124346 | G38: 1462621456 | H38: 1544314469 | I38: 1633700380 | K38: 1213429316 | L38: 1298443319 | M38: 1323191746 | N38: 1390124346 | O38: 1462621456 | P38: 1544314469 | Q38: 1633700380 | S38: 0 | T38: 0 | U38: 0 | V38: 0 | W38: 0 | X38: 0 | Y38: 0
A39: DRAB0302 | B39: Inflation addition | C39: 49168007.45 | D39: 0 | E39: 0 | F39: 0 | G39: 0 | H39: 0 | I39: 0 | K39: 49168007.45 | L39: 0 | M39: 0 | N39: 0 | O39: 0 | P39: 0 | Q39: 0 | S39: 0 | T39: 0 | U39: 0 | V39: 0 | W39: 0 | X39: 0 | Y39: 0
A40: DRAB0303 | B40: Actual straight line depreciation | C40: 44330042.44 | D40: 45457840.86 | E40: 47221686.18 | F40: 49504771.92 | G40: 51944809.56 | H40: 54617566 | I40: 57497635.54 | K40: 44330042.44 | L40: 45457840.86 | M40: 47221686.18 | N40: 49504771.92 | O40: 51944809.56 | P40: 54617566 | Q40: 57497635.54 | S40: 0 | T40: 0 | U40: 0 | V40: 0 | W40: 0 | X40: 0 | Y40: 0
A41: DRAB0304 | B41: Gross capex | C41: 89753811.84 | D41: 88547763.97 | E41: 128233720 | F41: 134088905.6 | G41: 144792244.5 | H41: 155239453.9 | I41: 159475837.8 | K41: 89753811.84 | L41: 88547763.97 | M41: 128233720 | N41: 134088905.6 | O41: 144792244.5 | P41: 155239453.9 | Q41: 159475837.8 | S41: 0 | T41: 0 | U41: 0 | V41: 0 | W41: 0 | X41: 0 | Y41: 0
A42: DRAB0308 | B42: Capital contributions included in gross capex | C42: 12233334.25 | D42: 13103694.49 | E42: 15998960.06 | F42: 14190369.44 | G42: 13525150.72 | H42: 13883941.83 | I42: 14687217.4 | K42: 12233334.25 | L42: 13103694.49 | M42: 15998960.06 | N42: 14190369.44 | O42: 13525150.72 | P42: 13883941.83 | Q42: 14687217.4 | S42: 0 | T42: 0 | U42: 0 | V42: 0 | W42: 0 | X42: 0 | Y42: 0
A43: DRAB0306 | B43: Disposals | C43: 0 | D43: 0 | E43: 0 | F43: 0 | G43: 0 | H43: 0 | I43: 0 | K43: 0 | L43: 0 | M43: 0 | N43: 0 | O43: 0 | P43: 0 | Q43: 0 | S43: 0 | T43: 0 | U43: 0 | V43: 0 | W43: 0 | X43: 0 | Y43: 0
A44: DRAB0309 | B44: Capex timing adjustment | C44: 2655560.216 | D44: 1903871.401 | E44: 1919527.133 | F44: 2103345.706 | G44: 2370728.206 | H44: 2647965.18 | I44: 2851977.586 | K44: 2655560.216 | L44: 1903871.401 | M44: 1919527.133 | N44: 2103345.706 | O44: 2370728.206 | P44: 2647965.18 | Q44: 2851977.586 | S44: 0 | T44: 0 | U44: 0 | V44: 0 | W44: 0 | X44: 0 | Y44: 0
A45: DRAB0307 | B45: Closing value | C45: =C38+C39-C40+C41-C42-C43+C44 -> 1298443319 | D45: 1330333419 | E45: 1390124346 | F45: 1462621456 | G45: 1544314469 | H45: 1633700380 | I45: 1723843343 | K45: =K38+K39-K40+K41-K42-K43+K44 -> 1298443319 | L45: 1330333419 | M45: 1390124346 | N45: 1462621456 | O45: 1544314469 | P45: 1633700380 | Q45: 1723843343 | S45: =S38+S39-S40+S41-S42-S43+S44 -> 0 | T45: 0 | U45: 0 | V45: 0 | W45: 0 | X45: 0 | Y45: 0
B46: For distribution substations and transformers:
A47: DRAB0401 | B47: Opening value | C47: 377658736.5 | D47: 426091373.4 | E47: 451948418 | F47: 506961948.1 | G47: 567271784.1 | H47: 627992488.1 | I47: 688600410.6 | K47: 377658736.5 | L47: 423046134.9 | M47: 448809612.3 | N47: 495271145.7 | O47: 544778226.5 | P47: 599318376.2 | Q47: 658068976.1 | S47: 0 | T47: 0 | U47: 0 | V47: 0 | W47: 0 | X47: 0 | Y47: 0
A48: DRAB0402 | B48: Inflation addition | C48: 15302685.81 | D48: 0 | E48: 0 | F48: 0 | G48: 0 | H48: 0 | I48: 0 | K48: 15302685.81 | L48: 0 | M48: 0 | N48: 0 | O48: 0 | P48: 0 | Q48: 0 | S48: 0 | T48: 0 | U48: 0 | V48: 0 | W48: 0 | X48: 0 | Y48: 0
A49: DRAB0403 | B49: Actual straight line depreciation | C49: 13779516.22 | D49: 14130523.83 | E49: 14563571.32 | F49: 15955113.35 | G49: 17481167.21 | H49: 19047027 | I49: 20643565.59 | K49: 13796953.48 | L49: 14147961.09 | M49: 16016988.27 | N49: 17266558.7 | O49: 18602031.49 | P49: 20064875.12 | Q49: 21641184.62 | S49: 0 | T49: 0 | U49: 0 | V49: 0 | W49: 0 | X49: 0 | Y49: 0
A50: DRAB0404 | B50: Gross capex | C50: 50916208.41 | D50: 49884646.62 | E50: 79649394.62 | F50: 87809979.29 | G50: 88673057 | H50: 89445279.96 | I50: 90522585.44 | K50: 49123739.61 | L50: 48463649.75 | M50: 70184427.16 | N50: 73389066.68 | O50: 79247180.37 | P50: 84965110.15 | Q50: 87283752.88 | S50: 0 | T50: 0 | U50: 0 | V50: 0 | W50: 0 | X50: 0 | Y50: 0
A51: DRAB0408 | B51: Capital contributions included in gross capex | C51: 5560458.609 | D51: 5834589.593 | E51: 10072293.2 | F51: 11545029.94 | G51: 10471185.76 | H51: 9790330.463 | I51: 10266755.58 | K51: 6695505.34 | L51: 7171867.832 | M51: 8756494.368 | N51: 7766622.935 | O51: 7402537.77 | P51: 7598910.056 | Q51: 8038556.005 | S51: 0 | T51: 0 | U51: 0 | V51: 0 | W51: 0 | X51: 0 | Y51: 0
A52: DRAB0406 | B52: Disposals | C52: 0 | D52: 0 | E52: 0 | F52: 0 | G52: 0 | H52: 0 | I52: 0 | K52: 0 | L52: 0 | M52: 0 | N52: 0 | O52: 0 | P52: 0 | Q52: 0 | S52: 0 | T52: 0 | U52: 0 | V52: 0 | W52: 0 | X52: 0 | Y52: 0
A53: DRAB0409 | B53: Capex timing adjustment | C53: 1553717.527 | D53: 1111626.724 | E53: 0 | F53: 0 | G53: 0 | H53: 0 | I53: 0 | K53: 1453431.847 | L53: 1042020.178 | M53: 1050588.818 | N53: 1151195.75 | O53: 1297538.597 | P53: 1449274.959 | Q53: 1560934.309 | S53: 0 | T53: 0 | U53: 0 | V53: 0 | W53: 0 | X53: 0 | Y53: 0
A54: DRAB0407 | B54: Closing value | C54: =C47+C48-C49+C50-C51-C52+C53 -> 426091373.4 | D54: 457122533.3 | E54: 506961948.1 | F54: 567271784.1 | G54: 627992488.1 | H54: 688600410.6 | I54: 748212674.9 | K54: =K47+K48-K49+K50-K51-K52+K53 -> 423046134.9 | L54: 451231975.9 | M54: 495271145.7 | N54: 544778226.5 | O54: 599318376.2 | P54: 658068976.1 | Q54: 717233922.7 | S54: =S47+S48-S49+S50-S51-S52+S53 -> 0 | T54: 0 | U54: 0 | V54: 0 | W54: 0 | X54: 0 | Y54: 0
B55: For overhead network assets 33kV and above:
A56: DRAB0501 | B56: Opening value | C56: 243653673.5 | D56: 254811326.2 | E56: 269879646 | F56: 270082626.3 | G56: 277621321.9 | H56: 287454749.1 | I56: 293687846.4 | K56: 243653673.5 | L56: 254811326.2 | M56: 269879646 | N56: 270082626.3 | O56: 277621321.9 | P56: 287454749.1 | Q56: 293687846.4 | S56: 0 | T56: 0 | U56: 0 | V56: 0 | W56: 0 | X56: 0 | Y56: 0
A57: DRAB0502 | B57: Inflation addition | C57: 9872817.045 | D57: 0 | E57: 0 | F57: 0 | G57: 0 | H57: 0 | I57: 0 | K57: 9872817.045 | L57: 0 | M57: 0 | N57: 0 | O57: 0 | P57: 0 | Q57: 0 | S57: 0 | T57: 0 | U57: 0 | V57: 0 | W57: 0 | X57: 0 | Y57: 0
A58: DRAB0503 | B58: Actual straight line depreciation | C58: 7769153.552 | D58: 7934105.636 | E58: 8444912.585 | F58: 8637087.982 | G58: 8996549.84 | H58: 9414993.774 | I58: 9762729.131 | K58: 7769153.552 | L58: 7934105.636 | M58: 8444912.585 | N58: 8637087.982 | O58: 8996549.84 | P58: 9414993.774 | Q58: 9762729.131 | S58: 0 | T58: 0 | U58: 0 | V58: 0 | W58: 0 | X58: 0 | Y58: 0
A59: DRAB0504 | B59: Gross capex | C59: 9602260.538 | D59: 10487923.9 | E59: 10492122.07 | F59: 17033529.92 | G59: 19414737.76 | H59: 16009243.99 | I59: 14718177.52 | K59: 9602260.538 | L59: 10487923.9 | M59: 10492122.07 | N59: 17033529.92 | O59: 19414737.76 | P59: 16009243.99 | Q59: 14718177.52 | S59: 0 | T59: 0 | U59: 0 | V59: 0 | W59: 0 | X59: 0 | Y59: 0
A60: DRAB0508 | B60: Capital contributions included in gross capex | C60: 848154.1256 | D60: 1744548.243 | E60: 1989645.231 | F60: 1136621.245 | G60: 918803.572 | H60: 648893.1874 | I60: 467194.1937 | K60: 848154.1256 | L60: 1744548.243 | M60: 1989645.231 | N60: 1136621.245 | O60: 918803.572 | P60: 648893.1874 | Q60: 467194.1937 | S60: 0 | T60: 0 | U60: 0 | V60: 0 | W60: 0 | X60: 0 | Y60: 0
A61: DRAB0506 | B61: Disposals | C61: 0 | D61: 0 | E61: 0 | F61: 0 | G61: 0 | H61: 0 | I61: 0 | K61: 0 | L61: 0 | M61: 0 | N61: 0 | O61: 0 | P61: 0 | Q61: 0 | S61: 0 | T61: 0 | U61: 0 | V61: 0 | W61: 0 | X61: 0 | Y61: 0
A62: DRAB0509 | B62: Capex timing adjustment | C62: 299882.785 | D62: 220643.756 | E62: 145416.0459 | F62: 278874.9194 | G62: 334042.8407 | H62: 287740.2761 | I62: 280709.1117 | K62: 299882.785 | L62: 220643.756 | M62: 145416.0459 | N62: 278874.9194 | O62: 334042.8407 | P62: 287740.2761 | Q62: 280709.1117 | S62: 0 | T62: 0 | U62: 0 | V62: 0 | W62: 0 | X62: 0 | Y62: 0
A63: DRAB0507 | B63: Closing value | C63: =C56+C57-C58+C59-C60-C61+C62 -> 254811326.2 | D63: 255841239.9 | E63: 270082626.3 | F63: 277621321.9 | G63: 287454749.1 | H63: 293687846.4 | I63: 298456809.7 | K63: =K56+K57-K58+K59-K60-K61+K62 -> 254811326.2 | L63: 255841239.9 | M63: 270082626.3 | N63: 277621321.9 | O63: 287454749.1 | P63: 293687846.4 | Q63: 298456809.7 | S63: =S56+S57-S58+S59-S60-S61+S62 -> 0 | T63: 0 | U63: 0 | V63: 0 | W63: 0 | X63: 0 | Y63: 0
B64: For underground network assets 33kV and above:
A65: DRAB0601 | B65: Opening value | C65: 2457203.713 | D65: 3199734.152 | E65: 4044238.028 | F65: 4606650.54 | G65: 5753486.569 | H65: 7083139.82 | I65: 8125961.131 | K65: 2457203.713 | L65: 3199734.152 | M65: 4044238.028 | N65: 4606650.54 | O65: 5753486.569 | P65: 7083139.82 | Q65: 8125961.131 | S65: 0 | T65: 0 | U65: 0 | V65: 0 | W65: 0 | X65: 0 | Y65: 0
A66: DRAB0602 | B66: Inflation addition | C66: 99565.59386 | D66: 0 | E66: 0 | F66: 0 | G66: 0 | H66: 0 | I66: 0 | K66: 99565.59386 | L66: 0 | M66: 0 | N66: 0 | O66: 0 | P66: 0 | Q66: 0 | S66: 0 | T66: 0 | U66: 0 | V66: 0 | W66: 0 | X66: 0 | Y66: 0
A67: DRAB0603 | B67: Actual straight line depreciation | C67: 78350.52384 | D67: 80014.0361 | E67: 126549.8793 | F67: 141860.1546 | G67: 170497.8476 | H67: 203834.5387 | I67: 231538.002 | K67: 78350.52384 | L67: 80014.0361 | M67: 126549.8793 | N67: 141860.1546 | O67: 170497.8476 | P67: 203834.5387 | Q67: 231538.002 | S67: 0 | T67: 0 | U67: 0 | V67: 0 | W67: 0 | X67: 0 | Y67: 0
A68: DRAB0604 | B68: Gross capex | C68: 764995.1814 | D68: 835554.4212 | E68: 835888.882 | F68: 1357031.322 | G68: 1546737.956 | H68: 1275428.266 | I68: 1172571.275 | K68: 764995.1814 | L68: 835554.4212 | M68: 835888.882 | N68: 1357031.322 | O68: 1546737.956 | P68: 1275428.266 | Q68: 1172571.275 | S68: 0 | T68: 0 | U68: 0 | V68: 0 | W68: 0 | X68: 0 | Y68: 0
A69: DRAB0608 | B69: Capital contributions included in gross capex | C69: 67570.94505 | D69: 138985.0853 | E69: 158511.5305 | F69: 90552.61229 | G69: 73199.46199 | H69: 51696.17713 | I69: 37220.53839 | K69: 67570.94505 | L69: 138985.0853 | M69: 158511.5305 | N69: 90552.61229 | O69: 73199.46199 | P69: 51696.17713 | Q69: 37220.53839 | S69: 0 | T69: 0 | U69: 0 | V69: 0 | W69: 0 | X69: 0 | Y69: 0
A70: DRAB0606 | B70: Disposals | C70: 0 | D70: 0 | E70: 0 | F70: 0 | G70: 0 | H70: 0 | I70: 0 | K70: 0 | L70: 0 | M70: 0 | N70: 0 | O70: 0 | P70: 0 | Q70: 0 | S70: 0 | T70: 0 | U70: 0 | V70: 0 | W70: 0 | X70: 0 | Y70: 0
A71: DRAB0609 | B71: Capex timing adjustment | C71: 23891.1332 | D71: 17578.29935 | E71: 11585.0402 | F71: 22217.47355 | G71: 26612.60466 | H71: 22923.76091 | I71: 22363.60042 | K71: 23891.1332 | L71: 17578.29935 | M71: 11585.0402 | N71: 22217.47355 | O71: 26612.60466 | P71: 22923.76091 | Q71: 22363.60042 | S71: 0 | T71: 0 | U71: 0 | V71: 0 | W71: 0 | X71: 0 | Y71: 0
A72: DRAB0607 | B72: Closing value | C72: =C65+C66-C67+C68-C69-C70+C71 -> 3199734.152 | D72: 3833867.751 | E72: 4606650.54 | F72: 5753486.569 | G72: 7083139.82 | H72: 8125961.131 | I72: 9052137.466 | K72: =K65+K66-K67+K68-K69-K70+K71 -> 3199734.152 | L72: 3833867.751 | M72: 4606650.54 | N72: 5753486.569 | O72: 7083139.82 | P72: 8125961.131 | Q72: 9052137.466 | S72: =S65+S66-S67+S68-S69-S70+S71 -> 0 | T72: 0 | U72: 0 | V72: 0 | W72: 0 | X72: 0 | Y72: 0
B73: Zone substations and transformers
A74: DRAB0701 | B74: Opening value | C74: 620666344.9 | D74: 698329563.8 | E74: 782862165.3 | F74: 823782815.1 | G74: 912430361.3 | H74: 1016491021 | I74: 1095311081 | K74: 620666344.9 | L74: 698329563.8 | M74: 782862165.3 | N74: 823782815.1 | O74: 912430361.3 | P74: 1016491021 | Q74: 1095311081 | S74: 0 | T74: 0 | U74: 0 | V74: 0 | W74: 0 | X74: 0 | Y74: 0
A75: DRAB0702 | B75: Inflation addition | C75: 25149324.37 | D75: 0 | E75: 0 | F75: 0 | G75: 0 | H75: 0 | I75: 0 | K75: 25149324.37 | L75: 0 | M75: 0 | N75: 0 | O75: 0 | P75: 0 | Q75: 0 | S75: 0 | T75: 0 | U75: 0 | V75: 0 | W75: 0 | X75: 0 | Y75: 0
A76: DRAB0703 | B76: Actual straight line depreciation | C76: 19081245.06 | D76: 19486371.71 | E76: 23398762.23 | F76: 24729554.81 | G76: 27218786.96 | H76: 30116463.21 | I76: 32524490.68 | K76: 19081245.06 | L76: 19486371.71 | M76: 23398762.23 | N76: 24729554.81 | O76: 27218786.96 | P76: 30116463.21 | Q76: 32524490.68 | S76: 0 | T76: 0 | U76: 0 | V76: 0 | W76: 0 | X76: 0 | Y76: 0
A77: DRAB0704 | B77: Gross capex | C77: 75097162.63 | D77: 75627670.25 | E77: 112460690.4 | F77: 119293420.7 | G77: 135313165.4 | H77: 111426886.9 | I77: 104599175.9 | K77: 75097162.63 | L77: 75627670.25 | M77: 112460690.4 | N77: 119293420.7 | O77: 135313165.4 | P77: 111426886.9 | Q77: 104599175.9 | S77: 0 | T77: 0 | U77: 0 | V77: 0 | W77: 0 | X77: 0 | Y77: 0
A78: DRAB0708 | B78: Capital contributions included in gross capex | C78: 5873370.053 | D78: 12080796.52 | E78: 13778065.05 | F78: 7870971.774 | G78: 6362609.367 | H78: 4493510.908 | I78: 3235266.213 | K78: 5873370.053 | L78: 12080796.52 | M78: 13778065.05 | N78: 7870971.774 | O78: 6362609.367 | P78: 4493510.908 | Q78: 3235266.213 | S78: 0 | T78: 0 | U78: 0 | V78: 0 | W78: 0 | X78: 0 | Y78: 0
A79: DRAB0706 | B79: Disposals | C79: 0 | D79: 0 | E79: 35444757.12 | F79: 0 | G79: 0 | H79: 0 | I79: 0 | K79: 0 | L79: 0 | M79: 35444757.12 | N79: 0 | O79: 0 | P79: 0 | Q79: 0 | S79: 0 | T79: 0 | U79: 0 | V79: 0 | W79: 0 | X79: 0 | Y79: 0
A80: DRAB0709 | B80: Capex timing adjustment | C80: 2371346.969 | D80: 1603639.31 | E80: 1081543.757 | F80: 1954652.134 | G80: 2328890.749 | H80: 2003146.904 | I80: 1996618.225 | K80: 2371346.969 | L80: 1603639.31 | M80: 1081543.757 | N80: 1954652.134 | O80: 2328890.749 | P80: 2003146.904 | Q80: 1996618.225 | S80: 0 | T80: 0 | U80: 0 | V80: 0 | W80: 0 | X80: 0 | Y80: 0
A81: DRAB0707 | B81: Closing value | C81: =C74+C75-C76+C77-C78-C79+C80 -> 698329563.8 | D81: 743993705.1 | E81: 823782815.1 | F81: 912430361.3 | G81: 1016491021 | H81: 1095311081 | I81: 1166147118 | K81: =K74+K75-K76+K77-K78-K79+K80 -> 698329563.8 | L81: 743993705.1 | M81: 823782815.1 | N81: 912430361.3 | O81: 1016491021 | P81: 1095311081 | Q81: 1166147118 | S81: =S74+S75-S76+S77-S78-S79+S80 -> 0 | T81: 0 | U81: 0 | V81: 0 | W81: 0 | X81: 0 | Y81: 0
B82: For easements:
A83: DRAB0801 | B83: Opening value | C83: 0 | D83: 0 | E83: 0 | F83: 0 | G83: 0 | H83: 0 | I83: 0 | K83: 0 | L83: 0 | M83: 0 | N83: 0 | O83: 0 | P83: 0 | Q83: 0 | S83: 0 | T83: 0 | U83: 0 | V83: 0 | W83: 0 | X83: 0 | Y83: 0
A84: DRAB0802 | B84: Inflation addition | C84: 0 | D84: 0 | E84: 0 | F84: 0 | G84: 0 | H84: 0 | I84: 0 | K84: 0 | L84: 0 | M84: 0 | N84: 0 | O84: 0 | P84: 0 | Q84: 0 | S84: 0 | T84: 0 | U84: 0 | V84: 0 | W84: 0 | X84: 0 | Y84: 0
B85: Actual straight line depreciation
A86: DRAB0804 | B86: Gross capex | C86: 0 | D86: 0 | E86: 0 | F86: 0 | G86: 0 | H86: 0 | I86: 0 | K86: 0 | L86: 0 | M86: 0 | N86: 0 | O86: 0 | P86: 0 | Q86: 0 | S86: 0 | T86: 0 | U86: 0 | V86: 0 | W86: 0 | X86: 0 | Y86: 0
A87: DRAB0808 | B87: Capital contributions included in gross capex | C87: 0 | D87: 0 | E87: 0 | F87: 0 | G87: 0 | H87: 0 | I87: 0 | K87: 0 | L87: 0 | M87: 0 | N87: 0 | O87: 0 | P87: 0 | Q87: 0 | S87: 0 | T87: 0 | U87: 0 | V87: 0 | W87: 0 | X87: 0 | Y87: 0
A88: DRAB0806 | B88: Disposals | C88: 0 | D88: 0 | E88: 0 | F88: 0 | G88: 0 | H88: 0 | I88: 0 | K88: 0 | L88: 0 | M88: 0 | N88: 0 | O88: 0 | P88: 0 | Q88: 0 | S88: 0 | T88: 0 | U88: 0 | V88: 0 | W88: 0 | X88: 0 | Y88: 0
A89: DRAB0809 | B89: Capex timing adjustment | C89: 0 | D89: 0 | E89: 0 | F89: 0 | G89: 0 | H89: 0 | I89: 0 | K89: 0 | L89: 0 | M89: 0 | N89: 0 | O89: 0 | P89: 0 | Q89: 0 | S89: 0 | T89: 0 | U89: 0 | V89: 0 | W89: 0 | X89: 0 | Y89: 0
A90: DRAB0807 | B90: Closing value | C90: =C83+C84-C85+C86-C87-C88+C89 -> 0 | D90: 0 | E90: 0 | F90: 0 | G90: 0 | H90: 0 | I90: 0 | K90: =K83+K84-K85+K86-K87-K88+K89 -> 0 | L90: 0 | M90: 0 | N90: 0 | O90: 0 | P90: 0 | Q90: 0 | S90: =S83+S84-S85+S86-S87-S88+S89 -> 0 | T90: 0 | U90: 0 | V90: 0 | W90: 0 | X90: 0 | Y90: 0
B91: For meters:
A92: DRAB0901 | B92: Opening value | C92: 0 | D92: 0 | E92: 0 | F92: 0 | G92: 0 | H92: 0 | I92: 0 | K92: 0 | L92: 0 | M92: 0 | N92: 0 | O92: 0 | P92: 0 | Q92: 0 | S92: 166978349.1 | T92: 142558707.5 | U92: 118568654.3 | V92: 90264839.43 | W92: 87534623.09 | X92: 108594803.3 | Y92: 143713330
A93: DRAB0902 | B93: Inflation addition | C93: 0 | D93: 0 | E93: 0 | F93: 0 | G93: 0 | H93: 0 | I93: 0 | K93: 0 | L93: 0 | M93: 0 | N93: 0 | O93: 0 | P93: 0 | Q93: 0 | S93: 6765942.281 | T93: 0 | U93: 0 | V93: 0 | W93: 0 | X93: 0 | Y93: 0
A94: DRAB0903 | B94: Actual straight line depreciation | C94: 0 | D94: 0 | E94: 0 | F94: 0 | G94: 0 | H94: 0 | I94: 0 | K94: 0 | L94: 0 | M94: 0 | N94: 0 | O94: 0 | P94: 0 | Q94: 0 | S94: 43990450 | T94: 44844103.45 | U94: 46720917.73 | V94: 20320761.35 | W94: 15349738.03 | X94: 16987564.7 | Y94: 18113254.25
A95: DRAB0904 | B95: Gross capex | C95: 0 | D95: 0 | E95: 0 | F95: 0 | G95: 0 | H95: 0 | I95: 0 | K95: 0 | L95: 0 | M95: 0 | N95: 0 | O95: 0 | P95: 0 | Q95: 0 | S95: 12380748.23 | T95: 10251980.75 | U95: 18107415.62 | V95: 17287279.21 | W95: 35764008.16 | X95: 51147953.97 | Y95: 51214657.88
A96: DRAB0908 | B96: Capital contributions included in gross capex | C96: 0 | D96: 0 | E96: 0 | F96: 0 | G96: 0 | H96: 0 | I96: 0 | K96: 0 | L96: 0 | M96: 0 | N96: 0 | O96: 0 | P96: 0 | Q96: 0 | S96: 0 | T96: 0 | U96: 0 | V96: 0 | W96: 0 | X96: 0 | Y96: 0
A97: DRAB0906 | B97: Disposals | C97: 0 | D97: 0 | E97: 0 | F97: 0 | G97: 0 | H97: 0 | I97: 0 | K97: 0 | L97: 0 | M97: 0 | N97: 0 | O97: 0 | P97: 0 | Q97: 0 | S97: 0 | T97: 0 | U97: 0 | V97: 0 | W97: 0 | X97: 0 | Y97: 0
A98: DRAB0909 | B98: Capex timing adjustment | C98: 0 | D98: 0 | E98: 0 | F98: 0 | G98: 0 | H98: 0 | I98: 0 | K98: 0 | L98: 0 | M98: 0 | N98: 0 | O98: 0 | P98: 0 | Q98: 0 | S98: 424117.9037 | T98: 258714.2116 | U98: 309687.263 | V98: 303265.7918 | W98: 645910.1096 | X98: 958137.3885 | Y98: 1008802.044
A99: DRAB0907 | B99: Closing value | C99: =C92+C93-C94+C95-C96-C97+C98 -> 0 | D99: 0 | E99: 0 | F99: 0 | G99: 0 | H99: 0 | I99: 0 | K99: =K92+K93-K94+K95-K96-K97+K98 -> 0 | L99: 0 | M99: 0 | N99: 0 | O99: 0 | P99: 0 | Q99: 0 | S99: =S92+S93-S94+S95-S96-S97+S98 -> 142558707.5 | T99: 108225299.1 | U99: 90264839.43 | V99: 87534623.09 | W99: 108594803.3 | X99: 143713330 | Y99: 177823535.7
B100: For “other” asset items with long lives:
A101: DRAB1001 | B101: Opening value | C101: 283646894.9 | D101: 267854825.4 | E101: 201109383.2 | F101: 235044256 | G101: 250354594.8 | H101: 271854103.7 | I101: 304579913.7 | K101: 298352759.3 | L101: 282774307 | M101: 215646602.1 | N101: 249199212.2 | O101: 264127288.3 | P101: 285244534.5 | Q101: 317588081.8 | S101: 45441051.01 | T101: 49052664.17 | U101: 49045832.31 | V101: =U108 -> 51999185.15 | W101: =V108 -> 54833970.11 | X101: 57566350.17 | Y101: 60199853.92
A102: DRAB1002 | B102: Inflation addition | C102: 11493337.48 | D102: 0 | E102: 0 | F102: 0 | G102: 0 | H102: 0 | I102: 0 | K102: 12089217.31 | L102: 0 | M102: 0 | N102: 0 | O102: 0 | P102: 0 | Q102: 0 | S102: 0 | T102: 0 | U102: 0 | V102: 0 | W102: 0 | X102: 0 | Y102: 0
A103: DRAB1003 | B103: Actual straight line depreciation | C103: 57524880.43 | D103: 54316185.02 | E103: 34344468.07 | F103: 36827448.63 | G103: 38149829.49 | H103: 36319534.08 | I103: 37683529.88 | K103: 57907143.12 | L103: 54698447.72 | M103: 34726730.77 | N103: 37209711.33 | O103: 38532092.19 | P103: 36701796.78 | Q103: 38065792.58 | S103: 2672485.258 | T103: 2784066.779 | U103: 2895263.23 | V103: 3057843.703 | W103: 3208206.331 | X103: 3354898.942 | Y103: 3502095.199
A104: DRAB1004 | B104: Gross capex | C104: 29237893.17 | D104: 27418560.53 | E104: 67174857.63 | F104: 51254993.8 | G104: 58840945.06 | H104: 67810502.09 | I104: 69146709.21 | K104: 29237893.17 | L104: 27418560.53 | M104: 67174857.63 | N104: 51254993.8 | O104: 58840945.06 | P104: 67810502.09 | Q104: 69146709.21 | S104: 10642624.94 | T104: 8686518.547 | U104: 9880043.664 | V104: 10036936.22 | W104: 10200934.57 | X104: 10368040.62 | Y104: 10539623.34
A105: DRAB1008 | B105: Capital contributions included in gross capex | C105: 0 | D105: 0 | E105: 0 | F105: 0 | G105: 0 | H105: 0 | I105: 0 | K105: 0 | L105: 0 | M105: 0 | N105: 0 | O105: 0 | P105: 0 | Q105: 0 | S105: 4358526.517 | T105: 4480565.26 | U105: 4031427.592 | V105: 4144307.564 | W105: 4260348.176 | X105: 4379637.925 | Y105: 4502267.787
A106: DRAB1006 | B106: Disposals | C106: 0 | D106: 0 | E106: 43647.49891 | F106: 16076.03211 | G106: 249782.9565 | H106: 34777.81613 | I106: 69779.62498 | K106: 0 | L106: 0 | M106: 43647.49891 | N106: 16076.03211 | O106: 249782.9565 | P106: 34777.81613 | Q106: 69779.62498 | S106: 0 | T106: 0 | U106: 0 | V106: 0 | W106: 0 | X106: 0 | Y106: 0
A107: DRAB1009 | B107: Capex timing adjustment | C107: 1001580.335 | D107: 691922.0241 | E107: 1148130.752 | F107: 898869.6706 | G107: 1058176.247 | H107: 1269619.807 | I107: 1360644.602 | K107: 1001580.335 | L107: 691922.0241 | M107: 1148130.752 | N107: 898869.6706 | O107: 1058176.247 | P107: 1269619.807 | Q107: 1360644.602 | S107: 0 | T107: 0 | U107: 0 | V107: 0 | W107: 0 | X107: 0 | Y107: 0
A108: DRAB1007 | B108: Closing value | C108: =C101+C102-C103+C104-C105-C106+C107 -> 267854825.4 | D108: 241649123 | E108: 235044256 | F108: 250354594.8 | G108: 271854103.7 | H108: 304579913.7 | I108: 337333958 | K108: =K101+K102-K103+K104-K105-K106+K107 -> 282774307 | L108: 256186341.9 | M108: 249199212.2 | N108: 264127288.3 | O108: 285244534.5 | P108: 317588081.8 | Q108: 349959863.4 | S108: =S101+S102-S103+S104-S105-S106+S107 -> 49052664.17 | T108: 50474550.68 | U108: 51999185.15 | V108: 54833970.11 | W108: 57566350.17 | X108: 60199853.92 | Y108: 62735114.28
B109: For “other” asset items with short lives:
A110: DRAB1101 | B110: Opening value | C110: 222831563.4 | D110: 257858521.4 | E110: 249950719.4 | F110: 268000836.5 | G110: 301171773.8 | H110: 301647701 | I110: 285238221.2 | K110: 222831563.4 | L110: 257858521.4 | M110: 249950719.4 | N110: 268000836.5 | O110: 301171773.8 | P110: 301647701 | Q110: 285238221.2 | S110: 0 | T110: 0 | U110: 0 | V110: 0 | W110: 0 | X110: 0 | Y110: 0
A111: DRAB1102 | B111: Inflation addition | C111: 9029107.69 | D111: 0 | E111: 0 | F111: 0 | G111: 0 | H111: 0 | I111: 0 | K111: 9029107.69 | L111: 0 | M111: 0 | N111: 0 | O111: 0 | P111: 0 | Q111: 0 | S111: 0 | T111: 0 | U111: 0 | V111: 0 | W111: 0 | X111: 0 | Y111: 0
A112: DRAB1103 | B112: Actual straight line depreciation | C112: 66003973.48 | D112: 63854072.39 | E112: 80758405.33 | F112: 84633973.33 | G112: 94566653.84 | H112: 98661461.42 | I112: 95527418.57 | K112: 66003973.48 | L112: 63854072.39 | M112: 80758405.33 | N112: 84633973.33 | O112: 94566653.84 | P112: 98661461.42 | Q112: 95527418.57 | S112: 0 | T112: 0 | U112: 0 | V112: 0 | W112: 0 | X112: 0 | Y112: 0
A113: DRAB1104 | B113: Gross capex | C113: 91302459.64 | D113: 86203789.75 | E113: 97812853.04 | F113: 116439737.5 | G113: 94022346.04 | H113: 81405331.21 | I113: 85298345.39 | K113: 91302459.64 | L113: 86203789.75 | M113: 97812853.04 | N113: 116439737.5 | O113: 94022346.04 | P113: 81405331.21 | Q113: 85298345.39 | S113: 0 | T113: 0 | U113: 0 | V113: 0 | W113: 0 | X113: 0 | Y113: 0
A114: DRAB1108 | B114: Capital contributions included in gross capex | C114: 721000 | D114: 0 | E114: 0 | F114: 0 | G114: 0 | H114: 0 | I114: 0 | K114: 721000 | L114: 0 | M114: 0 | N114: 0 | O114: 0 | P114: 0 | Q114: 0 | S114: 0 | T114: 0 | U114: 0 | V114: 0 | W114: 0 | X114: 0 | Y114: 0
A115: DRAB1106 | B115: Disposals | C115: 1626885.212 | D115: 1626885.212 | E115: 665815.6632 | F115: 665815.6632 | G115: 665815.6632 | H115: 665815.6632 | I115: 665815.6632 | K115: 1626885.212 | L115: 1626885.212 | M115: 665815.6632 | N115: 665815.6632 | O115: 665815.6632 | P115: 665815.6632 | Q115: 665815.6632 | S115: 0 | T115: 0 | U115: 0 | V115: 0 | W115: 0 | X115: 0 | Y115: 0
A116: DRAB1109 | B116: Capex timing adjustment | C116: 3047249.4 | D116: 2134343.373 | E116: 1661485.037 | F116: 2030988.779 | G116: 1686050.582 | H116: 1512466.141 | I116: 1667051.437 | K116: 3047249.4 | L116: 2134343.373 | M116: 1661485.037 | N116: 2030988.779 | O116: 1686050.582 | P116: 1512466.141 | Q116: 1667051.437 | S116: 0 | T116: 0 | U116: 0 | V116: 0 | W116: 0 | X116: 0 | Y116: 0
A117: DRAB1107 | B117: Closing value | C117: =C110+C111-C112+C113-C114-C115+C116 -> 257858521.4 | D117: 280715696.9 | E117: 268000836.5 | F117: 301171773.8 | G117: 301647701 | H117: 285238221.2 | I117: 276010383.8 | K117: =K110+K111-K112+K113-K114-K115+K116 -> 257858521.4 | L117: 280715696.9 | M117: 268000836.5 | N117: 301171773.8 | O117: 301647701 | P117: 285238221.2 | Q117: 276010383.8 | S117: =S110+S111-S112+S113-S114-S115+S116 -> 0 | T117: 0 | U117: 0 | V117: 0 | W117: 0 | X117: 0 | Y117: 0
B121: 3.3.3 - TOTAL DISAGGREGATED BENCHMARKING ASSET BASE VALUES
C122: Network services | K122: Standard control services | S122: Alternative control services
C123: =CONCATENATE(" VALUE FORECAST ($, real ", dms_DollarReal, ")") -> VALUE FORECAST ($, real June 2026) | K123: =CONCATENATE(" VALUE FORECAST ($, real ", dms_DollarReal, ")") -> VALUE FORECAST ($, real June 2026) | S123: =CONCATENATE(" VALUE FORECAST ($, real ", dms_DollarReal, ")") -> VALUE FORECAST ($, real June 2026)
C124: =CRCP_y4 -> 2024-25 | D124: =CRCP_y5 -> 2025-26 | E124: =FRCP_y1 -> 2026-27 | F124: =FRCP_y2 -> 2027-28 | G124: =FRCP_y3 -> 2028-29 | H124: =FRCP_y4 -> 2029-30 | I124: =FRCP_y5 -> 2030-31 | K124: =CRCP_y4 -> 2024-25 | L124: =CRCP_y5 -> 2025-26 | M124: =FRCP_y1 -> 2026-27 | N124: =FRCP_y2 -> 2027-28 | O124: =FRCP_y3 -> 2028-29 | P124: =FRCP_y4 -> 2029-30 | Q124: =FRCP_y5 -> 2030-31 | S124: =CRCP_y4 -> 2024-25 | T124: =CRCP_y5 -> 2025-26 | U124: =FRCP_y1 -> 2026-27 | V124: =FRCP_y2 -> 2027-28 | W124: =FRCP_y3 -> 2028-29 | X124: =FRCP_y4 -> 2029-30 | Y124: =FRCP_y5 -> 2030-31
A125: DRAB1201 | B125: Overhead network assets less than 33kV (wires and poles) | C125: =IFERROR(AVERAGE(C29,C36),"") -> 2759538247 | D125: 2849823237 | E125: 2897674791 | F125: 2996721354 | G125: 3108439463 | H125: 3234656303 | I125: 3368127272 | K125: =IFERROR(AVERAGE(K29,K36),"") -> 2759538247 | L125: 2849823237 | M125: 2897674791 | N125: 2996721354 | O125: 3108439463 | P125: 3234656303 | Q125: 3368127272 | S125: =IFERROR(AVERAGE(S29,S36),"") -> 0 | T125: 0 | U125: 0 | V125: 0 | W125: 0 | X125: 0 | Y125: 0
A126: DRAB1202 | B126: Underground network assets less than 33kV (cables) | C126: =IFERROR(AVERAGE(C38,C45),"") -> 1255936317 | D126: 1314388369 | E126: 1356658046 | F126: 1426372901 | G126: 1503467963 | H126: 1589007424 | I126: 1678771861 | K126: =IFERROR(AVERAGE(K38,K45),"") -> 1255936317 | L126: 1314388369 | M126: 1356658046 | N126: 1426372901 | O126: 1503467963 | P126: 1589007424 | Q126: 1678771861 | S126: =IFERROR(AVERAGE(S38,S45),"") -> 0 | T126: 0 | U126: 0 | V126: 0 | W126: 0 | X126: 0 | Y126: 0
A127: DRAB1203 | B127: Distribution substations including transformers | C127: =IFERROR(AVERAGE(C47,C54),"") -> 401875055 | D127: 441606953.4 | E127: 479455183.1 | F127: 537116866.1 | G127: 597632136.1 | H127: 658296449.4 | I127: 718406542.8 | K127: =IFERROR(AVERAGE(K47,K54),"") -> 400352435.7 | L127: 437139055.4 | M127: 472040379 | N127: 520024686.1 | O127: 572048301.3 | P127: 628693676.1 | Q127: 687651449.4 | S127: =IFERROR(AVERAGE(S47,S54),"") -> 0 | T127: 0 | U127: 0 | V127: 0 | W127: 0 | X127: 0 | Y127: 0
A128: DRAB1204 | B128: Overhead network assets 33kV and above (wires and towers / poles etc) | C128: =IFERROR(AVERAGE(C56,C63),"") -> 249232499.8 | D128: 255326283.1 | E128: 269981136.2 | F128: 273851974.1 | G128: 282538035.5 | H128: 290571297.8 | I128: 296072328.1 | K128: =IFERROR(AVERAGE(K56,K63),"") -> 249232499.8 | L128: 255326283.1 | M128: 269981136.2 | N128: 273851974.1 | O128: 282538035.5 | P128: 290571297.8 | Q128: 296072328.1 | S128: =IFERROR(AVERAGE(S56,S63),"") -> 0 | T128: 0 | U128: 0 | V128: 0 | W128: 0 | X128: 0 | Y128: 0
A129: DRAB1205 | B129: Underground network assets 33kV and above(cables, ducts etc) | C129: =IFERROR(AVERAGE(C65,C72),"") -> 2828468.933 | D129: 3516800.952 | E129: 4325444.284 | F129: 5180068.554 | G129: 6418313.194 | H129: 7604550.475 | I129: 8589049.298 | K129: =IFERROR(AVERAGE(K65,K72),"") -> 2828468.933 | L129: 3516800.952 | M129: 4325444.284 | N129: 5180068.554 | O129: 6418313.194 | P129: 7604550.475 | Q129: 8589049.298 | S129: =IFERROR(AVERAGE(S65,S72),"") -> 0 | T129: 0 | U129: 0 | V129: 0 | W129: 0 | X129: 0 | Y129: 0
A130: DRAB1206 | B130: Zone substations and transformers | C130: =IFERROR(AVERAGE(C74,C81),"") -> 659497954.3 | D130: 721161634.4 | E130: 803322490.2 | F130: 868106588.2 | G130: 964460691.2 | H130: 1055901051 | I130: 1130729099 | K130: =IFERROR(AVERAGE(K74,K81),"") -> 659497954.3 | L130: 721161634.4 | M130: 803322490.2 | N130: 868106588.2 | O130: 964460691.2 | P130: 1055901051 | Q130: 1130729099 | S130: =IFERROR(AVERAGE(S74,S81),"") -> 0 | T130: 0 | U130: 0 | V130: 0 | W130: 0 | X130: 0 | Y130: 0
A131: DRAB1207 | B131: Easements | C131: =IFERROR(AVERAGE(C83,C90),"") -> 0 | D131: 0 | E131: 0 | F131: 0 | G131: 0 | H131: 0 | I131: 0 | K131: =IFERROR(AVERAGE(K83,K90),"") -> 0 | L131: 0 | M131: 0 | N131: 0 | O131: 0 | P131: 0 | Q131: 0 | S131: =IFERROR(AVERAGE(S83,S90),"") -> 0 | T131: 0 | U131: 0 | V131: 0 | W131: 0 | X131: 0 | Y131: 0
A132: DRAB1208 | B132: Meters | C132: =IFERROR(AVERAGE(C92,C99),"") -> 0 | D132: =IFERROR(AVERAGE(D92,D99),"") -> 0 | E132: 0 | F132: 0 | G132: 0 | H132: 0 | I132: 0 | K132: =IFERROR(AVERAGE(K92,K99),"") -> 0 | L132: =IFERROR(AVERAGE(L92,L99),"") -> 0 | M132: 0 | N132: 0 | O132: 0 | P132: 0 | Q132: 0 | S132: =IFERROR(AVERAGE(S92,S99),"") -> 154768528.3 | T132: =IFERROR(AVERAGE(T92,T99),"") -> 125392003.3 | U132: 104416746.9 | V132: 88899731.26 | W132: 98064713.21 | X132: 126154066.7 | Y132: 160768432.8
A133: DRAB1209 | B133: “Other” assets with long lives | C133: =IFERROR(AVERAGE(C101,C108),"") -> 275750860.1 | D133: =IFERROR(AVERAGE(D101,D108),"") -> 254751974.2 | E133: =IFERROR(AVERAGE(E101,E108),"") -> 218076819.6 | F133: 242699425.4 | G133: 261104349.3 | H133: 288217008.7 | I133: 320956935.9 | K133: =IFERROR(AVERAGE(K101,K108),"") -> 290563533.2 | L133: =IFERROR(AVERAGE(L101,L108),"") -> 269480324.4 | M133: 232422907.2 | N133: 256663250.3 | O133: 274685911.4 | P133: 301416308.2 | Q133: 333773972.6 | S133: =IFERROR(AVERAGE(S101,S108),"") -> 47246857.59 | T133: =IFERROR(AVERAGE(T101,T108),"") -> 49763607.43 | U133: 50522508.73 | V133: 53416577.63 | W133: 56200160.14 | X133: 58883102.04 | Y133: 61467484.1
A134: DRAB1210 | B134: “Other” assets with short lives | C134: =IFERROR(AVERAGE(C110,C117),"") -> 240345042.4 | D134: =IFERROR(AVERAGE(D110,D117),"") -> 269287109.2 | E134: 258975778 | F134: 284586305.2 | G134: 301409737.4 | H134: 293442961.1 | I134: 280624302.5 | K134: =IFERROR(AVERAGE(K110,K117),"") -> 240345042.4 | L134: =IFERROR(AVERAGE(L110,L117),"") -> 269287109.2 | M134: 258975778 | N134: 284586305.2 | O134: 301409737.4 | P134: 293442961.1 | Q134: 280624302.5 | S134: =IFERROR(AVERAGE(S110,S117),"") -> 0 | T134: =IFERROR(AVERAGE(T110,T117),"") -> 0 | U134: 0 | V134: 0 | W134: 0 | X134: 0 | Y134: 0
A135: DRAB13 | B135: Value of Capital Contributions or Contributed Assets (included in the above)
B138: 3.3.4 - ASSET LIVES
C139: Network services | K139: Standard control services | S139: Alternative control services
C140: FORECAST ( years ) | K140: FORECAST ( years ) | S140: FORECAST ( years )
C141: =CRCP_y4 -> 2024-25 | D141: =CRCP_y5 -> 2025-26 | E141: =FRCP_y1 -> 2026-27 | F141: =FRCP_y2 -> 2027-28 | G141: =FRCP_y3 -> 2028-29 | H141: =FRCP_y4 -> 2029-30 | I141: =FRCP_y5 -> 2030-31 | K141: =CRCP_y4 -> 2024-25 | L141: =CRCP_y5 -> 2025-26 | M141: =FRCP_y1 -> 2026-27 | N141: =FRCP_y2 -> 2027-28 | O141: =FRCP_y3 -> 2028-29 | P141: =FRCP_y4 -> 2029-30 | Q141: =FRCP_y5 -> 2030-31 | S141: =CRCP_y4 -> 2024-25 | T141: =CRCP_y5 -> 2025-26 | U141: =FRCP_y1 -> 2026-27 | V141: =FRCP_y2 -> 2027-28 | W141: =FRCP_y3 -> 2028-29 | X141: =FRCP_y4 -> 2029-30 | Y141: =FRCP_y5 -> 2030-31
B142: Estimated service life of new assets
A143: DRAB1401 | B143: Overhead network assets less than 33kV (wires and poles) | C143: 63.8 | D143: 63.8 | E143: 63.8 | F143: 63.8 | G143: 63.8 | H143: 63.8 | I143: 63.8 | K143: 63.8 | L143: 63.8 | M143: 63.8 | N143: 63.8 | O143: 63.8 | P143: 63.8 | Q143: 63.8
A144: DRAB1402 | B144: Underground network assets less than 33kV (cables) | C144: 50 | D144: 50 | E144: 50 | F144: 50 | G144: 50 | H144: 50 | I144: 50 | K144: 50 | L144: 50 | M144: 50 | N144: 50 | O144: 50 | P144: 50 | Q144: 50
A145: DRAB1403 | B145: Distribution substations including transformers | C145: 52.2 | D145: 52.2 | E145: 52.2 | F145: 52.2 | G145: 52.2 | H145: 52.2 | I145: 52.2 | K145: 52.2 | L145: 52.2 | M145: 52.2 | N145: 52.2 | O145: 52.2 | P145: 52.2 | Q145: 52.2
A146: DRAB1404 | B146: Overhead network assets 33kV and above (wires and towers / poles etc) | C146: 71.7 | D146: 71.7 | E146: 71.7 | F146: 71.7 | G146: 71.7 | H146: 71.7 | I146: 71.7 | K146: 71.7 | L146: 71.7 | M146: 71.7 | N146: 71.7 | O146: 71.7 | P146: 71.7 | Q146: 71.7
A147: DRAB1405 | B147: Underground network assets 33kV and above(cables, ducts etc) | C147: 50 | D147: 50 | E147: 50 | F147: 50 | G147: 50 | H147: 50 | I147: 50 | K147: 50 | L147: 50 | M147: 50 | N147: 50 | O147: 50 | P147: 50 | Q147: 50
A148: DRAB1406 | B148: Zone substations and transformers | C148: 45.9 | D148: 45.9 | E148: 45.9 | F148: 45.9 | G148: 45.9 | H148: 45.9 | I148: 45.9 | K148: 45.9 | L148: 45.9 | M148: 45.9 | N148: 45.9 | O148: 45.9 | P148: 45.9 | Q148: 45.9
A149: DRAB1407 | B149: Meters | S149: 13.36816015 | T149: =$S149 -> 13.36816015 | U149: =$S149 -> 13.36816015 | V149: 13.36816015 | W149: 13.36816015 | X149: 13.36816015 | Y149: 13.36816015
A150: DRAB1408 | B150: “Other” assets with long lives | C150: 15 | D150: 15 | E150: 15 | F150: 15 | G150: 15 | H150: 15 | I150: 15 | K150: 15 | L150: 15 | M150: 15 | N150: 15 | O150: 15 | P150: 15 | Q150: 15 | S150: 23.35365198 | T150: 24.56763425 | U150: 25.42955143 | V150: 25.58189949 | W150: 26.69634111 | X150: 26.51167333 | Y150: 25.87845458
A151: DRAB1409 | B151: “Other” assets with short lives | C151: 5 | D151: 5 | E151: 5 | F151: 5 | G151: 5 | H151: 5 | I151: 5 | K151: 5 | L151: 5 | M151: 5 | N151: 5 | O151: 5 | P151: 5 | Q151: 5
B152: Estimated residual service life
A153: DRAB1501 | B153: Overhead network assets less than 33kV (wires and poles) | C153: 26.06801406 | D153: =$C153 -> 26.06801406 | E153: =$C153 -> 26.06801406 | F153: 26.06801406 | G153: 26.06801406 | H153: 26.06801406 | I153: 26.06801406 | K153: 26.06801406 | L153: =$K153 -> 26.06801406 | M153: =$K153 -> 26.06801406 | N153: 26.06801406 | O153: 26.06801406 | P153: 26.06801406 | Q153: 26.06801406
A154: DRAB1502 | B154: Underground network assets less than 33kV (cables) | C154: 27.59012754 | D154: =$C154 -> 27.59012754 | E154: 27.59012754 | F154: 27.59012754 | G154: 27.59012754 | H154: 27.59012754 | I154: 27.59012754 | K154: 27.59012754 | L154: =$K154 -> 27.59012754 | M154: 27.59012754 | N154: 27.59012754 | O154: 27.59012754 | P154: 27.59012754 | Q154: 27.59012754
A155: DRAB1503 | B155: Distribution substations including transformers | C155: 23.97800992 | D155: 23.97800992 | E155: 23.97800992 | F155: 23.97800992 | G155: 23.97800992 | H155: 23.97800992 | I155: 23.97800992 | K155: 23.97800992 | L155: 23.97800992 | M155: 23.97800992 | N155: 23.97800992 | O155: 23.97800992 | P155: 23.97800992 | Q155: 23.97800992
A156: DRAB1504 | B156: Overhead network assets 33kV and above (wires and towers / poles etc) | C156: 36.11940873 | D156: 36.11940873 | E156: 36.11940873 | F156: 36.11940873 | G156: 36.11940873 | H156: 36.11940873 | I156: 36.11940873 | K156: 36.11940873 | L156: 36.11940873 | M156: 36.11940873 | N156: 36.11940873 | O156: 36.11940873 | P156: 36.11940873 | Q156: 36.11940873
A157: DRAB1505 | B157: Underground network assets 33kV and above (cables, ducts etc) | C157: 20.59958104 | D157: 20.59958104 | E157: 20.59958104 | F157: 20.59958104 | G157: 20.59958104 | H157: 20.59958104 | I157: 20.59958104 | K157: 20.59958104 | L157: 20.59958104 | M157: 20.59958104 | N157: 20.59958104 | O157: 20.59958104 | P157: 20.59958104 | Q157: 20.59958104
A158: DRAB1506 | B158: Zone substations and transformers | C158: 12.06 | D158: 12.06 | E158: 12.06 | F158: 12.06 | G158: 12.06 | H158: 12.06 | I158: 12.06 | K158: 12.06 | L158: 12.06 | M158: 12.06 | N158: 12.06 | O158: 12.06 | P158: 12.06 | Q158: 12.06
A159: DRAB1507 | B159: Meters | S159: 4.463297524 | T159: 4.484658345 | U159: 5.872079574 | V159: 10.09840944 | W159: 11.21073064 | X159: 12.16168177 | Y159: 12.50746052
A160: DRAB1508 | B160: “Other” assets with long lives | C160: 8.921453429 | D160: 8.976553607 | E160: 12.6802333 | F160: 13.53261458 | G160: 13.95290828 | H160: 14.06139478 | I160: 13.99102498 | K160: 10.51960952 | L160: 10.9476958 | M160: 13.90938159 | N160: 14.48942746 | O160: 14.70469624 | P160: 14.66125844 | Q160: 14.48625894 | S160: 20.99106649 | T160: 21.03105378 | U160: 20.89568828 | V160: 20.76927259 | W160: 20.65130592 | X160: 20.54435627 | Y160: 20.44975579
A161: DRAB1509 | B161: “Other” assets with short lives | C161: 3.717119986 | D161: 3.668984119 | E161: 3.824537781 | F161: 3.854471589 | G161: 3.727551217 | H161: 3.580243505 | I161: 3.477290582 | K161: 3.717119986 | L161: 3.668984119 | M161: 3.824537781 | N161: 3.854471589 | O161: 3.727551217 | P161: 3.580243505 | Q161: 3.477290582

Sheet 3.4 Operational data
B1: =INDEX(dms_Worksheet_List,MATCH(dms_Model,dms_Model_List)) -> REGULATORY REPORTING STATEMENT
B2: =INDEX(dms_TradingNameFull_List,MATCH(dms_TradingName,dms_TradingName_List)) -> AusNet Electricity Services Pty Ltd
B3: =CONCATENATE("REGULATORY PERIOD FROM ", FRCP_y1," TO ",dms_MultiYear_FinalYear_Result) -> REGULATORY PERIOD FROM 2026-27 TO 2030-31
B4: 3.4 OPERATIONAL DATA
B5: TEMPLATE DATE - SEPTEMBER 2024 - FINAL RIN
B7: There are THREE tables on this worksheet. Each table has been grouped for ease of navigation.
B9: 3.4.1 - ENERGY DELIVERY
D10: Standard control services
D11: FORECAST
C12: Units | D12: =CRCP_y4 -> 2024-25 | E12: =CRCP_y5 -> 2025-26 | F12: =FRCP_y1 -> 2026-27 | G12: =FRCP_y2 -> 2027-28 | H12: =FRCP_y3 -> 2028-29 | I12: =FRCP_y4 -> 2029-30 | J12: =FRCP_y5 -> 2030-31
A13: DOPED01 | B13: TOTAL ENERGY DELIVERED
B14: 3.4.1.1 - Energy grouping - delivery by chargeable quantity
A15: DOPED0201 | B15: Energy Delivery where time of use is not a determinant | C15: GWh | D15: 1943.721434 | E15: 1914.12554 | F15: 1907.024863 | G15: 1897.471007 | H15: 1882.310978 | I15: 1851.4285 | J15: 1797.527324
A16: DOPED0202 | B16: Energy Delivery at On-peak times | C16: GWh | D16: 2049.307559 | E16: 2118.754899 | F16: 2193.747093 | G16: 2272.249674 | H16: 2351.772047 | I16: 2443.552634 | J16: 2522.404723
A17: DOPED0203 | B17: Energy Delivery at Shoulder times | C17: GWh | D17: 436.8610924 | E17: 455.7972303 | F17: 457.8225711 | G17: 461.8691124 | H17: 465.1935708 | I17: 468.5950904 | J17: 472.5592525
A18: DOPED0204 | B18: Energy Delivery at Off-peak times | C18: GWh | D18: 3196.745681 | E18: 3410.960982 | F18: 3618.660053 | G18: 3848.816944 | H18: 4102.742225 | I18: 4364.83672 | J18: 4605.827046
A19: DOPED0205 | B19: Controlled load energy deliveries | C19: GWh | D19: 0 | E19: 0 | F19: 0 | G19: 0 | H19: 0 | I19: 0 | J19: 0
A20: DOPED0206 | B20: Energy Delivery to unmetered supplies | C20: GWh | D20: 255.5213063 | E20: 253.2213487 | F20: 250.9213911 | G20: 248.6098759 | H20: 246.3099184 | I20: 244.0099608 | J20: 241.7100032
B21: 3.4.1.2 - Energy - received from TNSP and other DNSPs by time of receipt
A22: DOPED0301 | B22: Energy into DNSP network at On-peak times | C22: GWh
A23: DOPED0302 | B23: Energy into DNSP network at Shoulder times | C23: GWh
A24: DOPED0303 | B24: Energy into DNSP network at Off-peak times | C24: GWh
A25: DOPED0304 | B25: Energy received from TNSP and other DNSPs not included in the above categories | C25: GWh | D25: 5914.60445 | E25: 6083.988501 | F25: 6276.260853 | G25: 6506.51089 | H25: 6780.64667 | I25: 7062.015948 | J25: 7282.758113
B26: 3.4.1.3 - Energy - received into DNSP system from embedded generation by time of receipt
A27: DOPED0401 | B27: Energy into DNSP network at On-peak times from non-residential embedded generation | C27: GWh
A28: DOPED0402 | B28: Energy into DNSP network at Shoulder times from non-residential embedded generation | C28: GWh
A29: DOPED0403 | B29: Energy into DNSP network at Off-peak times from non-residential embedded generation | C29: GWh
A30: DOPED0404 | B30: Energy received from embedded generation not included in above categories from non-residential embedded generation | C30: GWh | D30: 1355.985739 | E30: 1361.589244 | F30: 1366.332612 | G30: 1370.473181 | H30: 1373.351842 | I30: 1376.076851 | J30: 1379.006389
A31: DOPED0405 | B31: Energy into DNSP network at On-peak times from residential embedded generation | C31: GWh
A32: DOPED0406 | B32: Energy into DNSP network at Shoulder times from residential embedded generation | C32: GWh
A33: DOPED0407 | B33: Energy into DNSP network at Off-peak times from residential embedded generation | C33: GWh
A34: DOPED0408 | B34: Energy received from embedded generation not included in above categories from residential embedded generation | C34: GWh | D34: 936.6614695 | E34: 1043.541813 | F34: 1133.197297 | G34: 1212.055315 | H34: 1267.522827 | I34: 1320.889766 | J34: 1375.860724
B35: 3.4.1.4 - Energy grouping - customer type or class
A36: DOPED0501 | B36: Residential customers energy deliveries | C36: GWh | D36: 3724.403171 | E36: 3913.34893 | F36: 4167.555205 | G36: 4446.529357 | H36: 4733.871895 | I36: 5021.912301 | J36: 5256.898322
A37: DOPED0502 | B37: Non residential customers not on demand tariffs energy deliveries | C37: GWh | D37: 987.4846351 | E37: 1005.743483 | F37: 1020.294598 | G37: 1030.334475 | H37: 1040.221276 | I37: 1048.071629 | J37: 1058.152963
A38: DOPED0503 | B38: Non-residential low voltage demand tariff customers energy deliveries | C38: GWh | D38: 2398.306629 | E38: 2404.513428 | F38: 2417.024361 | G38: 2439.26766 | H38: 2460.80045 | I38: 2485.543265 | J38: 2506.971284
A39: DOPED0504 | B39: Non-residential high voltage demand tariff customers energy deliveries | C39: GWh | D39: 771.9626372 | E39: 829.2541605 | F39: 823.3018078 | G39: 812.8851207 | H39: 813.4351177 | I39: 816.8957109 | J39: 818.00578
A40: DOPED0505 | B40: Other Customer Class Energy Deliveries | C40: GWh | D40: 0 | E40: 0 | F40: 0 | G40: 0 | H40: 0 | I40: 0 | J40: 0
B44: 3.4.2 - CUSTOMER NUMBERS (Benchmarking)
D45: FORECAST
C46: Units | D46: =CRCP_y4 -> 2024-25 | E46: =CRCP_y5 -> 2025-26 | F46: =FRCP_y1 -> 2026-27 | G46: =FRCP_y2 -> 2027-28 | H46: =FRCP_y3 -> 2028-29 | I46: =FRCP_y4 -> 2029-30 | J46: =FRCP_y5 -> 2030-31
B47: 3.4.2.1 - Distribution customer numbers by customer type or class
A48: DOPCN0101 | B48: Residential customer numbers | C48: number | D48: 742654 | E48: 757541 | F48: 772526 | G48: 787511 | H48: 802495 | I48: 817477 | J48: 832461
A49: DOPCN0102 | B49: Non residential customers not on demand tariff customer numbers | C49: number | D49: 61762 | E49: 62283 | F49: 62797 | G49: 63309 | H49: 63823 | I49: 64339 | J49: 64856
A50: DOPCN0103 | B50: Low voltage demand tariff customer numbers | C50: number | D50: 12520 | E50: 12589 | F50: 12697 | G50: 12857 | H50: 13059 | I50: 13305 | J50: 13603
A51: DOPCN0104 | B51: High voltage demand tariff customer numbers | C51: number | D51: 125 | E51: 187 | F51: 299 | G51: 465 | H51: 671 | I51: 920 | J51: 1220
A52: DOPCN0105 | B52: Unmetered Customer Numbers | C52: number | D52: 5539 | E52: 5338 | F52: 5139 | G52: 4940 | H52: 4740 | I52: 4541 | J52: 4342
A53: DOPCN0106 | B53: Other Customer Numbers | C53: number | D53: 0 | E53: 0 | F53: 0 | G53: 0 | H53: 0 | I53: 0 | J53: 0
B54: Total customer numbers | D54: =SUM(D48:D53) -> 822600 | E54: =SUM(E48:E53) -> 837938 | F54: 853458 | G54: 869082 | H54: 884788 | I54: 900582 | J54: 916482
B57: Table 3.4.2.2 Distribution customer numbers by location on the network
A58: DOPCN0201 | B58: =INDEX(dms_FeederName_1,MATCH(dms_TradingName,dms_TradingName_List)) -> CBD | C58: number | D58: 0 | E58: 0 | J58: =+(J54/E54)^(0.2)-1 -> 0.01808118353
A59: DOPCN0202 | B59: =INDEX(dms_FeederName_2,MATCH(dms_TradingName,dms_TradingName_List)) -> Urban | C59: number | D59: =('6.2 Reliability & Cust serv'!C63/'6.2 Reliability & Cust serv'!$C$67)*'3.4 Operational data'!$D$54 -> 356478 | E59: =('6.2 Reliability & Cust serv'!D63/'6.2 Reliability & Cust serv'!D$67)*'3.4 Operational data'!E$54 -> 361899 | F59: =('6.2 Reliability & Cust serv'!E63/'6.2 Reliability & Cust serv'!E$67)*'3.4 Operational data'!F$54 -> 372929 | G59: =('6.2 Reliability & Cust serv'!F63/'6.2 Reliability & Cust serv'!F$67)*'3.4 Operational data'!G$54 -> 380943 | H59: =('6.2 Reliability & Cust serv'!G63/'6.2 Reliability & Cust serv'!G$67)*'3.4 Operational data'!H$54 -> 388386.439 | I59: =('6.2 Reliability & Cust serv'!H63/'6.2 Reliability & Cust serv'!H$67)*'3.4 Operational data'!I$54 -> 392563 | J59: =('6.2 Reliability & Cust serv'!I63/'6.2 Reliability & Cust serv'!I$67)*'3.4 Operational data'!J$54 -> 399960
A60: DOPCN0203 | B60: =INDEX(dms_FeederName_3,MATCH(dms_TradingName,dms_TradingName_List)) -> Short rural | C60: number | D60: =('6.2 Reliability & Cust serv'!C64/'6.2 Reliability & Cust serv'!$C$67)*'3.4 Operational data'!$D$54 -> 327761 | E60: =('6.2 Reliability & Cust serv'!D64/'6.2 Reliability & Cust serv'!D$67)*'3.4 Operational data'!E$54 -> 336145 | F60: =('6.2 Reliability & Cust serv'!E64/'6.2 Reliability & Cust serv'!E$67)*'3.4 Operational data'!F$54 -> 337766 | G60: =('6.2 Reliability & Cust serv'!F64/'6.2 Reliability & Cust serv'!F$67)*'3.4 Operational data'!G$54 -> 342235 | H60: =('6.2 Reliability & Cust serv'!G64/'6.2 Reliability & Cust serv'!G$67)*'3.4 Operational data'!H$54 -> 348149.3935 | I60: =('6.2 Reliability & Cust serv'!H64/'6.2 Reliability & Cust serv'!H$67)*'3.4 Operational data'!I$54 -> 357105 | J60: =('6.2 Reliability & Cust serv'!I64/'6.2 Reliability & Cust serv'!I$67)*'3.4 Operational data'!J$54 -> 363059
A61: DOPCN0204 | B61: =INDEX(dms_FeederName_4,MATCH(dms_TradingName,dms_TradingName_List)) -> Long rural | C61: number | D61: =('6.2 Reliability & Cust serv'!C65/'6.2 Reliability & Cust serv'!$C$67)*'3.4 Operational data'!$D$54 -> 138361 | E61: =('6.2 Reliability & Cust serv'!D65/'6.2 Reliability & Cust serv'!D$67)*'3.4 Operational data'!E$54 -> 139894 | F61: =('6.2 Reliability & Cust serv'!E65/'6.2 Reliability & Cust serv'!E$67)*'3.4 Operational data'!F$54 -> 142763 | G61: =('6.2 Reliability & Cust serv'!F65/'6.2 Reliability & Cust serv'!F$67)*'3.4 Operational data'!G$54 -> 145904 | H61: =('6.2 Reliability & Cust serv'!G65/'6.2 Reliability & Cust serv'!G$67)*'3.4 Operational data'!H$54 -> 148252.1676 | I61: =('6.2 Reliability & Cust serv'!H65/'6.2 Reliability & Cust serv'!H$67)*'3.4 Operational data'!I$54 -> 150914 | J61: =('6.2 Reliability & Cust serv'!I65/'6.2 Reliability & Cust serv'!I$67)*'3.4 Operational data'!J$54 -> 153463
A62: DOPCN0205 | B62: =IF((INDEX(dms_FeederName_5,MATCH(dms_TradingName,dms_TradingName_List))=0),"",(INDEX(dms_FeederName_5,MATCH(dms_TradingName,dms_TradingName_List)))) ->  | C62: number
B63: Total customer numbers | D63: =SUM(D58:D62) -> 822600 | E63: =SUM(E58:E62) -> 837938 | F63: 853458 | G63: 869082 | H63: 884788 | I63: 900582 | J63: 916482.0181
B66: 3.4.2.4 - Unmetered Supply
A67: DOPCN0301 | B67: Number of unmetered connections reported in customer numbers in the economic benchmarking RIN | D67: =D52 -> 5539 | E67: =E52 -> 5338 | F67: 5139 | G67: 4940 | H67: 4740 | I67: 4541 | J67: 4342
A68: DOPCN0302 | B68: Unmetered connections not reported in customer numbers in the economic benchmarking RIN | D68: 0 | E68: 0 | F68: 0 | G68: 0 | H68: 0 | I68: 0 | J68: 0
A69: DOPCN0303 | B69: Total unmetered connections | D69: =SUM(D67:D68) -> 5539 | E69: =SUM(E67:E68) -> 5338 | F69: 5139 | G69: 4940 | H69: 4740 | I69: 4541 | J69: 4342
B72: 3.4.3 - SYSTEM DEMAND
D73: Standard control services
D74: FORECAST
C75: Units | D75: =CRCP_y4 -> 2024-25 | E75: =CRCP_y5 -> 2025-26 | F75: =FRCP_y1 -> 2026-27 | G75: =FRCP_y2 -> 2027-28 | H75: =FRCP_y3 -> 2028-29 | I75: =FRCP_y4 -> 2029-30 | J75: =FRCP_y5 -> 2030-31
B76: 3.4.3.1 - Annual system maximum demand characteristics at the zone substation level – MW measure
A77: DOPSD0102 | B77: Non–coincident Summated Weather Adjusted System Annual Maximum Demand 10% POE | C77: MW | D77: 2320.96 | E77: 2371.76 | F77: 2430.12 | G77: 2496.8 | H77: 2565.9 | I77: 2637.62 | J77: 2704.66
A78: DOPSD0103 | B78: Non–coincident Summated Weather Adjusted System Annual Maximum Demand 50% POE | C78: MW | D78: 2080.85 | E78: 2127.69 | F78: 2185.36 | G78: 2252.47 | H78: 2317.22 | I78: 2385.06 | J78: 2449.19
A79: DOPSD0105 | B79: Coincident Weather Adjusted System Annual Maximum Demand 10% POE | C79: MW | D79: 2020.08 | E79: 2065.12 | F79: 2116.78 | G79: 2175.95 | H79: 2237.18 | I79: 2300.72 | J79: 2360
A80: DOPSD0106 | B80: Coincident Weather Adjusted System Annual Maximum Demand 50% POE | C80: MW | D80: 1793.43 | E80: 1834.7 | F80: 1885.49 | G80: 1944.72 | H80: 2001.83 | I80: 2061.61 | J80: 2117.85
B81: 3.4.3.2 - Annual system maximum demand characteristics at the transmission connection point – MW measure
A82: DOPSD0108 | B82: Non–coincident Summated Weather Adjusted System Annual Maximum Demand 10% POE | C82: MW | D82: 2040.77 | E82: 2080.77 | F82: 2126.67 | G82: 2178.33 | H82: 2232.72 | I82: 2289.77 | J82: 2347.17
A83: DOPSD0109 | B83: Non–coincident Summated Weather Adjusted System Annual Maximum Demand 50% POE | C83: MW | D83: 1872.2 | E83: 1908.55 | F83: 1948.6 | G83: 1993.46 | H83: 2042.52 | I83: 2093.02 | J83: 2144.03
A84: DOPSD0111 | B84: Coincident Weather Adjusted System Annual Maximum Demand 10% POE | C84: MW | D84: 1816.35 | E84: 1852.43 | F84: 1893.74 | G84: 1940.33 | H84: 1989.45 | I84: 2040.93 | J84: 2092.72
A85: DOPSD0112 | B85: Coincident Weather Adjusted System Annual Maximum Demand 50% POE | C85: MW | D85: 1655.57 | E85: 1688.13 | F85: 1724.02 | G85: 1764.21 | H85: 1808.08 | I85: 1853.2 | J85: 1898.84
B86: 3.4.3.3 - Annual system maximum demand characteristics at the zone substation level – MVA measure
A87: DOPSD0202 | B87: Non–coincident Summated Weather Adjusted System Annual Maximum Demand 10% POE | C87: MVA | D87: 2418.09 | E87: 2473.4 | F87: 2537.68 | G87: 2610.65 | H87: 2685.84 | I87: 2765.48 | J87: 2842.88
A88: DOPSD0203 | B88: Non–coincident Summated Weather Adjusted System Annual Maximum Demand 50% POE | C88: MVA | D88: 2105.84 | E88: 2160.56 | F88: 2224.39 | G88: 2296.5 | H88: 2368.03 | I88: 2442.96 | J88: 2515.49
A89: DOPSD0205 | B89: Coincident Weather Adjusted System Annual Maximum Demand 10% POE | C89: MVA | D89: 2042 | E89: 2087.49 | F89: 2139.62 | G89: 2199.35 | H89: 2261.16 | I89: 2325.29 | J89: 2385.17
A90: DOPSD0206 | B90: Coincident Weather Adjusted System Annual Maximum Demand 50% POE | C90: MVA | D90: 1813.17 | E90: 1854.82 | F90: 1906.15 | G90: 1966.12 | H90: 2023.91 | I90: 2084.39 | J90: 2141.31
B91: 3.4.3.4 - Annual system maximum demand characteristics at the transmission connection point – MVA measure
A92: DOPSD0208 | B92: Non–coincident Summated Weather Adjusted System Annual Maximum Demand 10% POE | C92: MVA | D92: 2092.41 | E92: 2136.65 | F92: 2186.48 | G92: 2242.46 | H92: 2298.52 | I92: 2356.86 | J92: 2415.55
A93: DOPSD0209 | B93: Non–coincident Summated Weather Adjusted System Annual Maximum Demand 50% POE | C93: MVA | D93: 1789.63 | E93: 1830.28 | F93: 1874.69 | G93: 1926.77 | H93: 1980.56 | I93: 2037.21 | J93: 2093.33
A94: DOPSD0211 | B94: Coincident Weather Adjusted System Annual Maximum Demand 10% POE | C94: MVA | D94: 1836.96 | E94: 1873.55 | F94: 1915.45 | G94: 1962.66 | H94: 2012.44 | I94: 2064.59 | J94: 2117.07
A95: DOPSD0212 | B95: Coincident Weather Adjusted System Annual Maximum Demand 50% POE | C95: MVA | D95: 1674.25 | E95: 1707.27 | F95: 1743.65 | G95: 1784.38 | H95: 1828.84 | I95: 1874.55 | J95: 1920.81
B96: 3.4.3.5 - Power factor conversion between MVA and MW
A97: DOPSD0301 | B97: Average overall network power factor conversion between MVA and MW | C97: Factor | D97: 0.9887803763 | E97: 0.9887272824 | F97: 0.9886658488 | G97: 0.9886225836 | H97: 0.9885760569 | I97: 0.9885400975 | J97: 0.9884982547
A98: DOPSD0302 | B98: Average power factor conversion for low voltage distribution lines | C98: Factor | D98: 0.9888427654 | E98: 0.9 | F98: 0.9 | G98: 0.9 | H98: 0.9 | I98: 0.9 | J98: 0.9
A99: DOPSD0303 | B99: Average power factor conversion for 3.3 kV lines | C99: Factor
A100: DOPSD0304 | B100: Average power factor conversion for 6.6 kV lines | C100: Factor | D100: 0.9907591729 | E100: 0.9907591729 | F100: 0.9907591729 | G100: 0.9907591729 | H100: 0.9907591729 | I100: 0.9907591729 | J100: 0.9907591729
A101: DOPSD0305 | B101: Average power factor conversion for 7.6 kV lines | C101: Factor
A102: DOPSD0306 | B102: Average power factor conversion for 11 kV lines | C102: Factor | D102: 0.9 | E102: 0.9 | F102: 0.9 | G102: 0.9 | H102: 0.9 | I102: 0.9 | J102: 0.9
A103: DOPSD0307 | B103: Average power factor conversion for SWER lines | C103: Factor | D103: 0.9672627202 | E103: 0.9672627202 | F103: 0.9672627202 | G103: 0.9672627202 | H103: 0.9672627202 | I103: 0.9672627202 | J103: 0.9672627202
A104: DOPSD0308 | B104: Average power factor conversion for 22 kV lines | C104: Factor | D104: 0.9916875372 | E104: 0.9916875372 | F104: 0.9916875372 | G104: 0.9916875372 | H104: 0.9916875372 | I104: 0.9916875372 | J104: 0.9916875372
A105: DOPSD0309 | B105: Average power factor conversion for 33 kV lines | C105: Factor
A106: DOPSD0310 | B106: Average power factor conversion for 44 kV lines | C106: Factor
A107: DOPSD0311 | B107: Average power factor conversion for 66 kV lines | C107: Factor | D107: 0.9887803763 | E107: 0.9887272824 | F107: 0.9886658488 | G107: 0.9886225836 | H107: 0.9885760569 | I107: 0.9885400975 | J107: 0.9884982547
A108: DOPSD0312 | B108: Average power factor conversion for 110 kV lines | C108: Factor
A109: DOPSD0313 | B109: Average power factor conversion for 132 kV lines | C109: Factor
A110: DOPSD0314 | B110: Average power factor conversion for 220 kV lines | C110: Factor

Sheet 3.5 Physical assets
B1: =INDEX(dms_Worksheet_List,MATCH(dms_Model,dms_Model_List)) -> REGULATORY REPORTING STATEMENT
B2: =INDEX(dms_TradingNameFull_List,MATCH(dms_TradingName,dms_TradingName_List)) -> AusNet Electricity Services Pty Ltd
B3: =CONCATENATE("REGULATORY PERIOD FROM ", FRCP_y1," TO ",dms_MultiYear_FinalYear_Result) -> REGULATORY PERIOD FROM 2026-27 TO 2030-31
B4: 3.5 PHYSICAL ASSETS DATA
B5: TEMPLATE DATE - SEPTEMBER 2024 - FINAL RIN
B7: There are THREE tables on this worksheet. Each table has been grouped (and sub-grouped) for ease of navigation. See the Instructions sheet on how to group or ungroup tables.
B9: 3.5.1 - NETWORK CAPACITIES VARIABLES
D10: FORECAST
C11: Units | D11: =CRCP_y4 -> 2024-25 | E11: =CRCP_y5 -> 2025-26 | F11: =FRCP_y1 -> 2026-27 | G11: =FRCP_y2 -> 2027-28 | H11: =FRCP_y3 -> 2028-29 | I11: =FRCP_y4 -> 2029-30 | J11: =FRCP_y5 -> 2030-31
B12: CIRCUIT LENGTH
B13: 3.5.1.1 - Overhead network length of circuit at each voltage
A14: DPA0101 | B14: Overhead low voltage distribution | C14: km | D14: 6571.584932 | E14: 6571.584932 | F14: 6571.584932 | G14: 6600.733682 | H14: 6606.144932 | I14: 6595.198682 | J14: 6582.062432
A15: DPA0102 | B15: Overhead 2.2 kV | C15: km | D15: 0 | E15: 0 | F15: 0 | G15: 0 | H15: 0 | I15: 0 | J15: 0
A16: DPA0111 | B16: Overhead 6.6kv | C16: km | D16: 0 | E16: 0 | F16: 0 | G16: 0 | H16: 0 | I16: 0 | J16: 0
A17: DPA0103 | B17: Overhead 7.6 kV | C17: km | D17: 48.956077 | E17: 48.956077 | F17: 48.956077 | G17: 48.956077 | H17: 48.956077 | I17: 48.956077 | J17: 48.956077
A18: DPA0104 | B18: Overhead 11 kV | C18: km | D18: 0 | E18: 0 | F18: 0 | G18: 0 | H18: 0 | I18: 0 | J18: 0
A19: DPA0105 | B19: Overhead SWER | C19: km | D19: 0.800604 | E19: 93.800604 | F19: 99.800604 | G19: 12.800604 | H19: 0.800604 | I19: 0.800604 | J19: 0.800604
A20: DPA0106 | B20: Overhead 22 kV | C20: km | D20: 6416.388063 | E20: 6416.388063 | F20: 6416.388063 | G20: 6427.638063 | H20: 6478.788063 | I20: 6434.638063 | J20: 6424.888063
A21: DPA0107 | B21: Overhead 33 kV | C21: km | D21: 22520.53855 | E21: 22520.53855 | F21: 22520.53855 | G21: 22520.53855 | H21: 22520.53855 | I21: 22520.53855 | J21: 22520.53855
A22: DPA0108 | B22: Overhead 44 kV | C22: km | D22: 0 | E22: 0 | F22: 0 | G22: 0 | H22: 0 | I22: 0 | J22: 0
A23: DPA0109 | B23: Overhead 66 kV | C23: km | D23: 0 | E23: 0 | F23: 9.2497 | G23: 28.7097 | H23: 76.8097 | I23: 172.0597 | J23: 192.9097
A24: DPA0112 | B24: Overhead 110kV | C24: km | D24: 0 | E24: 0 | F24: 0 | G24: 0 | H24: 0 | I24: 0 | J24: 0
A25: DPA0110 | B25: Overhead 132 kV | C25: km | D25: 2390.448274 | E25: 2390.448274 | F25: 2390.448274 | G25: 2390.448274 | H25: 2390.448274 | I25: 2390.448274 | J25: 2390.448274
A26: DPA0113 | B26: Overhead 220kV | C26: km | D26: 0 | E26: 0 | F26: 0 | G26: 0 | H26: 0 | I26: 0 | J26: 0
A27: DPA0114 | B27: Other | C27: km | D27: 0 | E27: 0 | F27: 0 | G27: 0 | H27: 0 | I27: 0 | J27: 0
A28: DPA01 | B28: Total overhead circuit km | D28: =SUM(D14:D27) -> 37948.7165 | E28: 38041.7165 | F28: 38056.9662 | G28: 38029.82495 | H28: 38122.4862 | I28: 38162.63995 | J28: 38160.6037
B29: 3.5.1.2 - Underground network circuit length at each voltage
A30: DPA0201 | B30: Underground low voltage distribution | C30: km | D30: 5745.817294 | E30: 5745.817294 | F30: 5745.817294 | G30: 5748.404794 | H30: 5746.679794 | I30: 5746.679794 | J30: 5745.817294
A31: DPA0202 | B31: Underground 5 kV | C31: km | D31: 0 | E31: 0 | F31: 0 | G31: 0 | H31: 0 | I31: 0 | J31: 0
A32: DPA0203 | B32: Underground 6.6 Kv | C32: km | D32: 14.757923 | E32: 14.757923 | F32: 14.757923 | G32: 14.757923 | H32: 14.757923 | I32: 14.757923 | J32: 14.757923
A33: DPA0204 | B33: Underground 7.6 kV | C33: km | D33: 0 | E33: 0 | F33: 0 | G33: 0 | H33: 0 | I33: 0 | J33: 0
A34: DPA0205 | B34: Underground 11 kV | C34: km | D34: 0.318095 | E34: 0.318095 | F34: 0.318095 | G34: 0.318095 | H34: 0.318095 | I34: 0.318095 | J34: 0.318095
A35: DPA0206 | B35: Underground SWER | C35: km | D35: 59.56024 | E35: 59.56024 | F35: 59.56024 | G35: 59.56024 | H35: 59.56024 | I35: 59.56024 | J35: 59.56024
A36: DPA0207 | B36: Underground 22 kV | C36: km | D36: 2706.20904 | E36: 2706.20904 | F36: 2715.23904 | G36: 2717.53904 | H36: 2709.18904 | I36: 2722.83904 | J36: 2706.23904
A37: DPA0208 | B37: Underground 33 kV | C37: km | D37: 0 | E37: 0 | F37: 0 | G37: 0 | H37: 0 | I37: 0 | J37: 0
A38: DPA0209 | B38: Underground 66 kV | C38: km | D38: 13.776542 | E38: 13.776542 | F38: 13.776542 | G38: 14.966542 | H38: 14.966542 | I38: 14.966542 | J38: 14.966542
A39: DPA0210 | B39: Underground 110 kV | C39: km | D39: 0 | E39: 0 | F39: 0 | G39: 0 | H39: 0 | I39: 0 | J39: 0
A40: DPA0211 | B40: Underground 132 kV | C40: km | D40: 0 | E40: 0 | F40: 0 | G40: 0 | H40: 0 | I40: 0 | J40: 0
A41: DPA0212 | B41: Other | C41: km | D41: 0 | E41: 0 | F41: 0 | G41: 0 | H41: 0 | I41: 0 | J41: 0
A42: DPA02 | B42: Total underground circuit km | D42: =SUM(D30:D41) -> 8540.439134 | E42: 8540.439134 | F42: 8549.469134 | G42: 8555.546634 | H42: 8545.471634 | I42: 8559.121634 | J42: 8541.659134
B44: CIRCUIT CAPACITY MVA
B45: 3.5.1.3 - Estimated overhead network weighted average MVA capacity by voltage class
A46: DPA0301 | B46: Overhead low voltage distribution | C46: MVA | D46: 0.1128530021 | E46: 0.1128530021 | F46: 0.1128530021 | G46: 0.1128530021 | H46: 0.1128530021 | I46: 0.1128530021 | J46: 0.1128530021
A47: DPA0302 | B47: Overhead 6.6 kV | C47: MVA | D47: 2.816421595 | E47: 2.816421595 | F47: 2.816421595 | G47: 2.816421595 | H47: 2.816421595 | I47: 2.816421595 | J47: 2.816421595
A48: DPA0303 | B48: Overhead 7.6 kV | C48: MVA | D48: 0 | E48: 0 | F48: 0 | G48: 0 | H48: 0 | I48: 0 | J48: 0
A49: DPA0304 | B49: Overhead 11 kV | C49: MVA | D49: 6.001556048 | E49: 6.001556048 | F49: 6.001556048 | G49: 6.001556048 | H49: 6.001556048 | I49: 6.001556048 | J49: 6.001556048
A50: DPA0305 | B50: Overhead SWER | C50: MVA | D50: 0.489889531 | E50: 0.489889531 | F50: 0.489889531 | G50: 0.489889531 | H50: 0.489889531 | I50: 0.489889531 | J50: 0.489889531
A51: DPA0306 | B51: Overhead 22 kV | C51: MVA | D51: 4.42905741 | E51: 4.42905741 | F51: 4.42905741 | G51: 37.99966616 | H51: 43.99966616 | I51: 43.99966616 | J51: 37.99966616
A52: DPA0307 | B52: Overhead 33 kV | C52: MVA | D52: 0 | E52: 0 | F52: 0 | G52: 0 | H52: 0 | I52: 0 | J52: 0
A53: DPA0308 | B53: Overhead 44 kV | C53: MVA | D53: 0 | E53: 0 | F53: 0 | G53: 0 | H53: 0 | I53: 0 | J53: 0
A54: DPA0309 | B54: Overhead 66 kV | C54: MVA | D54: 42.00122112 | E54: 42.00122112 | F54: 115.1630472 | G54: 232.3330472 | H54: 293.6060766 | I54: 479.82255 | J54: 423.9255794
A55: DPA0310 | B55: Overhead 110 kV | C55: MVA | D55: 0 | E55: 0 | F55: 0 | G55: 0 | H55: 0 | I55: 0 | J55: 0
A56: DPA0311 | B56: Overhead 132 kV | C56: MVA | D56: 0 | E56: 0 | F56: 0 | G56: 0 | H56: 0 | I56: 0 | J56: 0
A57: DPA0312 | B57: Overhead 220 kV | C57: MVA | D57: 0 | E57: 0 | F57: 0 | G57: 0 | H57: 0 | I57: 0 | J57: 0
A58: DPA0313 | B58: Other | C58: MVA | D58: 0 | E58: 0 | F58: 0 | G58: 0 | H58: 0 | I58: 0 | J58: 0
B59: 3.5.1.4 - Estimated underground network weighted average MVA capacity by voltage class
A60: DPA0401 | B60: Underground low voltage distribution | C60: MVA | D60: 0.226783168 | E60: 0.226783168 | F60: 0.226783168 | G60: 0.226783168 | H60: 0.226783168 | I60: 0.226783168 | J60: 0.226783168
A61: DPA0402 | B61: Underground 5 kV | C61: MVA | D61: 0 | E61: 0 | F61: 0 | G61: 0 | H61: 0 | I61: 0 | J61: 0
A62: DPA0403 | B62: Underground 6.6 kV | C62: MVA | D62: 3.664643412 | E62: 3.664643412 | F62: 3.664643412 | G62: 3.664643412 | H62: 3.664643412 | I62: 3.664643412 | J62: 3.664643412
A63: DPA0404 | B63: Underground 7.6 kV | C63: MVA | D63: 0 | E63: 0 | F63: 0 | G63: 0 | H63: 0 | I63: 0 | J63: 0
A64: DPA0405 | B64: Underground 11 kV | C64: MVA | D64: 6.001556048 | E64: 6.001556048 | F64: 6.001556048 | G64: 6.001556048 | H64: 6.001556048 | I64: 6.001556048 | J64: 6.001556048
A65: DPA0406 | B65: Underground SWER | C65: MVA | D65: 0.1415302877 | E65: 0.1415302877 | F65: 0.1415302877 | G65: 0.1415302877 | H65: 0.1415302877 | I65: 0.1415302877 | J65: 0.1415302877
A66: DPA0407 | B66: Underground 12.7 kV | C66: MVA | D66: 0.1415302877 | E66: 0.1415302877 | F66: 0.1415302877 | G66: 0.1415302877 | H66: 0.1415302877 | I66: 0.1415302877 | J66: 0.1415302877
A67: DPA0408 | B67: Underground 22 kV | C67: MVA | D67: 11.24731072 | E67: 11.24731072 | F67: 11.24731072 | G67: 23.24731072 | H67: 77.24731072 | I67: 32.48935782 | J67: 35.24731072
A68: DPA0409 | B68: Underground 33 kV | C68: MVA | D68: 0 | E68: 0 | F68: 0 | G68: 0 | H68: 0 | I68: 0 | J68: 0
A69: DPA0410 | B69: Underground 66 kV | C69: MVA | D69: 43.43890509 | E69: 43.43890509 | F69: 43.43890509 | G69: 160.6089051 | H69: 160.6089051 | I69: 160.6089051 | J69: 160.6089051
A70: DPA0411 | B70: Underground 110 kV | C70: MVA | D70: 0 | E70: 0 | F70: 0 | G70: 0 | H70: 0 | I70: 0 | J70: 0
A71: DPA0412 | B71: Underground 132 kV | C71: MVA | D71: 0 | E71: 0 | F71: 0 | G71: 0 | H71: 0 | I71: 0 | J71: 0
A72: DPA0413 | B72: Other | C72: MVA | D72: 0 | E72: 0 | F72: 0 | G72: 0 | H72: 0 | I72: 0 | J72: 0
B76: 3.5.2 - TRANSFORMER CAPACITIES VARIABLES
D77: VOLUMES
C78: Units | D78: =CRCP_y4 -> 2024-25 | E78: =CRCP_y5 -> 2025-26 | F78: =FRCP_y1 -> 2026-27 | G78: =FRCP_y2 -> 2027-28 | H78: =FRCP_y3 -> 2028-29 | I78: =FRCP_y4 -> 2029-30 | J78: =FRCP_y5 -> 2030-31
B79: Distribution transformer total installed capacity
A80: DPA0501 | B80: Distribution transformer capacity owned by utility | C80: MVA | D80: 6598.919 | E80: 6598.919 | F80: 6598.919 | G80: 6598.919 | H80: 6598.919 | I80: 6598.919 | J80: 6598.919
A81: DPA0503 | B81: Cold spare capacity included in DPA0501 | C81: MVA | D81: 124.365 | E81: 124.365 | F81: 124.365 | G81: 124.365 | H81: 124.365 | I81: 124.365 | J81: 124.365
B82: Zone substation transformer capacity
A83: DPA0601 | B83: Total installed capacity for first step transformation where there are two steps to reach distribution voltage | C83: MVA | D83: 0 | E83: 0 | F83: 0 | G83: 0 | H83: 0 | I83: 0 | J83: 0
A84: DPA0602 | B84: Total installed capacity for second step transformation where there are two steps to reach distribution voltage | C84: MVA | D84: 0 | E84: 0 | F84: 0 | G84: 0 | H84: 0 | I84: 0 | J84: 0
A85: DPA0603 | B85: Total zone substation transformer capacity where there is only a single step transformation to reach distribution voltage | C85: MVA | D85: 3345.5 | E85: 3378.5 | F85: 3378.5 | G85: 3411.5 | H85: 3477.5 | I85: 3477.5 | J85: 3543.5
A86: DPA0604 | B86: Total zone substation transformer capacity | C86: MVA | D86: 3436 | E86: 3469 | F86: 3469 | G86: 3502 | H86: 3568 | I86: 3568 | J86: 3634
A87: DPA0605 | B87: Cold spare capacity of zone substation transformers included in DPA0604 | C87: MVA | D87: 90.5 | E87: 90.5 | F87: 90.5 | G87: 90.5 | H87: 90.5 | I87: 90.5 | J87: 90.5
B91: 3.5.3 - PUBLIC LIGHTING
D92: VOLUMES
C93: Units | D93: =CRCP_y4 -> 2024-25 | E93: =CRCP_y5 -> 2025-26 | F93: =FRCP_y1 -> 2026-27 | G93: =FRCP_y2 -> 2027-28 | H93: =FRCP_y3 -> 2028-29 | I93: =FRCP_y4 -> 2029-30 | J93: =FRCP_y5 -> 2030-31
A94: DPA0701 | B94: Public lighting luminaires | C94: 0's | D94: =SUM('4.1 Public lighting'!D23:D24) -> 164582.7083 | E94: =SUM('4.1 Public lighting'!E23:E24) -> 167487.6537 | F94: =SUM('4.1 Public lighting'!F23:F24) -> 172908.5961 | G94: =SUM('4.1 Public lighting'!G23:G24) -> 177655.5853 | H94: =SUM('4.1 Public lighting'!H23:H24) -> 183448.9709 | I94: =SUM('4.1 Public lighting'!I23:I24) -> 189398.2967 | J94: =SUM('4.1 Public lighting'!J23:J24) -> 198552.1717
A95: DPA0702 | B95: Public lighting poles | C95: 0's | D95: 114715.444 | E95: =D95+'4.1 Public lighting'!E15 -> 119583.4804 | F95: =E95+'4.1 Public lighting'!F15 -> 124587.8219 | G95: =F95+'4.1 Public lighting'!G15 -> 129732.2849 | H95: =G95+'4.1 Public lighting'!H15 -> 135020.7929 | I95: =H95+'4.1 Public lighting'!I15 -> 140457.3791 | J95: =I95+'4.1 Public lighting'!J15 -> 146046.1897
A96: DPA0703 | B96: Public lighting columns | C96: 0's | D96: 0 | E96: 0 | F96: 0 | G96: 0 | H96: 0 | I96: 0 | J96: 0

Sheet 3.6 Quality of service
B1: =INDEX(dms_Worksheet_List,MATCH(dms_Model,dms_Model_List)) -> REGULATORY REPORTING STATEMENT
B2: =INDEX(dms_TradingNameFull_List,MATCH(dms_TradingName,dms_TradingName_List)) -> AusNet Electricity Services Pty Ltd
B3: =CONCATENATE("REGULATORY PERIOD FROM ", FRCP_y1," TO ",dms_MultiYear_FinalYear_Result) -> REGULATORY PERIOD FROM 2026-27 TO 2030-31
B4: 3.6 QUALITY OF SERVICE DATA
B5: TEMPLATE DATE - SEPTEMBER 2024 - FINAL RIN
B7: 3.6.2 - ENERGY NOT SUPPLIED
D8: FORECAST
C9: Units | D9: =CRCP_y4 -> 2024-25 | E9: =CRCP_y5 -> 2025-26 | F9: =FRCP_y1 -> 2026-27 | G9: =FRCP_y2 -> 2027-28 | H9: =FRCP_y3 -> 2028-29 | I9: =FRCP_y4 -> 2029-30 | J9: =FRCP_y5 -> 2030-31
A10: DQS0201 | B10: Energy Not Supplied (planned) | C10: GWh | D10: 2.288 | E10: 2.288 | F10: 2.288 | G10: 2.288 | H10: 2.288 | I10: 2.288 | J10: 2.288
A11: DQS0202 | B11: Energy Not Supplied (unplanned) | C11: GWh | D11: 7.165 | E11: 7.165 | F11: 7.165 | G11: 7.165 | H11: 7.165 | I11: 7.165 | J11: 7.165
A12: DQS02 | B12: Total | D12: =SUM(D10:D11) -> 9.453 | E12: 9.453 | F12: 9.453 | G12: 9.453 | H12: 9.453 | I12: 9.453 | J12: 9.453
B14: 3.6.3 - SYSTEM LOSSES
D15: FORECAST
C16: Units | D16: =CRCP_y4 -> 2024-25 | E16: =CRCP_y5 -> 2025-26 | F16: =FRCP_y1 -> 2026-27 | G16: =FRCP_y2 -> 2027-28 | H16: =FRCP_y3 -> 2028-29 | I16: =FRCP_y4 -> 2029-30 | J16: =FRCP_y5 -> 2030-31
A17: DQS03 | B17: System losses | C17: % | D17: =(SUM('3.4 Operational data'!D22:D34)-SUM('3.4 Operational data'!D15:D20))/SUM('3.4 Operational data'!D22:D34) -> 0.03961065168 | E17: =(SUM('3.4 Operational data'!E22:E34)-SUM('3.4 Operational data'!E15:E20))/SUM('3.4 Operational data'!E22:E34) -> 0.03961065168 | F17: =(SUM('3.4 Operational data'!F22:F34)-SUM('3.4 Operational data'!F15:F20))/SUM('3.4 Operational data'!F22:F34) -> 0.03961065168 | G17: =(SUM('3.4 Operational data'!G22:G34)-SUM('3.4 Operational data'!G15:G20))/SUM('3.4 Operational data'!G22:G34) -> 0.03961065168 | H17: =(SUM('3.4 Operational data'!H22:H34)-SUM('3.4 Operational data'!H15:H20))/SUM('3.4 Operational data'!H22:H34) -> 0.03961065168 | I17: =(SUM('3.4 Operational data'!I22:I34)-SUM('3.4 Operational data'!I15:I20))/SUM('3.4 Operational data'!I22:I34) -> 0.03961065168 | J17: =(SUM('3.4 Operational data'!J22:J34)-SUM('3.4 Operational data'!J15:J20))/SUM('3.4 Operational data'!J22:J34) -> 0.03961065168
B19: 3.6.4 - CAPACITY UTILISATION
D20: FORECAST
C21: Units | D21: =CRCP_y4 -> 2024-25 | E21: =CRCP_y5 -> 2025-26 | F21: =FRCP_y1 -> 2026-27 | G21: =FRCP_y2 -> 2027-28 | H21: =FRCP_y3 -> 2028-29 | I21: =FRCP_y4 -> 2029-30 | J21: =FRCP_y5 -> 2030-31
A22: DQS04 | B22: Overall utilisation | C22: % | D22: ='3.4 Operational data'!D87/'3.5 Physical assets'!D86 -> 0.7037514552 | E22: ='3.4 Operational data'!E87/'3.5 Physical assets'!E86 -> 0.7130008648 | F22: ='3.4 Operational data'!F87/'3.5 Physical assets'!F86 -> 0.7315307005 | G22: ='3.4 Operational data'!G87/'3.5 Physical assets'!G86 -> 0.7454740148 | H22: ='3.4 Operational data'!H87/'3.5 Physical assets'!H86 -> 0.7527578475 | I22: ='3.4 Operational data'!I87/'3.5 Physical assets'!I86 -> 0.7750784753 | J22: ='3.4 Operational data'!J87/'3.5 Physical assets'!J86 -> 0.7823004953

Sheet 3.7 Operating Environment
B1: =INDEX(dms_Worksheet_List,MATCH(dms_Model,dms_Model_List)) -> REGULATORY REPORTING STATEMENT
B2: =INDEX(dms_TradingNameFull_List,MATCH(dms_TradingName,dms_TradingName_List)) -> AusNet Electricity Services Pty Ltd
B3: =CONCATENATE("REGULATORY PERIOD FROM ", FRCP_y1," TO ",dms_MultiYear_FinalYear_Result) -> REGULATORY PERIOD FROM 2026-27 TO 2030-31
B4: 3.7 OPERATING ENVIRONMENT FACTORS
B5: TEMPLATE DATE - SEPTEMBER 2024 - FINAL RIN
B7: There are THREE tables on this worksheet. Each table has been grouped (and sub-grouped) for ease of navigation. See the Instructions sheet on how to group or ungroup tables.
A9: DOEF01 | B9: 3.7.1 - DENSITY FACTORS
D10: FORECAST
C11: Units | D11: =CRCP_y4 -> 2024-25 | E11: =CRCP_y5 -> 2025-26 | F11: =FRCP_y1 -> 2026-27 | G11: =FRCP_y2 -> 2027-28 | H11: =FRCP_y3 -> 2028-29 | I11: =FRCP_y4 -> 2029-30 | J11: =FRCP_y5 -> 2030-31
A12: DOEF0101 | B12: Customer density | C12: Customer / km | D12: ='3.4 Operational data'!D54/'3.5 Physical assets'!D28 -> 21.67662245
A13: DOEF0102 | B13: Energy density | C13: MWh/customer | D13: =SUM('3.4 Operational data'!D15:D20)*1000/'3.4 Operational data'!D54 -> 9.582004707
A14: DOEF0103 | B14: Demand density | C14: kVA / customer | D14: ='3.4 Operational data'!D87*1000/'3.4 Operational data'!D54 -> 2.939569657
A16: DOEF02 | B16: 3.7.2 - TERRAIN FACTORS
D17: FORECAST
C18: Units | D18: =CRCP_y4 -> 2024-25 | E18: =CRCP_y5 -> 2025-26 | F18: =FRCP_y1 -> 2026-27 | G18: =FRCP_y2 -> 2027-28 | H18: =FRCP_y3 -> 2028-29 | I18: =FRCP_y4 -> 2029-30 | J18: =FRCP_y5 -> 2030-31
A19: DOEF0201 | B19: Rural proportion | C19: % | D19: 0.9276664188
A20: DOEF0202 | B20: Urban and CBD vegetation maintenance spans | C20: 0's | D20: 11056.47
A21: DOEF0203 | B21: Rural vegetation maintenance spans | C21: 0's | D21: 64200.33
A22: DOEF0204 | B22: Total vegetation maintenance spans | C22: 0's | D22: 75256.8
A23: DOEF0205 | B23: Total number of spans | C23: 0's | D23: 318414
A24: DOEF0206 | B24: Average urban and CBD vegetation maintenance span cycle | C24: Years | D24: 1
A25: DOEF0207 | B25: Average rural vegetation maintenance span cycle | C25: Years | D25: 1
A26: DOEF0208 | B26: Average number of trees per urban and CBD vegetation maintenance span | C26: Trees | D26: 2.572266667
A27: DOEF0209 | B27: Average number of trees per rural vegetation maintenance span | C27: Trees | D27: 6.2524
A28: DOEF0210 | B28: Average number of defects per urban and CBD vegetation maintenance span | C28: Defects | D28: 0.9563419497
A29: DOEF0211 | B29: Average number of defects per rural vegetation maintenance span | C29: Defects | D29: 0.736104432
A30: DOEF0212 | B30: Tropical proportion | C30: Spans | D30: 0
A31: DOEF0213 | B31: Standard vehicle access | C31: km | D31: 780.27 | E31: 780.27 | F31: 780.27 | G31: 780.27 | H31: 780.27 | I31: 780.27 | J31: 780.27
A32: DOEF0214 | B32: Bushfire risk | C32: Spans | D32: 56895
A34: DOEF03 | B34: 3.7.3 - SERVICE AREA FACTORS
D35: FORECAST
C36: Units | D36: =CRCP_y4 -> 2024-25 | E36: =CRCP_y5 -> 2025-26 | F36: =FRCP_y1 -> 2026-27 | G36: =FRCP_y2 -> 2027-28 | H36: =FRCP_y3 -> 2028-29 | I36: =FRCP_y4 -> 2029-30 | J36: =FRCP_y5 -> 2030-31
A37: DOEF0301 | B37: Route Line length | C37: km | D37: 40316.13337 | E37: 40467.97741 | F37: 40620.39334 | G37: 40773.38333 | H37: 40926.94952 | I37: 41081.0941 | J37: 41235.81924

Sheet 4.1 Public lighting
B1: =INDEX(dms_Worksheet_List,MATCH(dms_Model,dms_Model_List)) -> REGULATORY REPORTING STATEMENT
B2: =INDEX(dms_TradingNameFull_List,MATCH(dms_TradingName,dms_TradingName_List)) -> AusNet Electricity Services Pty Ltd
B3: =CONCATENATE("REGULATORY PERIOD FROM ", FRCP_y1," TO ",dms_MultiYear_FinalYear_Result) -> REGULATORY PERIOD FROM 2026-27 TO 2030-31
B4: 4.1 PUBLIC LIGHTING
B5: TEMPLATE DATE - SEPTEMBER 2024 - FINAL RIN
B7: There are TWO tables on this worksheet. Each table has been grouped (and sub-grouped) for ease of navigation. There are no further instructions.
B9: 4.1.2 - DESCRIPTOR METRICS ANNUALLY
D10: VOLUMES & EXPENDITURE
C11: Units | D11: =CRCP_y4 -> 2024-25 | E11: =CRCP_y5 -> 2025-26 | F11: =FRCP_y1 -> 2026-27 | G11: =FRCP_y2 -> 2027-28 | H11: =FRCP_y3 -> 2028-29 | I11: =FRCP_y4 -> 2029-30 | J11: =FRCP_y5 -> 2030-31
B12: PUBLIC LIGHT INSTALLATION
B13: Major road light installed | C13: number | D13: 1196.244 | E13: 1229.738832 | F13: 1264.171519 | G13: 1299.568322 | H13: 1335.956235 | I13: 1373.363009 | J13: 1411.817174
B14: Minor road light installed | C14: number | D14: 3539.2 | E14: 3638.2976 | F14: 3740.169933 | G14: 3844.894691 | H14: 3952.551742 | I14: 4063.223191 | J14: 4176.99344
B15: Number of poles installed | C15: number | D15: =SUM(D13:D14) -> 4735.444 | E15: =SUM(E13:E14) -> 4868.036432 | F15: =SUM(F13:F14) -> 5004.341452 | G15: =SUM(G13:G14) -> 5144.463013 | H15: 5288.507977 | I15: 5436.5862 | J15: 5588.810614
B16: Total expenditure | C16: $ | D16: =D13*D39+D14*AVERAGE(D41:D43) -> 4358526.517 | E16: =E13*E39+E14*AVERAGE(E41:E43) -> 4480565.26 | F16: 4031427.592 | G16: 4144307.564 | H16: 4260348.176 | I16: 4379637.925 | J16: 4502267.787
B17: PUBLIC LIGHT REPLACEMENT
B18: Major road light installed | C18: number | D18: 1075.585276 | E18: 1086.449774 | F18: 1097.424014 | G18: 1107.259644 | H18: 1117.370672 | I18: 1127.764808 | J18: 1138.44998
B19: Minor road light installed | C19: number | D19: 3412.05877 | E19: 3446.52401 | F19: 3481.337384 | G19: 3516.692164 | H19: 3553.036878 | I19: 3590.399243 | J19: 3628.807756
B20: Number of poles replaced | C20: number | D20: 817.2849331 | E20: 817.2849331 | F20: 817.2849331 | G20: 817.2849331 | H20: 817.2849331 | I20: 817.2849331 | J20: 817.2849331
B21: Total expenditure | C21: $ | D21: 5713038.601 | E21: 3849674.441 | F21: 5301185.608 | G21: 5342414.535 | H21: 5386950.035 | I21: 5435022.946 | J21: 5481775.038
B22: PUBLIC LIGHT MAINTENANCE
B23: Major road light installed | C23: number | D23: 44107.68689 | E23: 44529.18614 | F23: 45476.37671 | G23: 46538.24269 | H23: 47709.38466 | I23: 48981.26809 | J23: 48263.52031
B24: Minor road light installed | C24: number | D24: 120475.0214 | E24: 122958.4675 | F24: 127432.2194 | G24: 131117.3426 | H24: 135739.5862 | I24: 140417.0287 | J24: 150288.6514
B25: Number of poles maintained | C25: number | D25: ='3.5 Physical assets'!D95 -> 114715.444 | E25: ='3.5 Physical assets'!E95 -> 119583.4804 | F25: ='3.5 Physical assets'!F95 -> 124587.8219 | G25: ='3.5 Physical assets'!G95 -> 129732.2849 | H25: ='3.5 Physical assets'!H95 -> 135020.7929 | I25: ='3.5 Physical assets'!I95 -> 140457.3791 | J25: ='3.5 Physical assets'!J95 -> 146046.1897
B26: Total expenditure | C26: $ | D26: 0 | E26: 0 | F26: 0 | G26: 0 | H26: 0 | I26: 0 | J26: 0
B27: QUALITY OF SUPPLY
B28: Mean days to rectify/replace public lighting assets | C28: number of days | D28: =AVERAGE(20,9,6) -> 11.66666667 | E28: 11.66666667 | F28: 11.66666667 | G28: 11.66666667 | H28: 11.66666667 | I28: 11.66666667 | J28: 11.66666667
B29: GSO breaches | C29: number | D29: =AVERAGE(387,465,540) -> 464 | E29: 464 | F29: 464 | G29: 464 | H29: 464 | I29: 464 | J29: 464
B30: GSL payments | C30: $ | D30: 12586 | E30: 12586 | F30: 12586 | G30: 12586 | H30: 12586 | I30: 12586 | J30: 12586
B31: Customer complaints | C31: number | D31: =AVERAGE(47,54,56) -> 52.33333333 | E31: 52.33333333 | F31: 52.33333333 | G31: 52.33333333 | H31: 52.33333333 | I31: 52.33333333 | J31: 52.33333333
B35: 4.1.3 - COST METRICS
D36: =CONCATENATE("AVERAGE UNIT COST ($, real ",dms_DollarReal, ")") -> AVERAGE UNIT COST ($, real June 2026)
D37: =CRCP_y4 -> 2024-25 | E37: =CRCP_y5 -> 2025-26 | F37: =FRCP_y1 -> 2026-27 | G37: =FRCP_y2 -> 2027-28 | H37: =FRCP_y3 -> 2028-29 | I37: =FRCP_y4 -> 2029-30 | J37: =FRCP_y5 -> 2030-31
B38: PUBLIC LIGHT INSTALLATION
B39: LED 18W | D39: 536 | E39: 536 | F39: =AVERAGE(655,443,678) -> 592 | G39: =AVERAGE(655,443,678) -> 592 | H39: 592 | I39: 592 | J39: 592
B40: LED 14W | D40: 536 | E40: 536 | F40: =F39 -> 592 | G40: =G39 -> 592 | H40: 592 | I40: 592 | J40: 592
B41: LED 70W | D41: 944 | E41: 944 | F41: =F40 -> 592 | G41: 592 | H41: 592 | I41: 592 | J41: 592
B42: LED 155W | D42: 1049 | E42: 1049 | F42: =F43 -> 1020.666667 | G42: =G43 -> 1020.666667 | H42: 1020.666667 | I42: 1020.666667 | J42: 1020.666667
B43: LED 275W | D43: 1158 | E43: 1158 | F43: =AVERAGE(1018,1003,1041) -> 1020.666667 | G43: =AVERAGE(1018,1003,1041) -> 1020.666667 | H43: 1020.666667 | I43: 1020.666667 | J43: 1020.666667
B99: PUBLIC LIGHT REPLACEMENT
B100: LED 18W | D100: 536 | E100: 536 | F100: 671.6544048 | G100: 672.585842 | H100: 673.7381879 | I100: 675.127714 | J100: 676.29778
B101: LED 14W | D101: 536 | E101: 536 | F101: 659.4087189 | G101: 660.340156 | H101: 661.492502 | I101: 662.8820281 | J101: 664.0520941
B102: LED 70W | D102: 944 | E102: 944 | F102: 1039.507589 | G102: 1040.439026 | H102: 1041.591372 | I102: 1042.980898 | J102: 1044.150964
B103: LED 155W | D103: 1049 | E103: 1049 | F103: 1039.507589 | G103: 1040.439026 | H103: 1041.591372 | I103: 1042.980898 | J103: 1044.150964
B104: LED 275W | D104: 1158 | E104: 1158 | F104: 1881.204075 | G104: 1882.135512 | H104: 1883.287858 | I104: 1884.677384 | J104: 1885.84745
B160: PUBLIC LIGHT MAINTENANCE
B161: LED 18W | D161: 16 | E161: 16 | F161: 13.68038631 | G161: 13.75271113 | H161: 13.80805234 | I161: 13.90277922 | J161: 13.94763458
B162: LED 14W | D162: 16 | E162: 16 | F162: 15.73322281 | G162: 15.82275228 | H162: 15.89586067 | I162: 16.00884089 | J162: 16.07713911
B163: LED70W | D163: 21 | E163: 21 | F163: 23.4549379 | G163: 23.5889219 | H163: 23.7280258 | I163: 23.92905528 | J163: 24.06969245
B164: LED155W | D164: 22 | E164: 22 | F164: 23.07569203 | G164: 23.14099053 | H164: 23.2358787 | I164: 23.40702687 | J164: 23.52221535
B165: LED275W | D165: 34 | E165: 34 | F165: 24.87495093 | G165: 24.88452153 | H165: 24.9680632 | I165: 25.16165199 | J165: 25.20573072

Sheet 5.4 MD & utilisation-Spatial
B1: =INDEX(dms_Worksheet_List,MATCH(dms_Model,dms_Model_List)) -> REGULATORY REPORTING STATEMENT
B2: =INDEX(dms_TradingNameFull_List,MATCH(dms_TradingName,dms_TradingName_List)) -> AusNet Electricity Services Pty Ltd
B3: =CONCATENATE("REGULATORY PERIOD FROM ", FRCP_y1," TO ",dms_MultiYear_FinalYear_Result) -> REGULATORY PERIOD FROM 2026-27 TO 2030-31
B4: 5.4 MAXIMUM DEMAND AND UTILISATION AT SPATIAL LEVEL
B5: TEMPLATE DATE - SEPTEMBER 2024 - FINAL RIN
B7: There are two tables on this worksheet. The tables have been sub-grouped for ease of navigation. See the Instructions sheet on how to group or ungroup tables.
B9: 5.4.1 - NON-COINCIDENT & COINCIDENT MAXIMUM DEMAND
B10: SUBTRANSMISSION SUBSTATION
F11: DEMAND
B12: SUBSTATION | C12: FORECASTING ELEMENTS | D12: UNIT | E12: MAX DEMAND | F12: =CRCP_y4 -> 2024-25 | G12: =CRCP_y5 -> 2025-26 | H12: =FRCP_y1 -> 2026-27 | I12: =FRCP_y2 -> 2027-28 | J12: =FRCP_y3 -> 2028-29 | K12: =FRCP_y4 -> 2029-30 | L12: =FRCP_y5 -> 2030-31
B13: <Enter substation name> | C13: Substation Rating | D13: MVA | E13: Non-Coincident
E14: Coincident
C15: Raw Adjusted MD | D15: MW | E15: Non-Coincident
E16: Coincident
C17: Raw Adjusted MD | D17: MVA | E17: Non-Coincident
E18: Coincident
C19: Date MD occurred | E19: Non-Coincident
E20: Coincident
C21: Half hour time period MD occurred | E21: Non-Coincident
E22: Coincident
C23: Winter/Summer Peaking | E23: Non-Coincident
E24: Coincident
C25: Adjustments - Embedded generation | D25: MW | E25: Non-Coincident
E26: Coincident
C27: Weather Corrected 10% POE | D27: MW | E27: Non-Coincident
E28: Coincident
C29: Weather Corrected MD 10% POE | D29: MVA | E29: Non-Coincident
E30: Coincident
C31: Weather Corrected MD 50% POE | D31: MW | E31: Non-Coincident
E32: Coincident
C33: Weather Corrected MD 50% POE | D33: MVA | E33: Non-Coincident
E34: Coincident
B35: <Enter substation name> | C35: Substation Rating | D35: MVA | E35: Non-Coincident
E36: Coincident
C37: Raw Adjusted MD | D37: MW | E37: Non-Coincident
E38: Coincident
C39: Raw Adjusted MD | D39: MVA | E39: Non-Coincident
E40: Coincident
C41: Date MD occurred | E41: Non-Coincident
E42: Coincident
C43: Half hour time period MD occurred | E43: Non-Coincident
E44: Coincident
C45: Winter/Summer Peaking | E45: Non-Coincident
E46: Coincident
C47: Adjustments - Embedded generation | D47: MW | E47: Non-Coincident
E48: Coincident
C49: Weather Corrected 10% POE | D49: MW | E49: Non-Coincident
E50: Coincident
C51: Weather Corrected MD 10% POE | D51: MVA | E51: Non-Coincident
E52: Coincident
C53: Weather Corrected MD 50% POE | D53: MW | E53: Non-Coincident
E54: Coincident
C55: Weather Corrected MD 50% POE | D55: MVA | E55: Non-Coincident
E56: Coincident
B57: <Enter substation name> | C57: Substation Rating | D57: MVA | E57: Non-Coincident
E58: Coincident
C59: Raw Adjusted MD | D59: MW | E59: Non-Coincident
E60: Coincident
C61: Raw Adjusted MD | D61: MVA | E61: Non-Coincident
E62: Coincident
C63: Date MD occurred | E63: Non-Coincident
E64: Coincident
C65: Half hour time period MD occurred | E65: Non-Coincident
E66: Coincident
C67: Winter/Summer Peaking | E67: Non-Coincident
E68: Coincident
C69: Adjustments - Embedded generation | D69: MW | E69: Non-Coincident
E70: Coincident
C71: Weather Corrected 10% POE | D71: MW | E71: Non-Coincident
E72: Coincident
C73: Weather Corrected MD 10% POE | D73: MVA | E73: Non-Coincident
E74: Coincident
C75: Weather Corrected MD 50% POE | D75: MW | E75: Non-Coincident
E76: Coincident
C77: Weather Corrected MD 50% POE | D77: MVA | E77: Non-Coincident
E78: Coincident
B79: <Enter substation name> | C79: Substation Rating | D79: MVA | E79: Non-Coincident
E80: Coincident
C81: Raw Adjusted MD | D81: MW | E81: Non-Coincident
E82: Coincident
C83: Raw Adjusted MD | D83: MVA | E83: Non-Coincident
E84: Coincident
C85: Date MD occurred | E85: Non-Coincident
E86: Coincident
C87: Half hour time period MD occurred | E87: Non-Coincident
E88: Coincident
C89: Winter/Summer Peaking | E89: Non-Coincident
E90: Coincident
C91: Adjustments - Embedded generation | D91: MW | E91: Non-Coincident
E92: Coincident
C93: Weather Corrected 10% POE | D93: MW | E93: Non-Coincident
E94: Coincident
C95: Weather Corrected MD 10% POE | D95: MVA | E95: Non-Coincident
E96: Coincident
C97: Weather Corrected MD 50% POE | D97: MW | E97: Non-Coincident
E98: Coincident
C99: Weather Corrected MD 50% POE | D99: MVA | E99: Non-Coincident
E100: Coincident
B101: <Enter substation name> | C101: Substation Rating | D101: MVA | E101: Non-Coincident
E102: Coincident
C103: Raw Adjusted MD | D103: MW | E103: Non-Coincident
E104: Coincident
C105: Raw Adjusted MD | D105: MVA | E105: Non-Coincident
E106: Coincident
C107: Date MD occurred | E107: Non-Coincident
E108: Coincident
C109: Half hour time period MD occurred | E109: Non-Coincident
E110: Coincident
C111: Winter/Summer Peaking | E111: Non-Coincident
E112: Coincident
C113: Adjustments - Embedded generation | D113: MW | E113: Non-Coincident
E114: Coincident
C115: Weather Corrected 10% POE | D115: MW | E115: Non-Coincident
E116: Coincident
C117: Weather Corrected MD 10% POE | D117: MVA | E117: Non-Coincident
E118: Coincident
C119: Weather Corrected MD 50% POE | D119: MW | E119: Non-Coincident
E120: Coincident
C121: Weather Corrected MD 50% POE | D121: MVA | E121: Non-Coincident
E122: Coincident
B123: <Enter substation name> | C123: Substation Rating | D123: MVA | E123: Non-Coincident
E124: Coincident
C125: Raw Adjusted MD | D125: MW | E125: Non-Coincident
E126: Coincident
C127: Raw Adjusted MD | D127: MVA | E127: Non-Coincident
E128: Coincident
C129: Date MD occurred | E129: Non-Coincident
E130: Coincident
C131: Half hour time period MD occurred | E131: Non-Coincident
E132: Coincident
C133: Winter/Summer Peaking | E133: Non-Coincident
E134: Coincident
C135: Adjustments - Embedded generation | D135: MW | E135: Non-Coincident
E136: Coincident
C137: Weather Corrected 10% POE | D137: MW | E137: Non-Coincident
E138: Coincident
C139: Weather Corrected MD 10% POE | D139: MVA | E139: Non-Coincident
E140: Coincident
C141: Weather Corrected MD 50% POE | D141: MW | E141: Non-Coincident
E142: Coincident
C143: Weather Corrected MD 50% POE | D143: MVA | E143: Non-Coincident
E144: Coincident
B145: <Enter substation name> | C145: Substation Rating | D145: MVA | E145: Non-Coincident
E146: Coincident
C147: Raw Adjusted MD | D147: MW | E147: Non-Coincident
E148: Coincident
C149: Raw Adjusted MD | D149: MVA | E149: Non-Coincident
E150: Coincident
C151: Date MD occurred | E151: Non-Coincident
E152: Coincident
C153: Half hour time period MD occurred | E153: Non-Coincident
E154: Coincident
C155: Winter/Summer Peaking | E155: Non-Coincident
E156: Coincident
C157: Adjustments - Embedded generation | D157: MW | E157: Non-Coincident
E158: Coincident
C159: Weather Corrected 10% POE | D159: MW | E159: Non-Coincident
E160: Coincident
C161: Weather Corrected MD 10% POE | D161: MVA | E161: Non-Coincident
E162: Coincident
C163: Weather Corrected MD 50% POE | D163: MW | E163: Non-Coincident
E164: Coincident
C165: Weather Corrected MD 50% POE | D165: MVA | E165: Non-Coincident
E166: Coincident
B167: <Enter substation name> | C167: Substation Rating | D167: MVA | E167: Non-Coincident
E168: Coincident
C169: Raw Adjusted MD | D169: MW | E169: Non-Coincident
E170: Coincident
C171: Raw Adjusted MD | D171: MVA | E171: Non-Coincident
E172: Coincident
C173: Date MD occurred | E173: Non-Coincident
E174: Coincident
C175: Half hour time period MD occurred | E175: Non-Coincident
E176: Coincident
C177: Winter/Summer Peaking | E177: Non-Coincident
E178: Coincident
C179: Adjustments - Embedded generation | D179: MW | E179: Non-Coincident
E180: Coincident
C181: Weather Corrected 10% POE | D181: MW | E181: Non-Coincident
E182: Coincident
C183: Weather Corrected MD 10% POE | D183: MVA | E183: Non-Coincident
E184: Coincident
C185: Weather Corrected MD 50% POE | D185: MW | E185: Non-Coincident
E186: Coincident
C187: Weather Corrected MD 50% POE | D187: MVA | E187: Non-Coincident
E188: Coincident
B189: <Enter substation name> | C189: Substation Rating | D189: MVA | E189: Non-Coincident
E190: Coincident
C191: Raw Adjusted MD | D191: MW | E191: Non-Coincident
E192: Coincident
C193: Raw Adjusted MD | D193: MVA | E193: Non-Coincident
E194: Coincident
C195: Date MD occurred | E195: Non-Coincident
E196: Coincident
C197: Half hour time period MD occurred | E197: Non-Coincident
E198: Coincident
C199: Winter/Summer Peaking | E199: Non-Coincident
E200: Coincident
C201: Adjustments - Embedded generation | D201: MW | E201: Non-Coincident
E202: Coincident
... 11371 more rows

Sheet 6.2 Reliability & Cust serv
B1: =INDEX(dms_Worksheet_List,MATCH(dms_Model,dms_Model_List)) -> REGULATORY REPORTING STATEMENT
B2: =INDEX(dms_TradingNameFull_List,MATCH(dms_TradingName,dms_TradingName_List)) -> AusNet Electricity Services Pty Ltd
B3: =CONCATENATE("REGULATORY PERIOD FROM ", FRCP_y1," TO ",dms_MultiYear_FinalYear_Result) -> REGULATORY PERIOD FROM 2026-27 TO 2030-31
B4: 6.2 RELIABILITY AND CUSTOMER SERVICE PERFORMANCE
B5: TEMPLATE DATE - SEPTEMBER 2024 - FINAL RIN
B7: There are FIVE tables on this worksheet. Each table has been grouped for ease of navigation. There are no further instructions.
B9: 6.2.1 - UNPLANNED MINUTES OFF SUPPLY (SAIDI)
E10: Proposed target
B11: SAIDI | E11: =FRCP_y1 -> 2026-27 | F11: =FRCP_y2 -> 2027-28 | G11: =FRCP_y3 -> 2028-29 | H11: =FRCP_y4 -> 2029-30 | I11: =FRCP_y5 -> 2030-31
B12: Total sustained minutes off supply after removing excluded events
B13: =INDEX(dms_FeederName_1,MATCH(dms_TradingName,dms_TradingName_List)) -> CBD
B14: =INDEX(dms_FeederName_2,MATCH(dms_TradingName,dms_TradingName_List)) -> Urban | E14: 88.03 | F14: 88.03 | G14: 88.03 | H14: 88.03 | I14: 88.03
B15: =INDEX(dms_FeederName_3,MATCH(dms_TradingName,dms_TradingName_List)) -> Short rural | E15: 184.24 | F15: 184.24 | G15: 184.24 | H15: 184.24 | I15: 184.24
B16: =INDEX(dms_FeederName_4,MATCH(dms_TradingName,dms_TradingName_List)) -> Long rural | E16: 295.08 | F16: 295.08 | G16: 295.08 | H16: 295.08 | I16: 295.08
B17: =IF(ISBLANK(INDEX(dms_FeederName_5,MATCH(dms_TradingName,dms_TradingName_List))),"",INDEX(dms_FeederName_5,MATCH(dms_TradingName,dms_TradingName_List))) -> 
B18: Total | E18: =SUM(E13:E17) -> 567.35 | F18: =SUM(F13:F17) -> 567.35 | G18: =SUM(G13:G17) -> 567.35 | H18: =SUM(H13:H17) -> 567.35 | I18: =SUM(I13:I17) -> 567.35
B21: 6.2.2 - UNPLANNED INTERRUPTIONS TO SUPPLY (SAIFI)
E22: Proposed target
B23: SAIFI | E23: =FRCP_y1 -> 2026-27 | F23: =FRCP_y2 -> 2027-28 | G23: =FRCP_y3 -> 2028-29 | H23: =FRCP_y4 -> 2029-30 | I23: =FRCP_y5 -> 2030-31
B24: Total sustained interruptions after removing excluded events
B25: =INDEX(dms_FeederName_1,MATCH(dms_TradingName,dms_TradingName_List)) -> CBD
B26: =INDEX(dms_FeederName_2,MATCH(dms_TradingName,dms_TradingName_List)) -> Urban | E26: 0.812 | F26: 0.812 | G26: 0.812 | H26: 0.812 | I26: 0.812
B27: =INDEX(dms_FeederName_3,MATCH(dms_TradingName,dms_TradingName_List)) -> Short rural | E27: 1.506 | F27: 1.506 | G27: 1.506 | H27: 1.506 | I27: 1.506
B28: =INDEX(dms_FeederName_4,MATCH(dms_TradingName,dms_TradingName_List)) -> Long rural | E28: 2.146 | F28: 2.146 | G28: 2.146 | H28: 2.146 | I28: 2.146
B29: =IF(ISBLANK(INDEX(dms_FeederName_5,MATCH(dms_TradingName,dms_TradingName_List))),"",INDEX(dms_FeederName_5,MATCH(dms_TradingName,dms_TradingName_List))) -> 
B30: Total | E30: =SUM(E25:E29) -> 4.464 | F30: =SUM(F25:F29) -> 4.464 | G30: =SUM(G25:G29) -> 4.464 | H30: =SUM(H25:H29) -> 4.464 | I30: =SUM(I25:I29) -> 4.464
B33: 6.2.3 - UNPLANNED MOMENTARY INTERRUPTIONS TO SUPPLY (MAIFI)
E34: Proposed target
B35: MAIFI | E35: =FRCP_y1 -> 2026-27 | F35: =FRCP_y2 -> 2027-28 | G35: =FRCP_y3 -> 2028-29 | H35: =FRCP_y4 -> 2029-30 | I35: =FRCP_y5 -> 2030-31
B36: Total momentary interruptions after removing excluded events
B37: =INDEX(dms_FeederName_1,MATCH(dms_TradingName,dms_TradingName_List)) -> CBD
B38: =INDEX(dms_FeederName_2,MATCH(dms_TradingName,dms_TradingName_List)) -> Urban
B39: =INDEX(dms_FeederName_3,MATCH(dms_TradingName,dms_TradingName_List)) -> Short rural
B40: =INDEX(dms_FeederName_4,MATCH(dms_TradingName,dms_TradingName_List)) -> Long rural
B41: =IF(ISBLANK(INDEX(dms_FeederName_5,MATCH(dms_TradingName,dms_TradingName_List))),"",INDEX(dms_FeederName_5,MATCH(dms_TradingName,dms_TradingName_List))) -> 
B42: Total | E42: =SUM(E37:E41) -> 0 | F42: =SUM(F37:F41) -> 0 | G42: =SUM(G37:G41) -> 0 | H42: =SUM(H37:H41) -> 0 | I42: =SUM(I37:I41) -> 0
B45: 6.2.3(B) - UNPLANNED MOMENTARY INTERRUPTIONS TO SUPPLY (MAIFIe)
E46: Proposed target
B47: MAIFIe | E47: =FRCP_y1 -> 2026-27 | F47: =FRCP_y2 -> 2027-28 | G47: =FRCP_y3 -> 2028-29 | H47: =FRCP_y4 -> 2029-30 | I47: =FRCP_y5 -> 2030-31
B48: Total momentary interruptions after removing excluded events
B49: =INDEX(dms_FeederName_1,MATCH(dms_TradingName,dms_TradingName_List)) -> CBD
B50: =INDEX(dms_FeederName_2,MATCH(dms_TradingName,dms_TradingName_List)) -> Urban
B51: =INDEX(dms_FeederName_3,MATCH(dms_TradingName,dms_TradingName_List)) -> Short rural
B52: =INDEX(dms_FeederName_4,MATCH(dms_TradingName,dms_TradingName_List)) -> Long rural
B53: =IF(ISBLANK(INDEX(dms_FeederName_5,MATCH(dms_TradingName,dms_TradingName_List))),"",INDEX(dms_FeederName_5,MATCH(dms_TradingName,dms_TradingName_List))) -> 
B54: Total | E54: =SUM(E49:E53) -> 0 | F54: =SUM(F49:F53) -> 0 | G54: =SUM(G49:G53) -> 0 | H54: =SUM(H49:H53) -> 0 | I54: =SUM(I49:I53) -> 0
B57: The number of distribution customers is calculated as the average of the number of customers at the beginning of the reporting period and the number of customers at the end of the reporting period.
B59: 6.2.4 - DISTRIBUTION CUSTOMER NUMBERS (STPIS)
C60: FORECAST
B61: Average customer numbers | C61: =CRCP_y4 -> 2024-25 | D61: =CRCP_y5 -> 2025-26 | E61: =FRCP_y1 -> 2026-27 | F61: =FRCP_y2 -> 2027-28 | G61: =FRCP_y3 -> 2028-29 | H61: =FRCP_y4 -> 2029-30 | I61: =FRCP_y5 -> 2030-31
B62: =INDEX(dms_FeederName_1,MATCH(dms_TradingName,dms_TradingName_List)) -> CBD
B63: =INDEX(dms_FeederName_2,MATCH(dms_TradingName,dms_TradingName_List)) -> Urban | C63: 356478 | D63: 361899 | E63: 372929 | F63: 380943 | G63: 388386 | H63: 392563 | I63: 399960
B64: =INDEX(dms_FeederName_3,MATCH(dms_TradingName,dms_TradingName_List)) -> Short rural | C64: 327761 | D64: 336145 | E64: 337766 | F64: 342235 | G64: 348149 | H64: 357105 | I64: 363059
B65: =INDEX(dms_FeederName_4,MATCH(dms_TradingName,dms_TradingName_List)) -> Long rural | C65: 138361 | D65: 139894 | E65: 142763 | F65: 145904 | G65: 148252 | H65: 150914 | I65: 153463
B66: =IF(ISBLANK(INDEX(dms_FeederName_5,MATCH(dms_TradingName,dms_TradingName_List))),"",INDEX(dms_FeederName_5,MATCH(dms_TradingName,dms_TradingName_List))) -> 
B67: Total | C67: =SUM(C62:C66) -> 822600 | D67: 837938 | E67: 853458 | F67: 869082 | G67: 884787 | H67: 900582 | I67: 916482
B69: The AER's definition of calls answered within 30 seconds is as follows: Calls to the fault line answered in 30 seconds where the time to answer a call is measured from when the call enters the telephone system of the call centre (including that time when it may be ringing unanswered by any response) and the caller speaks with a human operator, but excluding the time that the caller is connected to an automated interactive service that provides substantive information. This measure does not apply to: - calls to payment lines and automated interactive services; - calls abandoned by the customer within 30 seconds of the call being queued for response by a human operator. Where the time in which a telephone call is abandoned is not measured, then an estimate of the number of calls abandoned within 30 seconds will be determined by taking 20 per cent of all calls abandoned. Note: Being placed in a queuing system (automated or otherwise) does not constitute a response. 'Calls answered within 30 seconds' and 'Calls received' should be calculated excluding calls abandoned within 30 seconds of being queued for a human operator; and calls to payment lines and automated interactive services.
B71: 6.2.5 - CUSTOMER SERVICE
E72: Proposed target
E73: =FRCP_y1 -> 2026-27 | F73: =FRCP_y2 -> 2027-28 | G73: =FRCP_y3 -> 2028-29 | H73: =FRCP_y4 -> 2029-30 | I73: =FRCP_y5 -> 2030-31
B74: Number of calls received | E74: 125486 | F74: 128462 | G74: 131572 | H74: 134854 | I74: 138242
B75: Number of calls answered within 30 seconds | E75: 100388 | F75: 102765 | G75: 105257 | H75: 107886 | I75: 110563
B76: Percentage of calls answered within 30 seconds | E76: =IFERROR((E75/E74),"") -> 0.7999936248 | F76: =IFERROR((F75/F74),"") -> 0.7999641917 | G76: =IFERROR((G75/G74),"") -> 0.7999954398 | H76: =IFERROR((H75/H74),"") -> 0.8000207632 | I76: =IFERROR((I75/I74),"") -> 0.799778649

Sheet 7.1 Policies and Procedures
B1: =INDEX(dms_Worksheet_List,MATCH(dms_Model,dms_Model_List)) -> REGULATORY REPORTING STATEMENT
B2: =INDEX(dms_TradingNameFull_List,MATCH(dms_TradingName,dms_TradingName_List)) -> AusNet Electricity Services Pty Ltd
B3: =CONCATENATE("REGULATORY PERIOD FROM ", FRCP_y1," TO ",dms_MultiYear_FinalYear_Result) -> REGULATORY PERIOD FROM 2026-27 TO 2030-31
B4: 7.1 PLANS, POLICIES, PROCEDURES AND STRATEGIES
B5: TEMPLATE DATE - SEPTEMBER 2024 - FINAL RIN
B7: 7.1.1 - PLANS, POLICIES, PROCEDURES AND STRATEGIES
C8: Brief description | D8: Relevance to regulatory proposal | E8: Expenditure impact
C9: Description of the plan, policy, procedure or strategy. | D9: Identify the element of the proposal/supporting documents that the policy, plan, procedure or strategy is relevant to e.g. replacement capex, capacity utilisation thresholds, opex | E9: Is this policy, plan or procedure identified in the response to section 4 'Step Changes' of the notice (yes or no)?
B10: Corporate
B11: Asset Management Strategy | C11: The document sets out the significant Asset Management Drivers as well as Electricity Distribution Asset Management Objectives and Network Performance and Process and System Strategies | D11: Provides an overview of the asset management system and interdependencies. | E11: No
B12: Consumer Energy Resources (CER) Integration Strategy | C12: The document provides an overview of the strategy for effective CER intgration ands sets out plans to effciently ingreate CER. Inlcudes the transition to the role of the Distribution System Operator (DSO). | D12: Provides an overview of the CER strategy that the relevant expenditure is based on. | E12: No
B31: Governance framework
B32: AMS 01-09 Asset Risk Management | C32: This document outlines the various components and methods used in risk identification, evaluation and management. | D32: Chapter 6 Capex, Chapter 7 Opex | E32: No
B33: AMS 20-13 Enhanced Network Safety | C33: The objective of the Enhanced Safety Strategy is to optimise the output of the Electricity Safety Management Scheme (ESMS), the Bushfire Mitigation program and the Occupational Health & Safety Management System to identify and prioritise opportunities to develop and implement network asset management initiatives and programs that continuously reduce network related health and safety risks 'so far as is practicable’ for customers, public and personnel. | D33: Applies to all aspects of the day to day operations and our Proposal. | E33: No
B34: BFM 10-01 Bushfire Mitigation Plan | C34: This document outlines the initiatives and controls implemented by AusNet Services to reduce bushfire risk on its electricity distribution network. | D34: Chapter 6 Capex, Chapter 7 Opex | E34: No
B35: QMS 10-01-1 Health, Safety, Enviornment and Quality Policy | C35: High level document that shows AusNet Services commitment to providing a safe and healthy work enviornment | D35: Applies to all aspects of the day to day operations and our Proposal. | E35: No
B36: ESMS 10-01 Electricity Safety Management Scheme | C36: This document (ESMS 10-01 Overview) contains a summary of the structure of the ESMS for AusNet Services' electricity distribution supply network. It also outlines the period of application, the location of ESMS records, exemptions and lists officers responsible for the operation of this ESMS. | D36: Applies to all aspects of the day to day operations and our Proposal. | E36: No
B37: ESMS 10-03 Electricity Safety Management System | C37: This document describe the assets forming AusNet Services' electricity distribution supply network, their location and the associated planning, design, construction, commissioning, operation, augmentation, inspection, testing, maintenance, refurbishment, replacement and decommissioning processes necessary to ensure the safety of consumers, the general public, AusNet Services' staff and contractors. | D37: Applies to all aspects of the day to day operations and our Proposal. | E37: No
B49: Accounting policies, procedures and methodologies (including a capitalisation policy, depreciation policy and an approved expenditure allocation methodology)
B50: Cost Estimating Methodology | C50: The purpose of this document is to describe the principles, methodologies and procedures AusNet follow to prepare cost estimates for major capital projects developed for the Electricity Distribution Price Review (EDPR) submission for the regulatory period 2026-2031. | D50: Cost Estimating | E50: No
B51: Cost Allocation Methodology | C51: The CAM establishes a method for attributing direct costs and allocating indirect costs between various categories of Essential Energy’s distribution services, that is, between direct control services (standard control services and alternative control services), negotiated services and unregulated distribution services. | D51: Cost Allocation | E51: No
B52: Asset Capitalisation Policy (Property, Plant & Equipment) | C52: The document describes property strategy, asset management plan and expenditure program to meet our strategic objectives and operational requirements. | D52: RIN Supporting Information, Chapter 6 Capex | E52: No
B72: Asset management plan or equivalent documentation
B73: Asset Management Policies
B74: ​Asset Risk Assessment Overview | C74: This document describes the methodologies used by AusNet to determine the asset risk and the mitigating methods for regulated network assets. The results of the risk assessment can be reported in a risk matrix. The document is not intended to be prescriptive for every asset class, it details accepted methods. The unique characteristics of an asset class will determine the specific methods used. | D74: Determines Risk approach. | E74: No
B96: Asset Management Strategies
B97: Poles – Asset Strategy | C97: This document is part of the suite of Asset Management Strategies relating to the AusNet electricity distribution network. The purpose of this strategy is to outline the inspection, maintenance, replacement and monitoring activities identified for economic life cycle management of galvanised steel, steel reinforced concrete, wood, and glass reinforced concrete poles in AusNet’s electricity distribution network. | D97: This strategy is intended to assist in managing the assets, meeting regulatory obligations and informing stakeholders by: • presenting an overview of the asset population; • describing the condition and life cycle phase of the current fleet; • understanding asset behaviour through failure mode effect and criticality analysis; • requirements to achieve network reliability targets taking account of risk, costs and customer expectations; and • methods for effective and economic management of the asset population throughout the life-cycle. • outlining strategies to manage the emerging performance risks through inspection, maintenance, refurbishment and replacement activities; | E97: No
B98: Conductor – Asset Strategy | C98: This document is part of the suite of Asset Management Strategies relating to AusNet’s electricity distribution network. The purpose of this strategy is to outline the inspection, maintenance, replacement and monitoring activities identified for economic life cycle management of zone substation circuit breakers (CBs). | D98: This strategy is intended to assist in managing the assets, meeting regulatory obligations and informing stakeholders by: • presenting an overview of the asset population; • describing the condition and life cycle phase of the current fleet; • understanding asset behaviour through failure mode effect and criticality analysis; • requirements to achieve network reliability targets taking account of risk, costs and customer expectations; and • methods for effective and economic management of the asset population throughout the life-cycle. • outlining strategies to manage the emerging performance risks through inspection, maintenance, refurbishment and replacement activities; | E98: No
B99: MV Switches & ACRs (lines) - Asset Strategy | C99: This document is part of the Asset Management Strategies related to AusNet’s electricity distribution network. The purpose of this strategy is to outline the inspection, maintenance, replacement, and monitoring activities identified for the effective economic lifecycle management of Medium Voltage Switches and Automatic Circuit Reclosers (ACRs). This encompasses all associated switchgear, instrumentation, and control components. | D99: This strategy is intended to assist in managing the assets, meeting regulatory obligations and informing stakeholders by: • presenting an overview of the asset population; • describing the condition and life cycle phase of the current fleet; • understanding asset behaviour through failure mode effect and criticality analysis; • requirements to achieve network reliability targets taking account of risk, costs and customer expectations; and • methods for effective and economic management of the asset population throughout the life-cycle. • outlining strategies to manage the emerging performance risks through inspection, maintenance, refurbishment and replacement activities; | E99: No
B100: Power Transformers – Asset Strategy | C100: The purpose of this document is to outline the inspection, maintenance, replacement, and monitoring activities identified for economic life cycle management of the fleet of zone substation power transformers and regulators in AusNet’s Victorian electricity distribution network. This document is intended to be used to inform asset management decisions and communicate the basis for activities. | D100: This strategy is intended to assist in managing the assets, meeting regulatory obligations and informing stakeholders by: • presenting an overview of the asset population; • describing the condition and life cycle phase of the current fleet; • understanding asset behaviour through failure mode effect and criticality analysis; • requirements to achieve network reliability targets taking account of risk, costs and customer expectations; and • methods for effective and economic management of the asset population throughout the life-cycle. • outlining strategies to manage the emerging performance risks through inspection, maintenance, refurbishment and replacement activities; | E100: No
B101: Circuit Breakers (Z/S) - Asset Strategy | C101: This document is part of the suite of Asset Management Strategies relating to AusNet’s electricity distribution network. The purpose of this strategy is to outline the inspection, maintenance, replacement and monitoring activities identified for economic life cycle management of zone substation circuit breakers (CBs). | D101: This strategy is intended to assist in managing the assets, meeting regulatory obligations and informing stakeholders by: • presenting an overview of the asset population; • describing the condition and life cycle phase of the current fleet; • understanding asset behaviour through failure mode effect and criticality analysis; • requirements to achieve network reliability targets taking account of risk, costs and customer expectations; and • methods for effective and economic management of the asset population throughout the life-cycle. • outlining strategies to manage the emerging performance risks through inspection, maintenance, refurbishment and replacement activities; | E101: No
B102: Fuses (MV Fuse Switch disconnectors) – Asset Strategy | C102: The purpose of this document is to outline the inspection, maintenance, replacement and monitoring activities identified for economic life cycle management of medium voltage (MV) Fuse Switch Disconnectors (FSDs) in AusNets Victorian electricity distribution network. This document intends to be used to inform asset management decisions and communicate the basis for activities. | D102: This strategy is intended to assist in managing the assets, meeting regulatory obligations and informing stakeholders by: • presenting an overview of the asset population; • describing the condition and life cycle phase of the current fleet; • understanding asset behaviour through failure mode effect and criticality analysis; • requirements to achieve network reliability targets taking account of risk, costs and customer expectations; and • methods for effective and economic management of the asset population throughout the life-cycle. • outlining strategies to manage the emerging performance risks through inspection, maintenance, refurbishment and replacement activities; | E102: No
B103: Crossarms – Asset Strategy | C103: The purpose of this document is to outline the inspection, maintenance, replacement and monitoring activities identified for the economic life cycle management of crossarms in AusNet’s’ Victorian electricity distribution network. This document is intended to be used to inform asset management decisions and communicate the basis for activities | D103: This strategy is intended to assist in managing the assets, meeting regulatory obligations and informing stakeholders by: • presenting an overview of the asset population; • describing the condition and life cycle phase of the current fleet; • understanding asset behaviour through failure mode effect and criticality analysis; • requirements to achieve network reliability targets taking account of risk, costs and customer expectations; and • methods for effective and economic management of the asset population throughout the life-cycle. • outlining strategies to manage the emerging performance risks through inspection, maintenance, refurbishment and replacement activities; | E103: No
B104: Distribution Transformers – Asset Strategy | C104: The purpose of this document is to outline the inspection, maintenance, replacement, and monitoring activities identified for economic life cycle management of distribution transformers in AusNet. | D104: This strategy is intended to assist in managing the assets, meeting regulatory obligations and informing stakeholders by: • presenting an overview of the asset population; • describing the condition and life cycle phase of the current fleet; • understanding asset behaviour through failure mode effect and criticality analysis; • requirements to achieve network reliability targets taking account of risk, costs and customer expectations; and • methods for effective and economic management of the asset population throughout the life-cycle. • outlining strategies to manage the emerging performance risks through inspection, maintenance, refurbishment and replacement activities; | E104: No
B105: Services – Asset Strategy | C105: The purpose of this document is to outline the maintenance, replacement and performance of the service cables connecting customers to low voltage (LV) circuits in AusNet Service’s electricity distribution network. | D105: This strategy is intended to assist in managing the assets, meeting regulatory obligations and informing stakeholders by: • presenting an overview of the asset population; • describing the condition and life cycle phase of the current fleet; • understanding asset behaviour through failure mode effect and criticality analysis; • requirements to achieve network reliability targets taking account of risk, costs and customer expectations; and • methods for effective and economic management of the asset population throughout the life-cycle. • outlining strategies to manage the emerging performance risks through inspection, maintenance, refurbishment and replacement activities; | E105: No
B106: Protection & Control – Asset Strategy | C106: The purpose of this strategy is to outline the inspection, maintenance, replacement and monitoring activities identified for economic life cycle management of protection and control schemes and Supervisory Control and Data Acquisition (SCADA) Remote Terminal Units (RTU) in AusNet’ Victorian electricity distribution network. | D106: This strategy is intended to assist in managing the assets, meeting regulatory obligations and informing stakeholders by: • presenting an overview of the asset population; • describing the condition and life cycle phase of the current fleet; • understanding asset behaviour through failure mode effect and criticality analysis; • requirements to achieve network reliability targets taking account of risk, costs and customer expectations; and • methods for effective and economic management of the asset population throughout the life-cycle. • outlining strategies to manage the emerging performance risks through inspection, maintenance, refurbishment and replacement activities; | E106: No
B107: Instrument transformers – Asset Strategy | C107: The purpose of this strategy is to outline the inspection, maintenance, replacement and monitoring activities identified for economic life cycle management of Instrument Transformer. | D107: This strategy is intended to assist in managing the assets, meeting regulatory obligations and informing stakeholders by: • presenting an overview of the asset population; • describing the condition and life cycle phase of the current fleet; • understanding asset behaviour through failure mode effect and criticality analysis; • requirements to achieve network reliability targets taking account of risk, costs and customer expectations; and • methods for effective and economic management of the asset population throughout the life-cycle. • outlining strategies to manage the emerging performance risks through inspection, maintenance, refurbishment and replacement activities; | E107: No
B108: Comms – Asset Strategy | C108: This docuement outlines various communications related technologies, their condition and the strategies aimed at enhancing the reliability of the electricity distribution network and supporting Information Technology systems to efficiently deliver existing and future communication services. | D108: This strategy is intended to assist in managing the assets, meeting regulatory obligations and informing stakeholders by: • presenting an overview of the asset population; • describing the condition and life cycle phase of the current fleet; • understanding asset behaviour through failure mode effect and criticality analysis; • requirements to achieve network reliability targets taking account of risk, costs and customer expectations; and • methods for effective and economic management of the asset population throughout the life-cycle. • outlining strategies to manage the emerging performance risks through inspection, maintenance, refurbishment and replacement activities; | E108: No
B109: Z/S Civil Infrastructure - Asset Strategy | C109: The purpose of this strategy is to outline the inspection, maintenance, replacement and monitoring activities identified for economic life cycle management of civil infrastructure facilities in AusNet’s Victorian electricity distribution network. | D109: This strategy is intended to assist in managing the assets, meeting regulatory obligations and informing stakeholders by: • presenting an overview of the asset population; • describing the condition and life cycle phase of the current fleet; • understanding asset behaviour through failure mode effect and criticality analysis; • requirements to achieve network reliability targets taking account of risk, costs and customer expectations; and • methods for effective and economic management of the asset population throughout the life-cycle. • outlining strategies to manage the emerging performance risks through inspection, maintenance, refurbishment and replacement activities; | E109: No
B110: Indoor Switchboards - Asset Strategy | C110: The purpose of this strategy is to outline the inspection, maintenance, replacement and monitoring activities identified for economic life cycle management of indoor switchboards in AusNet’s Victorian electricity distribution network. | D110: This strategy is intended to assist in managing the assets, meeting regulatory obligations and informing stakeholders by: • presenting an overview of the asset population; • describing the condition and life cycle phase of the current fleet; • understanding asset behaviour through failure mode effect and criticality analysis; • requirements to achieve network reliability targets taking account of risk, costs and customer expectations; and • methods for effective and economic management of the asset population throughout the life-cycle. • outlining strategies to manage the emerging performance risks through inspection, maintenance, refurbishment and replacement activities; | E110: No
B111: Neutral Earthing Device - Asset Strategy | C111: The purpose of this strategy is to outline the inspection, maintenance, replacement and monitoring activities identified for economic life cycle management of Neutral Earthing Devices. | D111: This strategy is intended to assist in managing the assets, meeting regulatory obligations and informing stakeholders by: • presenting an overview of the asset population; • describing the condition and life cycle phase of the current fleet; • understanding asset behaviour through failure mode effect and criticality analysis; • requirements to achieve network reliability targets taking account of risk, costs and customer expectations; and • methods for effective and economic management of the asset population throughout the life-cycle. • outlining strategies to manage the emerging performance risks through inspection, maintenance, refurbishment and replacement activities; | E111: No
B112: HV Switches, Disconnectors & Earth Switches - Asset Strategy | C112: The purpose of this strategy is to outline the inspection, maintenance, replacement and monitoring activities identified for economic life cycle management of zone substation HV switches, Disconnectors and earth switches. | D112: This strategy is intended to assist in managing the assets, meeting regulatory obligations and informing stakeholders by: • presenting an overview of the asset population; • describing the condition and life cycle phase of the current fleet; • understanding asset behaviour through failure mode effect and criticality analysis; • requirements to achieve network reliability targets taking account of risk, costs and customer expectations; and • methods for effective and economic management of the asset population throughout the life-cycle. • outlining strategies to manage the emerging performance risks through inspection, maintenance, refurbishment and replacement activities; | E112: No
B113: Insulators - High & Medium Voltage - Asset Strategy | C113: The purpose of this strategy is to outline the inspection, maintenance, replacement and monitoring activities identified for economic life cycle management of high (HV) and medium voltage (MV) Insulators in AusNets’ Victorian electricity distribution network. | D113: This strategy is intended to assist in managing the assets, meeting regulatory obligations and informing stakeholders by: • presenting an overview of the asset population; • describing the condition and life cycle phase of the current fleet; • understanding asset behaviour through failure mode effect and criticality analysis; • requirements to achieve network reliability targets taking account of risk, costs and customer expectations; and • methods for effective and economic management of the asset population throughout the life-cycle. • outlining strategies to manage the emerging performance risks through inspection, maintenance, refurbishment and replacement activities; | E113: No
B117: Asset Management Plans
B118: <insert relevant policy, plan, strategy etc>
B142: Capital expenditure policies and procedures (including capex approval policies and procedures and replacement policy)
B143: Asset Capitalisation Policy (Property, Plant & Equipment) | C143: The document describes property strategy, asset management plan and expenditure program to meet our strategic objectives and operational requirements. | D143: RIN Supporting Information, Chapter 6 Capex | E143: No
B163: Internal standards for network planning, design, maintenance and operation
B164: Resilience Strategy | C164: This document is our Resilience Strategy which describes our vision and approach for ensuring that we factor resilience into our decision-making, so that we deliver optimal outcomes for our customers when disruptive events occur. | D164: Resilience capex forecast | E164: No
B243: Procurement and contracting out policies
B244: Procurement Principles | C244: This document defines the priciples to ensure an integrated, consistent and compliant approach to procuremnt is undertaken across the organisation | D244: Business as usual | E244: No
B264: Information technology policies or strategies
B265: Digital Investment Strategy | C265: This document outlines the strategic direction and forecast expenditure of AusNet Services’ information, communication and technology (ICT) capabilities for our electricity distribution services in the 2026-31 regulatory period. | D265: Digital forecast | E265: No
B301: Demand management policies or strategies
B302: Distribution Annual Planning Report | C302: AusNet Services produces each year a Distribution Annual Planning Report (DAPR) in accordance with the requirements of Section 5.13.2 of the National Electricity Rules (NER). The information contained within the DAPR complies with the requirements of Schedule 5.8 of the NER | D302: Chapter 6 Capex | E302: No
B322: Self insurance guidelines or policy
B323: <insert relevant policy, plan, strategy etc>
B343: Land and easement acquisition polices
B344: <insert relevant policy, plan, strategy etc>
B364: Asset security plans and policies
B365: BFM 10-01 Bushfire Mitigation Plan | C365: This plan details the policies and procedures which govern AusNet Services bushfire risk management practices. It is a self contained document except where it specifically refers to other related documents. | D365: Chapter 6 Capex | E365: No
B385: Disaster recovery policy
B386: Network Contingency Plan | C386: The objective of this Plan is to provide the framework for network contingency planning and provide an overview of the suite of contingency plans established for the electricity distribution network. The Network Contingency Plan is applicable to events that directly impact or are likely to directly impact or impede the safe and reliable operation of the distribution network or which interrupt or are likely to interrupt power supply which require a Level 2 or greater response under the SPIRACS Crisis & Emergency Management Guide 30-4006-041. It does not cover the broader business continuity planning undertaken under SPIRACS. | D386: This document underpins expenditure required for network contigency if a plan is enacted for the electricity distribution network. | E386: No

Sheet 7.2 Contingent projects
B1: =INDEX(dms_Worksheet_List,MATCH(dms_Model,dms_Model_List)) -> REGULATORY REPORTING STATEMENT
B2: =INDEX(dms_TradingNameFull_List,MATCH(dms_TradingName,dms_TradingName_List)) -> AusNet Electricity Services Pty Ltd
B3: =CONCATENATE("REGULATORY PERIOD FROM ", FRCP_y1," TO ",dms_MultiYear_FinalYear_Result) -> REGULATORY PERIOD FROM 2026-27 TO 2030-31
B4: 7.2 CONTINGENT PROJECTS
B5: TEMPLATE DATE - SEPTEMBER 2024 - FINAL RIN
B7: 7.2.1 - PROPOSED CONTINGENT PROJECTS FOR THE FORTHCOMING REGULATORY CONTROL PERIOD
B8: Proposed contingent project name | C8: Proposed contingent capital expenditure ($, nominal) | D8: Proposed trigger events | E8: =CONCATENATE("Proposed annual revenue requirement for ", FRCP_y1, " ($, nominal)") -> Proposed annual revenue requirement for 2026-27 ($, nominal) | F8: =CONCATENATE("5% of the annual revenue requirement for ",FRCP_y1,"") -> 5% of the annual revenue requirement for 2026-27
F9: =+E9*0.05 -> 0
E10: =+$E$9 -> 0 | F10: 0
E11: 0 | F11: 0
E12: 0 | F12: 0
E13: 0 | F13: 0
E14: 0 | F14: 0
E15: 0 | F15: 0
E16: 0 | F16: 0
E17: 0 | F17: 0
E18: 0 | F18: 0
E19: 0 | F19: 0
E20: 0 | F20: 0
E21: 0 | F21: 0
E22: 0 | F22: 0
E23: 0 | F23: 0
E24: 0 | F24: 0
E25: 0 | F25: 0
E26: 0 | F26: 0
E27: 0 | F27: 0
E28: 0 | F28: 0
E29: 0 | F29: 0
E30: 0 | F30: 0
E31: 0 | F31: 0
E32: 0 | F32: 0
E33: 0 | F33: 0
E34: 0 | F34: 0
E35: 0 | F35: 0
E36: 0 | F36: 0
E37: 0 | F37: 0
E38: 0 | F38: 0
E39: 0 | F39: 0
E40: 0 | F40: 0
E41: 0 | F41: 0
E42: 0 | F42: 0
E43: 0 | F43: 0
E44: 0 | F44: 0
E45: 0 | F45: 0
E46: 0 | F46: 0

Sheet 7.3 Obligations
B1: =INDEX(dms_Worksheet_List,MATCH(dms_Model,dms_Model_List)) -> REGULATORY REPORTING STATEMENT
B2: =INDEX(dms_TradingNameFull_List,MATCH(dms_TradingName,dms_TradingName_List)) -> AusNet Electricity Services Pty Ltd
B3: =CONCATENATE("REGULATORY PERIOD FROM ", FRCP_y1," TO ",dms_MultiYear_FinalYear_Result) -> REGULATORY PERIOD FROM 2026-27 TO 2030-31
B4: 7.3 OBLIGATIONS, REQUIREMENTS & STANDARDS
B5: TEMPLATE DATE - SEPTEMBER 2024 - FINAL RIN
B7: 7.3.1 - OBLIGATIONS OR REQUIREMENTS
C8: Brief description | D8: Relevance to regulatory proposal | E8: Expenditure impact
C9: Description of relevant obligations or requirements within the instrument (e.g. safety obligations, reliability targets) | D9: Identify what element of the proposal/supporting documents the obligation or requirement is relevant to e.g. replacement capex, capacity utilisation thresholds, opex | E9: Is the obligation or requirement identified in the response to section 4 'Step Changes' of the notice (yes or no)?
B10: LEGISLATION
B11: National Electricity Law (NEL) | C11: Impose obligations including registration, distribution losses, network connections, economic regulation and metering. | D11: Submission document | E11: No
B12: Electricity Industry Act 2000 | C12: Sets out key obligations relating to distribution of electricity in Victoria including matters such as licences and compliance with industry codes, standards, rules and guidelines. | D12: Chapter 6 Capex, Chapter 7 Opex, Chapter 17 Metering, TSS | E12: No
B13: Electricity Safety Amendment (Bushfire Mitigation Civil Penalties Scheme) Act 2017 | C13: Amended the Electricity Safety Act 1998 (Vic) (ESA) to provide for significant financial penalties if AusNet Services fails to achieve the REFCL milestones prescribed by the Regulations by the applicable deadline | D13: Chapter 6 Capex, Chapter 7Opex, Chapter 15 Cost pass Through | E13: Yes
B14: Electricity Safety (Bushfire Mitigation) Regulations 2013 (amendments as at 1 May 2016) | C14: Requires the preparation of bushfire mitigation plans and specifies inspection of assets. | D14: Chapter 6 Capex, Chapter 7 Opex, Chapter 15 Cost pass Through | E14: Yes
B15: Electricity Safety (Electric Line Clearance) Regulations 2015 | C15: Prescribes line clearance requirements including vegetation clearing | D15: Chapter 6 Capex, Chapter 7 Opex | E15: No
B16: Electricity Safety (Management) Regulations 2009 | C16: Sets out requirements for Electricity Safety Management Schemes. | D16: Chapter 6 Capex, Chapter 7 Opex | E16: No
B17: Electricity Distribution Code of Practice | C17: Regulates connection and distribution of electricity to customers, connection of embedded generating units, and transfer between distribution systems to ensure that they are undertaken in a safe, efficient and reliable manner. Sets out obligations in relation to smart meters. | D17: Chapter 6 Capex, Chapter 7 Opex, Chapter 17 Metering, TSS | E17: No
B18: Electricity System Code | C18: Requires particular power quality and connection characteristics. | D18: Chapter 6 Capex, Chapter 7 Opex | E18: No
B19: Public Lighting Code | C19: Regulates the provision of public lighting by specifying minimum standards and certain obligations of distributors and public lighting customers. | D19: Chapter 18: Alternative Control Service - Public lighting | E19: No
B20: Electricity Industry Guideline No.14 | C20: Sets out customer contributions, requirements for undergrounding network assets and contestability of connection works. | D20: Chapter 6 Capex, Chapter 7 Opex, TSS | E20: No
B21: Electricity Industry Guideline No.15 | C21: Sets out arrangement for connecting embedded generation units to distribution systems | D21: Chapter 6 Capex, Chapter 7 Opex, TSS | E21: No
B22: Electricity Distribution Licence | C22: Sets out obligations of AusNet Services in relation to distribution of electricity in Victoria including requirements to connect customers, offer services, undertake network augmentation and comply with orders, codes and guidelines. | D22: Chapter 4 Demandand Energy Forecasts, Chapte 6 Capex, Chapter 7 Opex, Chapter 17 Metering, TSS | E22: No
B23: Emergency Management Act 2013 | C23: Establishes arrangments for management of emergencies in Victoria | D23: Chapter 6 Capex, Chapter 7 Opex | E23: No
B24: Terrorism (Community Protection) Act 2003 | C24: Obliges providers of essential services including electricity to plan for the protection of services from the effects of terrorist acts. | D24: Chapter 6 Capex, Chapter 7 Opex | E24: No
B25: Energy and Water Ombudsman Charter 2006 | C25: Describes how electricity licence holders must participate in a customer dispute resolution scheme and how this scheme operates in Victoria. | D25: Chapter 6 Capex, Chapter 7 Opex | E25: No
B26: Occupational Health and Safety Act 2004 | C26: Sets out duties of employers and persons who manage or control workplaces to provide for the health, safety and welfare of employees and other persons including the public. Describes the principle of eliminating or reducing risks so far as is practicable. | D26: Chapter 6 Capex, Chapter 7 Opex | E26: No
B27: Occupational Health and Safety Regulations 2017 | C27: Detail many aspects of OH&S including manual handling, exposure to noise, prevention of falls, work in confined spaces, operating plant, and asbestos control & handling. | D27: Chapter 6 Capex, Chapter 7 Opex Chapter 17 Metering | E27: No
B28: National Greenhouse and Energy Reporting Act 2007 | C28: Provides for reporting and dissemination of information related to greenhouse emissions including annual reporting. | D28: Chapter 6 Capex, Chapter 7 Opex | E28: No
B29: National Greenhouse and Energy Reporting Regulations 2008 | C29: Sets out requirements for reporting greenhouse emissions. | D29: Chapter 6 Capex, Chapter 7 Opex | E29: No
B30: Environment Protection Act 1970 | C30: Legislative framework for the protection of the environment in Victoria. | D30: Chapter 6 Capex, Chapter 7 Opex | E30: No
B31: Environmental Protection (Residential Noise) Regulations 2018 | C31: Prescribes items and times during which noise resulting from their use is deemed to be unreasonable on residential properties. | D31: Chapter 6 Capex, Chapter 7 Opex | E31: No
B32: Aboriginal Heritage Act 2006 | C32: Promotes the recognition, protection and conservation of Aboriginal culture in Victoria; recognition of Aboriginal people as the primary guardians of their cultural heritage; and management of Aboriginal cultural heritage as an integral part of land management. | D32: Chapter 6 Capex, Chapter 7 Opex | E32: No
B33: Land Act 1958 | C33: Defines Crown Land and conditions relating to Crown Land which prohibit a number of activities including refuelling of vehicles, removal of vegetation and disposal of waste. | D33: Chapter 6 Capex, Chapter 7 Opex | E33: No
B34: National Measurement Act 1960 and Regulations | C34: The National Measurement Act establishes a national system of units and standards of measuremnet of physical quantities and provides for a national system of trade measurements. The National Trade Measurement Regulations were amended in remove the exemption for electricity meters. Electricity meters installed prior to 1 January 2013 are exempt, whilst electricity meters installed after 1 January 2013 must comply with the National Measurement Act and Regulations. | D34: Chapter 6 Capex, Chapter 7 Opex | E34: No
B35: Privacy Act 1988 | C35: Obligations to protect the privacy of individuals and the responsible and transparent handling of personal information in accordance with the Australian Privacy Principles (APPs). | D35: Submission document | E35: No
B36: AMI Cost Recovery Order in Council (CROIC) | C36: The Order in Council made on 28 August 2007 under section 15A and 46D of the Electricity Industry Act 2000 as amended from time to time establishing - conditions for cost recovery for AMI deployments; - obligations requiring Victorian Distribution Businesses to deploy an AMI meter to every eligible customer; and requirements to pay rebates to customers without an AMI meter installed or operating as remotely read interval meters | D36: Chapter 6 Capex, Chapter 7 Opex, Chapter 17 Metering, TSS | E36: No
B37: AMI Specifications Order | C37: The Order in Council made on 12 November 2007 under section 15A and 46D of the Electricity Industry Act 2000 requiring the deployment of AMI Meters and AMI System inaccordance with the Minimum AMI Functionality Specification and the Minimum AMI Service Levels Specification in Victoria. | D37: Chapter 6 Capex, Chapter 7 Opex, Chapter 17 Metering, TSS | E37: No
B38: AMI Tariff Order | C38: Provides the regulatory framework for applying AMI tariffs, transfer between and consent to AMI tariffs, assignment of AMI tariffs, customer access to meter data. | D38: Chapter 6 Capex, Chapter 7 Opex, Chapter 17 Metering, TSS | E38: No
B39: Electricity Customer Transfer Code | C39: The purpose of this Code is to facilitate and regulate aspects of the process by which customers can choose to change retailer. | D39: Chapter 6 Capex, Chapter 7 Opex | E39: No
B40: Customer Metering Code | C40: The purpose of this Code is to regulate customer metering to the extent not regulated by AEMO Procedures. | D40: Chapter 6 Capex, Chapter 7 Opex, Chapter 17 Metering, TSS | E40: No
B41: Default Use-Of-System Agreement | C41: This agreement sets out the rights and obligations of the parties in respect of: (a) the provision of the Distribution Services by the Distributor to the Retailer in respect of Customers, and the payment for those Distribution Services by the Retailer; and (b) the provision of Retail Services by the Retailer, and the payment for those Retail Services by the Distributor | D41: Chapter 4 Demand Chapter 6 Capex, Chapter 7 Opex, Chapter 17 Metering, TSS | E41: No
B42: Metrology Procedures | C42: Establishes obligations on the application of metering installations to connection points and sets out provisions for metering installations and metering data services. | D42: Chapter 6 Capex, Chapter 7 Opex, Chapter 17 Metering | E42: No
B43: MPB Service Level Procedure | C43: Details the technical requirements and performances associated with the provision, installation and maintenance of a metering installation. | D43: Chapter 6 Capex, Chapter 7 Opex, Chapter 17 Metering | E43: No
B44: MDP Service Level Procedure | C44: Details the obligations, technical requirements and performances associated with the processes of meter reading, data collection, data processing, adjustment, aggregation and delivery of metering data | D44: Chapter 6 Capex, Chapter 7 Opex, Chapter 17 Metering | E44: No
B45: NMI Procedures | C45: Establishes conditions and describes processes for creating and abolishing NMIs | D45: Chapter 6 Capex, Chapter 7 Opex, Chapter 17 Metering | E45: No
B46: CATS Procedures | C46: Establishes the conditions and processes for governing AEMO's Market Settlement and Transfer System (MSATS) | D46: Chapter 6 Capex, Chapter 7 Opex, Chapter 17 Metering | E46: No
B47: B2B Procedures | C47: Define the transactions and conditions for information exchange as defined under chapter 7 of the Rules | D47: Chapter 6 Capex, Chapter 7 Opex, Chapter 17 Metering | E47: No
B48: Other Metering Services procedures and guidelines | C48: Various procedures and guidelines that instruct participants on how metering and related interaction to other participants is to be undertaken. | D48: Chapter 6 Capex, Chapter 7 Opex, Chapter 17 Metering | E48: No
B49: Direction under Section 141(2)(d) of the Electricity Safety Act 1998 Fitting of Spacers in Aerial Lines | C49: Direction from Energy Safe Victoria under Section 141(2)( d) of the Electricity Safety Act 1998 which requires the fitting of spacers in overhead lines. | D49: Chapter 6 Capex, Chapter 7 Opex | E49: No
B50: National Electricity (Victoria) Act 2005 | C50: This Act provides for the regulation of the national electricity wholesale market. It is part of a national scheme which gives effect to the National Electricity Law and the National Electricity Rules made under that Law. The lead legislation under the national scheme is the National Electricity (South Australia) Act 1996. The economic regulator is the Australian Energy Regulator (AER) and the rule-maker is the Australian Energy Market Commission (AEMC). The national electricity wholesale market is administered by the Australian Energy Market Operator (AEMO). | D50: Chapter 13 Incentive Scheme | E50: No
B51: Superannuation Guarantee (Administration) Act 1992, No. 111 | C51: The Act sets out relevant superannuation payment requirements. | D51: Chapter 7 Opex | E51: No
B52: Roads Management Act 2004 (Vic) | C52: Safety obligations when carrying out works on public roadways. | D52: Chapter 6 Capex, Chapter 18 Public Lighting | E52: No
B53: Fair Work Act 2009 | C53: Sets out our obligations in relation to the negotiation of employment terms and conditions. | D53: Chapter 7 Opex | E53: No
B54: The Security of Critical Infrastructure Act 2018 (Cth) | C54: May result in additional cyber security obligations being imposed on AusNet Services | D54: Chapter 7 Opex | E54: Yes
B55: National Electricity Amendment (Five Minute Settlement) Rule 2017 No. 15 | C55: Aligns operational dispatch and financial settlement to occur at five minute intervals | D55: Chapter 7Opex | E55: Yes
B222: LICENCES
B223: Electricity Distribution Licence (2005) | C223: The Licence authorisesAusNet to distribute or supply electricity to supply points located in the Licensee’s distribution area. | D223: Chapter 6 Capex | E223: No
B227: RULES
B228: National Electricity Rules | C228: National Electricity Rules - Details the technical operational requirements for the operation of the National Electricity Market National Energy Retail Rules | D228: Chapter 6 Capex, Chapter 7 Opex | E228: No
B232: ORDERS
B236: CODES
B237: Building Code of Australia | C237: Building Code of Australia published by the Australian Building Codes Board as in force from time to time Building and Construction Industry (Fair and Lawful Building Sites) Code 2014 Code for the Tendering and Performance of Building Work | D237: Chapter 6 Capex, Chapter 7 Opex | E237: No
B238: National Harmonisation of Work Health and Safety Code of Practice | C238: Achieving the standards of health, safety and welfare. | D238: Chapter 6 Capex, Chapter 7 Opex | E238: No
B239: Electricity Distribution Code (2014) | C239: The purpose of this Code is to regulate the following activities so that they are undertaken in a safe, efficient and reliable manner: (a) the distribution of electricity by a distributor for supply to its customers; (b) the connection of a customer’s electrical installation to the distribution system; (c) the connection of embedded generating units to the distribution system; and (d) the transfer of electricity between distribution systems. | D239: Chapter 6 Capex, Chapter 13 incentive Schemes, Chapter 15 Cost Pass through | E239: No
B252: GUIDELINES
B291: DEFAULT AGREEMENTS
B295: OTHER

Sheet 7.4 Shared Assets
B1: =INDEX(dms_Worksheet_List,MATCH(dms_Model,dms_Model_List)) -> REGULATORY REPORTING STATEMENT
B2: =INDEX(dms_TradingNameFull_List,MATCH(dms_TradingName,dms_TradingName_List)) -> AusNet Electricity Services Pty Ltd
B3: =CONCATENATE("REGULATORY PERIOD FROM ", FRCP_y1," TO ",dms_MultiYear_FinalYear_Result) -> REGULATORY PERIOD FROM 2026-27 TO 2030-31
B4: 7.4 SHARED ASSETS
B5: TEMPLATE DATE - SEPTEMBER 2024 - FINAL RIN
B7: 7.4.1 - TOTAL UNREGULATED REVENUE EARNED WITH SHARED ASSETS
B8: Name of shared asset unregulated service | C8: Description of shared assets used to provide the service | D8: =CONCATENATE("Shared asset unregulated revenue ($, real ", dms_DollarReal,")") -> Shared asset unregulated revenue ($, real June 2026)
D9: =CRCP_y4 -> 2024-25 | E9: =CRCP_y5 -> 2025-26 | F9: =FRCP_y1 -> 2026-27 | G9: =FRCP_y2 -> 2027-28 | H9: =FRCP_y3 -> 2028-29 | I9: =FRCP_y4 -> 2029-30 | J9: =FRCP_y5 -> 2030-31 | K9: =CONCATENATE("Total ",FRCP_y1," to ", FRCP_y5) -> Total 2026-27 to 2030-31
B10: Leasing Access to third parties - various communications equipment installed on distribution assets | C10: Poles shared for communication services, including distribution poles. | D10: 2316302 | E10: 2374210 | F10: 2433565 | G10: 2494404 | H10: 2556764 | I10: 2620683 | J10: 2686200 | K10: =SUM(F10:J10) -> 12791616
B11: Leasing Access to third parties - providing access to distribution assets for the construction and operation of fibre optic cable (FOC). | C11: Assets shared to facilitate the construction, operation, and maintenance of the Fibre Optic Cable (FOC), including fibre optic cable, poles and other structures, fixtures and fittings, polemounted patch connectors and enclosures, and Pits. | D11: 264880.0138 | E11: 256666.68 | F11: 250406.5171 | G11: 244299.041 | H11: 238340.5279 | I11: 232527.3442 | J11: 226855.9456 | K11: 1192429.376
K12: 0
K13: 0
K14: 0
K15: 0
K16: 0
K17: 0
K18: 0
K19: 0
K20: 0
K21: 0
K22: 0
K23: 0
K24: 0
B26: 7.4.2 - SHARED ASSET UNREGULATED SERVICES - APPORTIONMENT METHODOLOGY
B27: Name of shared asset unregulated service for which revenues were apportioned | C27: Apportionment methodology

Sheet 7.7 TSS-LRMC
B1: =INDEX(dms_Worksheet_List,MATCH(dms_Model,dms_Model_List)) -> REGULATORY REPORTING STATEMENT
B2: =INDEX(dms_TradingNameFull_List,MATCH(dms_TradingName,dms_TradingName_List)) -> AusNet Electricity Services Pty Ltd
B3: =CONCATENATE("REGULATORY PERIOD FROM ", FRCP_y1," TO ",dms_MultiYear_FinalYear_Result) -> REGULATORY PERIOD FROM 2026-27 TO 2030-31
B4: 7.7 - TARIFF STRUCTURE STATEMENT - INPUTS TO LRMC CALCULATION
B5: TEMPLATE DATE - SEPTEMBER 2024 - FINAL RIN
D7: ="Is "&dms_TradingName&" using the 'Average Incremental Cost' approach?" -> Is AusNet (D) using the 'Average Incremental Cost' approach?
F8: YES
B10: 7.7.1 - INPUTS TO LRMC CALCULATION - STANDARD CONTROL SERVICES - CAPEX
B11: 7.7.1.1 - SERIES A
C12: =CONCATENATE("FORECAST ($, real ", dms_DollarReal) -> FORECAST ($, real June 2026
C13: =CRCP_y4 -> 2024-25 | D13: =IF(dms_RPT="financial",(VALUE(LEFT(C13,4)+1)&"-"&MID(C13,3,2)+2),VALUE(LEFT(C13,4)+1)) -> 2025-26 | E13: 2026-27 | F13: 2027-28 | G13: 2028-29 | H13: 2029-30 | I13: 2030-31 | J13: 2031-32 | K13: 2032-33 | L13: 2033-34 | M13: 2034-35 | N13: 2035-36 | O13: 2036-37 | P13: 2037-38 | Q13: 2038-39 | R13: 2039-40 | S13: 2040-41 | T13: 2041-42 | U13: 2042-43 | V13: 2043-44
B14: Replacement expenditure
B15: Connections
B16: Augmentation Expenditure | C16: 4233500 | D16: 3946000 | E16: 47277725.06 | F16: 63981022.71 | G16: 88063113.49 | H16: 53213451.58 | I16: 65022321.15
B17: Non-network
B18: Export services
B19: Capitalised network overheads
B20: Capitalised corporate overheads
B21: Total capex | C21: =SUM(C14:C20) -> 4233500 | D21: =SUM(D14:D20) -> 3946000 | E21: 47277725.06 | F21: 63981022.71 | G21: 88063113.49 | H21: 53213451.58 | I21: 65022321.15 | J21: 0 | K21: 0 | L21: 0 | M21: 0 | N21: 0 | O21: 0 | P21: 0 | Q21: 0 | R21: 0 | S21: 0 | T21: 0 | U21: 0 | V21: 0
B23: 7.7.1.2 - SERIES B
C24: =CONCATENATE("FORECAST ($, real ", dms_DollarReal) -> FORECAST ($, real June 2026
C25: =CRCP_y4 -> 2024-25 | D25: =IF(dms_RPT="financial",(VALUE(LEFT(C25,4)+1)&"-"&MID(C25,3,2)+2),VALUE(LEFT(C25,4)+1)) -> 2025-26 | E25: =IF(dms_RPT="financial",(VALUE(LEFT(D25,4)+1)&"-"&MID(D25,3,2)+2),VALUE(LEFT(D25,4)+1)) -> 2026-27 | F25: =IF(dms_RPT="financial",(VALUE(LEFT(E25,4)+1)&"-"&MID(E25,3,2)+2),VALUE(LEFT(E25,4)+1)) -> 2027-28 | G25: =IF(dms_RPT="financial",(VALUE(LEFT(F25,4)+1)&"-"&MID(F25,3,2)+2),VALUE(LEFT(F25,4)+1)) -> 2028-29 | H25: =IF(dms_RPT="financial",(VALUE(LEFT(G25,4)+1)&"-"&MID(G25,3,2)+2),VALUE(LEFT(G25,4)+1)) -> 2029-30 | I25: =IF(dms_RPT="financial",(VALUE(LEFT(H25,4)+1)&"-"&MID(H25,3,2)+2),VALUE(LEFT(H25,4)+1)) -> 2030-31 | J25: =IF(dms_RPT="financial",(VALUE(LEFT(I25,4)+1)&"-"&MID(I25,3,2)+2),VALUE(LEFT(I25,4)+1)) -> 2031-32 | K25: =IF(dms_RPT="financial",(VALUE(LEFT(J25,4)+1)&"-"&MID(J25,3,2)+2),VALUE(LEFT(J25,4)+1)) -> 2032-33 | L25: =IF(dms_RPT="financial",(VALUE(LEFT(K25,4)+1)&"-"&MID(K25,3,2)+2),VALUE(LEFT(K25,4)+1)) -> 2033-34 | M25: =IF(dms_RPT="financial",(VALUE(LEFT(L25,4)+1)&"-"&MID(L25,3,2)+2),VALUE(LEFT(L25,4)+1)) -> 2034-35 | N25: =IF(dms_RPT="financial",(VALUE(LEFT(M25,4)+1)&"-"&MID(M25,3,2)+2),VALUE(LEFT(M25,4)+1)) -> 2035-36 | O25: =IF(dms_RPT="financial",(VALUE(LEFT(N25,4)+1)&"-"&MID(N25,3,2)+2),VALUE(LEFT(N25,4)+1)) -> 2036-37 | P25: =IF(dms_RPT="financial",(VALUE(LEFT(O25,4)+1)&"-"&MID(O25,3,2)+2),VALUE(LEFT(O25,4)+1)) -> 2037-38 | Q25: =IF(dms_RPT="financial",(VALUE(LEFT(P25,4)+1)&"-"&MID(P25,3,2)+2),VALUE(LEFT(P25,4)+1)) -> 2038-39 | R25: =IF(dms_RPT="financial",(VALUE(LEFT(Q25,4)+1)&"-"&MID(Q25,3,2)+2),VALUE(LEFT(Q25,4)+1)) -> 2039-40 | S25: =IF(dms_RPT="financial",(VALUE(LEFT(R25,4)+1)&"-"&MID(R25,3,2)+2),VALUE(LEFT(R25,4)+1)) -> 2040-41 | T25: =IF(dms_RPT="financial",(VALUE(LEFT(S25,4)+1)&"-"&MID(S25,3,2)+2),VALUE(LEFT(S25,4)+1)) -> 2041-42 | U25: =IF(dms_RPT="financial",(VALUE(LEFT(T25,4)+1)&"-"&MID(T25,3,2)+2),VALUE(LEFT(T25,4)+1)) -> 2042-43 | V25: =IF(dms_RPT="financial",(VALUE(LEFT(U25,4)+1)&"-"&MID(U25,3,2)+2),VALUE(LEFT(U25,4)+1)) -> 2043-44
B26: Replacement expenditure
B27: Connections
B28: Augmentation Expenditure
B29: Non-network
B30: Export services | C30: - | D30: - | E30: 8300000 | F30: 6400000 | G30: 0 | H30: 20263500 | I30: 0
B31: Capitalised network overheads
B32: Capitalised corporate overheads
B33: Total capex | C33: =SUM(C26:C32) -> 0 | D33: =SUM(D26:D32) -> 0 | E33: 8300000 | F33: 6400000 | G33: 0 | H33: 20263500 | I33: 0 | J33: 0 | K33: 0 | L33: 0 | M33: 0 | N33: 0 | O33: 0 | P33: 0 | Q33: 0 | R33: 0 | S33: 0 | T33: 0 | U33: 0 | V33: 0
B35: 7.7.1.3 - SERIES C
C36: =CONCATENATE("FORECAST ($, real ", dms_DollarReal) -> FORECAST ($, real June 2026
C37: =CRCP_y4 -> 2024-25 | D37: =IF(dms_RPT="financial",(VALUE(LEFT(C37,4)+1)&"-"&MID(C37,3,2)+2),VALUE(LEFT(C37,4)+1)) -> 2025-26 | E37: =IF(dms_RPT="financial",(VALUE(LEFT(D37,4)+1)&"-"&MID(D37,3,2)+2),VALUE(LEFT(D37,4)+1)) -> 2026-27 | F37: =IF(dms_RPT="financial",(VALUE(LEFT(E37,4)+1)&"-"&MID(E37,3,2)+2),VALUE(LEFT(E37,4)+1)) -> 2027-28 | G37: =IF(dms_RPT="financial",(VALUE(LEFT(F37,4)+1)&"-"&MID(F37,3,2)+2),VALUE(LEFT(F37,4)+1)) -> 2028-29 | H37: =IF(dms_RPT="financial",(VALUE(LEFT(G37,4)+1)&"-"&MID(G37,3,2)+2),VALUE(LEFT(G37,4)+1)) -> 2029-30 | I37: =IF(dms_RPT="financial",(VALUE(LEFT(H37,4)+1)&"-"&MID(H37,3,2)+2),VALUE(LEFT(H37,4)+1)) -> 2030-31 | J37: =IF(dms_RPT="financial",(VALUE(LEFT(I37,4)+1)&"-"&MID(I37,3,2)+2),VALUE(LEFT(I37,4)+1)) -> 2031-32 | K37: =IF(dms_RPT="financial",(VALUE(LEFT(J37,4)+1)&"-"&MID(J37,3,2)+2),VALUE(LEFT(J37,4)+1)) -> 2032-33 | L37: =IF(dms_RPT="financial",(VALUE(LEFT(K37,4)+1)&"-"&MID(K37,3,2)+2),VALUE(LEFT(K37,4)+1)) -> 2033-34 | M37: =IF(dms_RPT="financial",(VALUE(LEFT(L37,4)+1)&"-"&MID(L37,3,2)+2),VALUE(LEFT(L37,4)+1)) -> 2034-35 | N37: =IF(dms_RPT="financial",(VALUE(LEFT(M37,4)+1)&"-"&MID(M37,3,2)+2),VALUE(LEFT(M37,4)+1)) -> 2035-36 | O37: =IF(dms_RPT="financial",(VALUE(LEFT(N37,4)+1)&"-"&MID(N37,3,2)+2),VALUE(LEFT(N37,4)+1)) -> 2036-37 | P37: =IF(dms_RPT="financial",(VALUE(LEFT(O37,4)+1)&"-"&MID(O37,3,2)+2),VALUE(LEFT(O37,4)+1)) -> 2037-38 | Q37: =IF(dms_RPT="financial",(VALUE(LEFT(P37,4)+1)&"-"&MID(P37,3,2)+2),VALUE(LEFT(P37,4)+1)) -> 2038-39 | R37: =IF(dms_RPT="financial",(VALUE(LEFT(Q37,4)+1)&"-"&MID(Q37,3,2)+2),VALUE(LEFT(Q37,4)+1)) -> 2039-40 | S37: =IF(dms_RPT="financial",(VALUE(LEFT(R37,4)+1)&"-"&MID(R37,3,2)+2),VALUE(LEFT(R37,4)+1)) -> 2040-41 | T37: =IF(dms_RPT="financial",(VALUE(LEFT(S37,4)+1)&"-"&MID(S37,3,2)+2),VALUE(LEFT(S37,4)+1)) -> 2041-42 | U37: =IF(dms_RPT="financial",(VALUE(LEFT(T37,4)+1)&"-"&MID(T37,3,2)+2),VALUE(LEFT(T37,4)+1)) -> 2042-43 | V37: =IF(dms_RPT="financial",(VALUE(LEFT(U37,4)+1)&"-"&MID(U37,3,2)+2),VALUE(LEFT(U37,4)+1)) -> 2043-44
B38: Replacement expenditure
B39: Connections
B40: Augmentation Expenditure
B41: Non-network
B42: Capitalised network overheads
B43: Capitalised corporate overheads
B44: Total capex | C44: =SUM(C37:C43) -> 0 | D44: 0 | E44: 0 | F44: 0 | G44: 0 | H44: 0 | I44: 0 | J44: 0 | K44: 0 | L44: 0 | M44: 0 | N44: 0 | O44: 0 | P44: 0 | Q44: 0 | R44: 0 | S44: 0 | T44: 0 | U44: 0 | V44: 0
B48: 7.7.2 - INPUTS TO LRMC CALCULATION - STANDARD CONTROL SERVICES - OPEX
B49: 7.7.2.1 - SERIES A
C50: =CONCATENATE("FORECAST ($, real ", dms_DollarReal) -> FORECAST ($, real June 2026
